Body Name,Service Code,Expenditure Category,Payment Date,Transaction Number,Supplier,Net Amount
Barrow Borough Council,Local Restrictions Support Grant (Closed)�Addendum�,Accommodation And Food Service Activities,05-Jan-21,LRSG_0473,Lucidity Group/Townhouse,2000.00
Barrow Borough Council,Local Restrictions Support Grant (Closed)�Addendum�,Wholesale And Retail Trade; Repair Of Motor Vehicles And Motorcycles,05-Jan-21,LRSG_0474,Business Grant Recipient,1334.00
Barrow Borough Council,Local Restrictions Support Grant (Closed)�Addendum�,Accommodation And Food Service Activities,05-Jan-21,LRSG_0475,Hawthorn Leisure Honey Ltd,2000.00
Barrow Borough Council,Local Restrictions Support Grant (Closed)�Addendum�,Wholesale And Retail Trade; Repair Of Motor Vehicles And Motorcycles,05-Jan-21,LRSG_0476,CJS Car Sales,1334.00
Barrow Borough Council,Local Restrictions Support Grant (Closed)�Addendum�,Wholesale And Retail Trade; Repair Of Motor Vehicles And Motorcycles,05-Jan-21,LRSG_0477,Business Grant Recipient,1334.00
Barrow Borough Council,Local Restrictions Support Grant (Closed)�Addendum�,Wholesale And Retail Trade; Repair Of Motor Vehicles And Motorcycles,05-Jan-21,LRSG_0478,Business Grant Recipient,1334.00
Barrow Borough Council,Local Restrictions Support Grant (Closed)�Addendum�,Wholesale And Retail Trade; Repair Of Motor Vehicles And Motorcycles,05-Jan-21,LRSG_0479,Speed of Sound LTD,1334.00
Barrow Borough Council,Local Restrictions Support Grant (Open)�,Accommodation And Food Service Activities,05-Jan-21,LRSG_0480,Hawthorn Leisure Honey Ltd,950.00
Barrow Borough Council,Local Restrictions Support Grant (Open)�,"Arts, Entertainment And Recreation",05-Jan-21,LRSG_0481,West Shore Bowling Club,633.79
Barrow Borough Council,Local Restrictions Support Grant (Closed)�Addendum�,Wholesale And Retail Trade; Repair Of Motor Vehicles And Motorcycles,06-Jan-21,LRSG_0482,Pozo Barber,1334.00
Barrow Borough Council,Local Restrictions Support Grant (Closed)�Addendum�,Accommodation And Food Service Activities,06-Jan-21,LRSG_0483,Business Grant Recipient,2000.00
Barrow Borough Council,Local Restrictions Support Grant (Closed)�Addendum�,Accommodation And Food Service Activities,06-Jan-21,LRSG_0484,CHAD in Askam Limited,1334.00
Barrow Borough Council,Local Restrictions Support Grant (Open)�,Accommodation And Food Service Activities,06-Jan-21,LRSG_0485,Business Grant Recipient,950.00
Barrow Borough Council,Local Restrictions Support Grant (Open)�,Accommodation And Food Service Activities,06-Jan-21,LRSG_0486,Beluto Properties,950.00
Barrow Borough Council,Local Restrictions Support Grant (Closed)�Addendum�,Wholesale And Retail Trade; Repair Of Motor Vehicles And Motorcycles,07-Jan-21,LRSG_0487,Business Grant Recipient,1334.00
Barrow Borough Council,Local Restrictions Support Grant (Closed)�Addendum�,Wholesale And Retail Trade; Repair Of Motor Vehicles And Motorcycles,07-Jan-21,LRSG_0488,Business Grant Recipient,1334.00
Barrow Borough Council,Local Restrictions Support Grant (Closed)�Addendum�,Wholesale And Retail Trade; Repair Of Motor Vehicles And Motorcycles,07-Jan-21,LRSG_0489,The Owl Sanctuary,1334.00
Barrow Borough Council,Local Restrictions Support Grant (Closed)�Addendum�,Wholesale And Retail Trade; Repair Of Motor Vehicles And Motorcycles,08-Jan-21,LRSG_0490,South Lakes Interiors Ltd,1334.00
Barrow Borough Council,Local Restrictions Support Grant (Closed)�Addendum�,Wholesale And Retail Trade; Repair Of Motor Vehicles And Motorcycles,08-Jan-21,LRSG_0491,Business Grant Recipient,1334.00
Barrow Borough Council,Christmas Support Payment for �wet-led pubs� (CSP),Accommodation And Food Service Activities,08-Jan-21,LRSG_0492,Nautical Club,1000.00
Barrow Borough Council,Christmas Support Payment for �wet-led pubs� (CSP),,08-Jan-21,LRSG_0493,Royal Naval Association Club,1000.00
Barrow Borough Council,Christmas Support Payment for �wet-led pubs� (CSP),Accommodation And Food Service Activities,08-Jan-21,LRSG_0494,"British Legion Club,",1000.00
Barrow Borough Council,Christmas Support Payment for �wet-led pubs� (CSP),Accommodation And Food Service Activities,08-Jan-21,LRSG_0495,Central Preston st working mens club,1000.00
Barrow Borough Council,Christmas Support Payment for �wet-led pubs� (CSP),Accommodation And Food Service Activities,08-Jan-21,LRSG_0496,Business Grant Recipient,1000.00
Barrow Borough Council,Christmas Support Payment for �wet-led pubs� (CSP),Accommodation And Food Service Activities,08-Jan-21,LRSG_0497,"Barrow Afc Supporters Club,",1000.00
Barrow Borough Council,Christmas Support Payment for �wet-led pubs� (CSP),Accommodation And Food Service Activities,08-Jan-21,LRSG_0498,Business Grant Recipient,1000.00
Barrow Borough Council,Christmas Support Payment for �wet-led pubs� (CSP),Accommodation And Food Service Activities,08-Jan-21,LRSG_0499,Barrow Labour Club,1000.00
Barrow Borough Council,Christmas Support Payment for �wet-led pubs� (CSP),Accommodation And Food Service Activities,08-Jan-21,LRSG_0500,Business Grant Recipient,1000.00
Barrow Borough Council,Christmas Support Payment for �wet-led pubs� (CSP),Accommodation And Food Service Activities,08-Jan-21,LRSG_0501,Business Grant Recipient,1000.00
Barrow Borough Council,Christmas Support Payment for �wet-led pubs� (CSP),"Arts, Entertainment And Recreation",08-Jan-21,LRSG_0502,Duddon Sports & Social Club,1000.00
Barrow Borough Council,Christmas Support Payment for �wet-led pubs� (CSP),Accommodation And Food Service Activities,08-Jan-21,LRSG_0503,Business Grant Recipient,1000.00
Barrow Borough Council,Christmas Support Payment for �wet-led pubs� (CSP),Accommodation And Food Service Activities,08-Jan-21,LRSG_0504,Business Grant Recipient,1000.00
Barrow Borough Council,Christmas Support Payment for �wet-led pubs� (CSP),Accommodation And Food Service Activities,08-Jan-21,LRSG_0505,Business Grant Recipient,1000.00
Barrow Borough Council,Christmas Support Payment for �wet-led pubs� (CSP),Accommodation And Food Service Activities,08-Jan-21,LRSG_0506,Business Grant Recipient,1000.00
Barrow Borough Council,Christmas Support Payment for �wet-led pubs� (CSP),Accommodation And Food Service Activities,08-Jan-21,LRSG_0507,Business Grant Recipient,1000.00
Barrow Borough Council,Christmas Support Payment for �wet-led pubs� (CSP),Accommodation And Food Service Activities,08-Jan-21,LRSG_0508, The Rams Head Pub,1000.00
Barrow Borough Council,Christmas Support Payment for �wet-led pubs� (CSP),Accommodation And Food Service Activities,08-Jan-21,LRSG_0509,Business Grant Recipient,1000.00
Barrow Borough Council,Christmas Support Payment for �wet-led pubs� (CSP),Accommodation And Food Service Activities,08-Jan-21,LRSG_0510,Lara Gibbons Ltd,1000.00
Barrow Borough Council,Christmas Support Payment for �wet-led pubs� (CSP),Accommodation And Food Service Activities,08-Jan-21,LRSG_0511,Business Grant Recipient,1000.00
Barrow Borough Council,Christmas Support Payment for �wet-led pubs� (CSP),Accommodation And Food Service Activities,08-Jan-21,LRSG_0512,Britannia Inn (Church Street) Ltd ,1000.00
Barrow Borough Council,Christmas Support Payment for �wet-led pubs� (CSP),Accommodation And Food Service Activities,08-Jan-21,LRSG_0513,Business Grant Recipient,1000.00
Barrow Borough Council,Christmas Support Payment for �wet-led pubs� (CSP),Accommodation And Food Service Activities,08-Jan-21,LRSG_0514,Mk'S Liverpool Ltd,1000.00
Barrow Borough Council,Christmas Support Payment for �wet-led pubs� (CSP),Accommodation And Food Service Activities,08-Jan-21,LRSG_0515,"Greengate Workingmen'S,",1000.00
Barrow Borough Council,Christmas Support Payment for �wet-led pubs� (CSP),Accommodation And Food Service Activities,08-Jan-21,LRSG_0516,Business Grant Recipient,1000.00
Barrow Borough Council,Christmas Support Payment for �wet-led pubs� (CSP),Accommodation And Food Service Activities,08-Jan-21,LRSG_0517,Business Grant Recipient,1000.00
Barrow Borough Council,Christmas Support Payment for �wet-led pubs� (CSP),Accommodation And Food Service Activities,08-Jan-21,LRSG_0518,Barrow Sporting Club Limited,1000.00
Barrow Borough Council,Christmas Support Payment for �wet-led pubs� (CSP),Accommodation And Food Service Activities,08-Jan-21,LRSG_0519,Hoperiver Limited,1000.00
Barrow Borough Council,Christmas Support Payment for �wet-led pubs� (CSP),Accommodation And Food Service Activities,08-Jan-21,LRSG_0520,The Lounge Group Limited,1000.00
Barrow Borough Council,Christmas Support Payment for �wet-led pubs� (CSP),Accommodation And Food Service Activities,08-Jan-21,LRSG_0521,Harrbains Ltd,1000.00
Barrow Borough Council,Christmas Support Payment for �wet-led pubs� (CSP),Accommodation And Food Service Activities,08-Jan-21,LRSG_0522,The Harbour Inn Barrow Ltd,1000.00
Barrow Borough Council,Christmas Support Payment for �wet-led pubs� (CSP),Accommodation And Food Service Activities,08-Jan-21,LRSG_0523,Hawthorn Leisure Honey Ltd,1000.00
Barrow Borough Council,Christmas Support Payment for �wet-led pubs� (CSP),Accommodation And Food Service Activities,08-Jan-21,LRSG_0524,Business Grant Recipient,1000.00
Barrow Borough Council,Christmas Support Payment for �wet-led pubs� (CSP),Accommodation And Food Service Activities,08-Jan-21,LRSG_0525,Ambrose Hotel,1000.00
Barrow Borough Council,Christmas Support Payment for �wet-led pubs� (CSP),Accommodation And Food Service Activities,08-Jan-21,LRSG_0526,Hawcoat Park Ltd,1000.00
Barrow Borough Council,Local Restrictions Support Grant (Closed)�Addendum�,Wholesale And Retail Trade; Repair Of Motor Vehicles And Motorcycles,11-Jan-21,LRSG_0527,Business Grant Recipient,1334.00
Barrow Borough Council,Local Restrictions Support Grant (Closed)�Addendum�,Wholesale And Retail Trade; Repair Of Motor Vehicles And Motorcycles,11-Jan-21,LRSG_0528,Business Grant Recipient,1334.00
Barrow Borough Council,Christmas Support Payment for �wet-led pubs� (CSP),Accommodation And Food Service Activities,11-Jan-21,LRSG_0529,Business Grant Recipient,1000.00
Barrow Borough Council,Local Restrictions Support Grant (Sector)�,Accommodation And Food Service Activities,13-Jan-21,LRSG_0530,Manhattans Barrow Limited,285.71
Barrow Borough Council,Local Restrictions Support Grant (Open)�,Accommodation And Food Service Activities,13-Jan-21,LRSG_0531,Healeys Bar Ltd,-633.79
Barrow Borough Council,Local Restrictions Support Grant (Closed)�Addendum�,Accommodation And Food Service Activities,14-Jan-21,LRSG_0532,Manhattans Barrow Limited,2000.00
Barrow Borough Council,Local Restrictions Support Grant (Closed)�Addendum�,Accommodation And Food Service Activities,14-Jan-21,LRSG_0533,Lemmy Barrow Ltd,2000.00
Barrow Borough Council,Local Restrictions Support Grant (Closed)�Addendum�,Wholesale And Retail Trade; Repair Of Motor Vehicles And Motorcycles,14-Jan-21,LRSG_0534,Business Grant Recipient,1334.00
Barrow Borough Council,Local Restrictions Support Grant (Open)�,Accommodation And Food Service Activities,14-Jan-21,LRSG_0535,Business Grant Recipient,633.79
Barrow Borough Council,Local Restrictions Support Grant (Open)�,Accommodation And Food Service Activities,14-Jan-21,LRSG_0536,Business Grant Recipient,950.00
Barrow Borough Council,Christmas Support Payment for �wet-led pubs� (CSP),Accommodation And Food Service Activities,15-Jan-21,LRSG_0537,Bar 20 Dalton Limited,1000.00
Barrow Borough Council,Local Restrictions Support Grant (Closed)�Addendum�,Wholesale And Retail Trade; Repair Of Motor Vehicles And Motorcycles,15-Jan-21,LRSG_0538,Thomas Ellor South Lakes Cars,1334.00
Barrow Borough Council,Local Restrictions Support Grant (Open)�,Wholesale And Retail Trade; Repair Of Motor Vehicles And Motorcycles,15-Jan-21,LRSG_0539,Gold Planner Ltd,950.00
Barrow Borough Council,Local Restrictions Support Grant (Closed) Addendum: Tier 4,Wholesale And Retail Trade; Repair Of Motor Vehicles And Motorcycles,15-Jan-21,LRSG_0540,Bliss pedispa ,238.21
Barrow Borough Council,Local Restrictions Support Grant (Closed) Addendum: 5 January onwards,Wholesale And Retail Trade; Repair Of Motor Vehicles And Motorcycles,15-Jan-21,LRSG_0541,Bliss pedispa ,2001.00
Barrow Borough Council,Local Restrictions Support Grant (Closed) Addendum: Tier 4,Wholesale And Retail Trade; Repair Of Motor Vehicles And Motorcycles,15-Jan-21,LRSG_0542, Radiance Beauty,238.21
Barrow Borough Council,Local Restrictions Support Grant (Closed) Addendum: 5 January onwards,Wholesale And Retail Trade; Repair Of Motor Vehicles And Motorcycles,15-Jan-21,LRSG_0543, Radiance Beauty,2001.00
Barrow Borough Council,Local Restrictions Support Grant (Closed) Addendum: Tier 4,Wholesale And Retail Trade; Repair Of Motor Vehicles And Motorcycles,15-Jan-21,LRSG_0544, So Silver,238.21
Barrow Borough Council,Local Restrictions Support Grant (Closed) Addendum: 5 January onwards,Wholesale And Retail Trade; Repair Of Motor Vehicles And Motorcycles,15-Jan-21,LRSG_0545, So Silver,2001.00
Barrow Borough Council,Local Restrictions Support Grant (Closed) Addendum: Tier 4,Wholesale And Retail Trade; Repair Of Motor Vehicles And Motorcycles,15-Jan-21,LRSG_0546,Business Grant Recipient,238.21
Barrow Borough Council,Local Restrictions Support Grant (Closed) Addendum: 5 January onwards,Wholesale And Retail Trade; Repair Of Motor Vehicles And Motorcycles,15-Jan-21,LRSG_0547,Business Grant Recipient,2001.00
Barrow Borough Council,Local Restrictions Support Grant (Closed) Addendum: Tier 4,"Arts, Entertainment And Recreation",15-Jan-21,LRSG_0548,Business Grant Recipient,238.21
Barrow Borough Council,Local Restrictions Support Grant (Closed) Addendum: 5 January onwards,"Arts, Entertainment And Recreation",15-Jan-21,LRSG_0549,Business Grant Recipient,2001.00
Barrow Borough Council,Local Restrictions Support Grant (Closed) Addendum: Tier 4,Wholesale And Retail Trade; Repair Of Motor Vehicles And Motorcycles,15-Jan-21,LRSG_0550,Investacc Pension Trustees Limited,238.21
Barrow Borough Council,Local Restrictions Support Grant (Closed) Addendum: 5 January onwards,Wholesale And Retail Trade; Repair Of Motor Vehicles And Motorcycles,15-Jan-21,LRSG_0551,Investacc Pension Trustees Limited,2001.00
Barrow Borough Council,Local Restrictions Support Grant (Closed) Addendum: Tier 4,Wholesale And Retail Trade; Repair Of Motor Vehicles And Motorcycles,15-Jan-21,LRSG_0552,Polished Nail and Beauty Training & Cara Tinning Skin Clinic ,238.21
Barrow Borough Council,Local Restrictions Support Grant (Closed) Addendum: 5 January onwards,Wholesale And Retail Trade; Repair Of Motor Vehicles And Motorcycles,15-Jan-21,LRSG_0553,Polished Nail and Beauty Training & Cara Tinning Skin Clinic ,2001.00
Barrow Borough Council,Local Restrictions Support Grant (Closed) Addendum: Tier 4,Wholesale And Retail Trade; Repair Of Motor Vehicles And Motorcycles,15-Jan-21,LRSG_0554,Business Grant Recipient,238.21
Barrow Borough Council,Local Restrictions Support Grant (Closed) Addendum: 5 January onwards,Wholesale And Retail Trade; Repair Of Motor Vehicles And Motorcycles,15-Jan-21,LRSG_0555,Business Grant Recipient,2001.00
Barrow Borough Council,Local Restrictions Support Grant (Closed) Addendum: Tier 4,Wholesale And Retail Trade; Repair Of Motor Vehicles And Motorcycles,15-Jan-21,LRSG_0556,Furness Laptop Repair Limited,238.21
Barrow Borough Council,Local Restrictions Support Grant (Closed) Addendum: 5 January onwards,Wholesale And Retail Trade; Repair Of Motor Vehicles And Motorcycles,15-Jan-21,LRSG_0557,Furness Laptop Repair Limited,2001.00
Barrow Borough Council,Local Restrictions Support Grant (Closed) Addendum: Tier 4,Wholesale And Retail Trade; Repair Of Motor Vehicles And Motorcycles,15-Jan-21,LRSG_0558,Feel Fabulous Hair and Beauty Ltd,238.21
Barrow Borough Council,Local Restrictions Support Grant (Closed) Addendum: 5 January onwards,Wholesale And Retail Trade; Repair Of Motor Vehicles And Motorcycles,15-Jan-21,LRSG_0559,Feel Fabulous Hair and Beauty Ltd,2001.00
Barrow Borough Council,Local Restrictions Support Grant (Closed) Addendum: Tier 4,Wholesale And Retail Trade; Repair Of Motor Vehicles And Motorcycles,15-Jan-21,LRSG_0560,Business Grant Recipient,238.21
Barrow Borough Council,Local Restrictions Support Grant (Closed) Addendum: 5 January onwards,Wholesale And Retail Trade; Repair Of Motor Vehicles And Motorcycles,15-Jan-21,LRSG_0561,Business Grant Recipient,2001.00
Barrow Borough Council,Local Restrictions Support Grant (Closed) Addendum: Tier 4,Wholesale And Retail Trade; Repair Of Motor Vehicles And Motorcycles,15-Jan-21,LRSG_0562,Cutting Edge Dalton Ltd,238.21
Barrow Borough Council,Local Restrictions Support Grant (Closed) Addendum: 5 January onwards,Wholesale And Retail Trade; Repair Of Motor Vehicles And Motorcycles,15-Jan-21,LRSG_0563,Cutting Edge Dalton Ltd,2001.00
Barrow Borough Council,Local Restrictions Support Grant (Closed) Addendum: Tier 4,Wholesale And Retail Trade; Repair Of Motor Vehicles And Motorcycles,15-Jan-21,LRSG_0564,Business Grant Recipient,238.21
Barrow Borough Council,Local Restrictions Support Grant (Closed) Addendum: 5 January onwards,Wholesale And Retail Trade; Repair Of Motor Vehicles And Motorcycles,15-Jan-21,LRSG_0565,Business Grant Recipient,2001.00
Barrow Borough Council,Local Restrictions Support Grant (Closed) Addendum: Tier 4,Wholesale And Retail Trade; Repair Of Motor Vehicles And Motorcycles,15-Jan-21,LRSG_0566,Business Grant Recipient,238.21
Barrow Borough Council,Local Restrictions Support Grant (Closed) Addendum: 5 January onwards,Wholesale And Retail Trade; Repair Of Motor Vehicles And Motorcycles,15-Jan-21,LRSG_0567,Business Grant Recipient,2001.00
Barrow Borough Council,Local Restrictions Support Grant (Closed) Addendum: Tier 4,Wholesale And Retail Trade; Repair Of Motor Vehicles And Motorcycles,15-Jan-21,LRSG_0568,Business Grant Recipient,238.21
Barrow Borough Council,Local Restrictions Support Grant (Closed) Addendum: 5 January onwards,Wholesale And Retail Trade; Repair Of Motor Vehicles And Motorcycles,15-Jan-21,LRSG_0569,Business Grant Recipient,2001.00
Barrow Borough Council,Local Restrictions Support Grant (Closed) Addendum: Tier 4,Wholesale And Retail Trade; Repair Of Motor Vehicles And Motorcycles,15-Jan-21,LRSG_0570,Business Grant Recipient,238.21
Barrow Borough Council,Local Restrictions Support Grant (Closed) Addendum: 5 January onwards,Wholesale And Retail Trade; Repair Of Motor Vehicles And Motorcycles,15-Jan-21,LRSG_0571,Business Grant Recipient,2001.00
Barrow Borough Council,Local Restrictions Support Grant (Closed) Addendum: Tier 4,Wholesale And Retail Trade; Repair Of Motor Vehicles And Motorcycles,15-Jan-21,LRSG_0572,Business Grant Recipient,238.21
Barrow Borough Council,Local Restrictions Support Grant (Closed) Addendum: 5 January onwards,Wholesale And Retail Trade; Repair Of Motor Vehicles And Motorcycles,15-Jan-21,LRSG_0573,Business Grant Recipient,2001.00
Barrow Borough Council,Local Restrictions Support Grant (Closed) Addendum: Tier 4,Wholesale And Retail Trade; Repair Of Motor Vehicles And Motorcycles,15-Jan-21,LRSG_0574,Business Grant Recipient,238.21
Barrow Borough Council,Local Restrictions Support Grant (Closed) Addendum: 5 January onwards,Wholesale And Retail Trade; Repair Of Motor Vehicles And Motorcycles,15-Jan-21,LRSG_0575,Business Grant Recipient,2001.00
Barrow Borough Council,Local Restrictions Support Grant (Closed) Addendum: Tier 4,Wholesale And Retail Trade; Repair Of Motor Vehicles And Motorcycles,15-Jan-21,LRSG_0576,G Richardson Gentry,238.21
Barrow Borough Council,Local Restrictions Support Grant (Closed) Addendum: 5 January onwards,Wholesale And Retail Trade; Repair Of Motor Vehicles And Motorcycles,15-Jan-21,LRSG_0577,G Richardson Gentry,2001.00
Barrow Borough Council,Local Restrictions Support Grant (Closed) Addendum: Tier 4,Wholesale And Retail Trade; Repair Of Motor Vehicles And Motorcycles,15-Jan-21,LRSG_0578,Business Grant Recipient,238.21
Barrow Borough Council,Local Restrictions Support Grant (Closed) Addendum: 5 January onwards,Wholesale And Retail Trade; Repair Of Motor Vehicles And Motorcycles,15-Jan-21,LRSG_0579,Business Grant Recipient,2001.00
Barrow Borough Council,Local Restrictions Support Grant (Closed) Addendum: Tier 4,Wholesale And Retail Trade; Repair Of Motor Vehicles And Motorcycles,15-Jan-21,LRSG_0580,17sport,238.21
Barrow Borough Council,Local Restrictions Support Grant (Closed) Addendum: 5 January onwards,Wholesale And Retail Trade; Repair Of Motor Vehicles And Motorcycles,15-Jan-21,LRSG_0581,17sport,2001.00
Barrow Borough Council,Local Restrictions Support Grant (Closed) Addendum: Tier 4,Wholesale And Retail Trade; Repair Of Motor Vehicles And Motorcycles,15-Jan-21,LRSG_0582,Business Grant Recipient,238.21
Barrow Borough Council,Local Restrictions Support Grant (Closed) Addendum: 5 January onwards,Wholesale And Retail Trade; Repair Of Motor Vehicles And Motorcycles,15-Jan-21,LRSG_0583,Business Grant Recipient,2001.00
Barrow Borough Council,Local Restrictions Support Grant (Closed) Addendum: Tier 4,Accommodation And Food Service Activities,15-Jan-21,LRSG_0584,Business Grant Recipient,238.21
Barrow Borough Council,Local Restrictions Support Grant (Closed) Addendum: 5 January onwards,Accommodation And Food Service Activities,15-Jan-21,LRSG_0585,Business Grant Recipient,2001.00
Barrow Borough Council,Local Restrictions Support Grant (Closed) Addendum: Tier 4,Wholesale And Retail Trade; Repair Of Motor Vehicles And Motorcycles,15-Jan-21,LRSG_0586,"RWE Tanning Ltd, T/A The Sun Shack",238.21
Barrow Borough Council,Local Restrictions Support Grant (Closed) Addendum: 5 January onwards,Wholesale And Retail Trade; Repair Of Motor Vehicles And Motorcycles,15-Jan-21,LRSG_0587,"RWE Tanning Ltd, T/A The Sun Shack",2001.00
Barrow Borough Council,Local Restrictions Support Grant (Closed) Addendum: Tier 4,Wholesale And Retail Trade; Repair Of Motor Vehicles And Motorcycles,15-Jan-21,LRSG_0588,Business Grant Recipient,238.21
Barrow Borough Council,Local Restrictions Support Grant (Closed) Addendum: 5 January onwards,Wholesale And Retail Trade; Repair Of Motor Vehicles And Motorcycles,15-Jan-21,LRSG_0589,Business Grant Recipient,2001.00
Barrow Borough Council,Local Restrictions Support Grant (Closed) Addendum: Tier 4,Wholesale And Retail Trade; Repair Of Motor Vehicles And Motorcycles,15-Jan-21,LRSG_0590,Abbey Rd car sale ltd,238.21
Barrow Borough Council,Local Restrictions Support Grant (Closed) Addendum: 5 January onwards,Wholesale And Retail Trade; Repair Of Motor Vehicles And Motorcycles,15-Jan-21,LRSG_0591,Abbey Rd car sale ltd,2001.00
Barrow Borough Council,Local Restrictions Support Grant (Closed) Addendum: Tier 4,Wholesale And Retail Trade; Repair Of Motor Vehicles And Motorcycles,15-Jan-21,LRSG_0592,Business Grant Recipient,238.21
Barrow Borough Council,Local Restrictions Support Grant (Closed) Addendum: 5 January onwards,Wholesale And Retail Trade; Repair Of Motor Vehicles And Motorcycles,15-Jan-21,LRSG_0593,Business Grant Recipient,2001.00
Barrow Borough Council,Local Restrictions Support Grant (Closed) Addendum: Tier 4,Wholesale And Retail Trade; Repair Of Motor Vehicles And Motorcycles,15-Jan-21,LRSG_0594,Business Grant Recipient,238.21
Barrow Borough Council,Local Restrictions Support Grant (Closed) Addendum: 5 January onwards,Wholesale And Retail Trade; Repair Of Motor Vehicles And Motorcycles,15-Jan-21,LRSG_0595,Business Grant Recipient,2001.00
Barrow Borough Council,Local Restrictions Support Grant (Closed) Addendum: Tier 4,Wholesale And Retail Trade; Repair Of Motor Vehicles And Motorcycles,15-Jan-21,LRSG_0596,Business Grant Recipient,238.21
Barrow Borough Council,Local Restrictions Support Grant (Closed) Addendum: 5 January onwards,Wholesale And Retail Trade; Repair Of Motor Vehicles And Motorcycles,15-Jan-21,LRSG_0597,Business Grant Recipient,2001.00
Barrow Borough Council,Local Restrictions Support Grant (Closed) Addendum: Tier 4,Accommodation And Food Service Activities,15-Jan-21,LRSG_0598,The Barrow Rugby Football Club Ltd,238.21
Barrow Borough Council,Local Restrictions Support Grant (Closed) Addendum: 5 January onwards,Accommodation And Food Service Activities,15-Jan-21,LRSG_0599,The Barrow Rugby Football Club Ltd,2001.00
Barrow Borough Council,Local Restrictions Support Grant (Closed) Addendum: Tier 4,Wholesale And Retail Trade; Repair Of Motor Vehicles And Motorcycles,15-Jan-21,LRSG_0600,Salon One Highfield Limited,238.21
Barrow Borough Council,Local Restrictions Support Grant (Closed) Addendum: 5 January onwards,Wholesale And Retail Trade; Repair Of Motor Vehicles And Motorcycles,15-Jan-21,LRSG_0601,Salon One Highfield Limited,2001.00
Barrow Borough Council,Local Restrictions Support Grant (Closed) Addendum: Tier 4,Wholesale And Retail Trade; Repair Of Motor Vehicles And Motorcycles,15-Jan-21,LRSG_0602, Sweetie Pies,238.21
Barrow Borough Council,Local Restrictions Support Grant (Closed) Addendum: 5 January onwards,Wholesale And Retail Trade; Repair Of Motor Vehicles And Motorcycles,15-Jan-21,LRSG_0603, Sweetie Pies,2001.00
Barrow Borough Council,Local Restrictions Support Grant (Closed) Addendum: Tier 4,Wholesale And Retail Trade; Repair Of Motor Vehicles And Motorcycles,15-Jan-21,LRSG_0604,Business Grant Recipient,238.21
Barrow Borough Council,Local Restrictions Support Grant (Closed) Addendum: 5 January onwards,Wholesale And Retail Trade; Repair Of Motor Vehicles And Motorcycles,15-Jan-21,LRSG_0605,Business Grant Recipient,2001.00
Barrow Borough Council,Local Restrictions Support Grant (Closed) Addendum: Tier 4,Wholesale And Retail Trade; Repair Of Motor Vehicles And Motorcycles,15-Jan-21,LRSG_0606,Business Grant Recipient,238.21
Barrow Borough Council,Local Restrictions Support Grant (Closed) Addendum: 5 January onwards,Wholesale And Retail Trade; Repair Of Motor Vehicles And Motorcycles,15-Jan-21,LRSG_0607,Business Grant Recipient,2001.00
Barrow Borough Council,Local Restrictions Support Grant (Closed) Addendum: Tier 4,Other Service Activities,15-Jan-21,LRSG_0608,Love Yoga,238.21
Barrow Borough Council,Local Restrictions Support Grant (Closed) Addendum: 5 January onwards,Other Service Activities,15-Jan-21,LRSG_0609,Love Yoga,2001.00
Barrow Borough Council,Local Restrictions Support Grant (Closed) Addendum: Tier 4,Wholesale And Retail Trade; Repair Of Motor Vehicles And Motorcycles,15-Jan-21,LRSG_0610,Autoimage Cars LTD,238.21
Barrow Borough Council,Local Restrictions Support Grant (Closed) Addendum: 5 January onwards,Wholesale And Retail Trade; Repair Of Motor Vehicles And Motorcycles,15-Jan-21,LRSG_0611,Autoimage Cars LTD,2001.00
Barrow Borough Council,Local Restrictions Support Grant (Closed) Addendum: Tier 4,Wholesale And Retail Trade; Repair Of Motor Vehicles And Motorcycles,15-Jan-21,LRSG_0612,Maiquez Limited,357.14
Barrow Borough Council,Local Restrictions Support Grant (Closed) Addendum: 5 January onwards,Wholesale And Retail Trade; Repair Of Motor Vehicles And Motorcycles,15-Jan-21,LRSG_0613,Maiquez Limited,3000.00
Barrow Borough Council,Local Restrictions Support Grant (Closed) Addendum: Tier 4,Other Service Activities,15-Jan-21,LRSG_0614,Business Grant Recipient,238.21
Barrow Borough Council,Local Restrictions Support Grant (Closed) Addendum: 5 January onwards,Other Service Activities,15-Jan-21,LRSG_0615,Business Grant Recipient,2001.00
Barrow Borough Council,Local Restrictions Support Grant (Closed) Addendum: Tier 4,Wholesale And Retail Trade; Repair Of Motor Vehicles And Motorcycles,15-Jan-21,LRSG_0616,Efflorescence Ltd,238.21
Barrow Borough Council,Local Restrictions Support Grant (Closed) Addendum: 5 January onwards,Wholesale And Retail Trade; Repair Of Motor Vehicles And Motorcycles,15-Jan-21,LRSG_0617,Efflorescence Ltd,2001.00
Barrow Borough Council,Local Restrictions Support Grant (Closed) Addendum: Tier 4,Wholesale And Retail Trade; Repair Of Motor Vehicles And Motorcycles,15-Jan-21,LRSG_0618,Business Grant Recipient,238.21
Barrow Borough Council,Local Restrictions Support Grant (Closed) Addendum: 5 January onwards,Wholesale And Retail Trade; Repair Of Motor Vehicles And Motorcycles,15-Jan-21,LRSG_0619,Business Grant Recipient,2001.00
Barrow Borough Council,Local Restrictions Support Grant (Closed) Addendum: Tier 4,Wholesale And Retail Trade; Repair Of Motor Vehicles And Motorcycles,15-Jan-21,LRSG_0620,HH77 LTD,357.14
Barrow Borough Council,Local Restrictions Support Grant (Closed) Addendum: 5 January onwards,Wholesale And Retail Trade; Repair Of Motor Vehicles And Motorcycles,15-Jan-21,LRSG_0621,HH77 LTD,3000.00
Barrow Borough Council,Local Restrictions Support Grant (Closed) Addendum: Tier 4,Wholesale And Retail Trade; Repair Of Motor Vehicles And Motorcycles,15-Jan-21,LRSG_0622,Business Grant Recipient,238.21
Barrow Borough Council,Local Restrictions Support Grant (Closed) Addendum: 5 January onwards,Wholesale And Retail Trade; Repair Of Motor Vehicles And Motorcycles,15-Jan-21,LRSG_0623,Business Grant Recipient,2001.00
Barrow Borough Council,Local Restrictions Support Grant (Closed) Addendum: Tier 4,Wholesale And Retail Trade; Repair Of Motor Vehicles And Motorcycles,15-Jan-21,LRSG_0624,Business Grant Recipient,238.21
Barrow Borough Council,Local Restrictions Support Grant (Closed) Addendum: 5 January onwards,Wholesale And Retail Trade; Repair Of Motor Vehicles And Motorcycles,15-Jan-21,LRSG_0625,Business Grant Recipient,2001.00
Barrow Borough Council,Local Restrictions Support Grant (Closed) Addendum: Tier 4,Wholesale And Retail Trade; Repair Of Motor Vehicles And Motorcycles,15-Jan-21,LRSG_0626,Kutz Barrow,238.21
Barrow Borough Council,Local Restrictions Support Grant (Closed) Addendum: 5 January onwards,Wholesale And Retail Trade; Repair Of Motor Vehicles And Motorcycles,15-Jan-21,LRSG_0627,Kutz Barrow,2001.00
Barrow Borough Council,Local Restrictions Support Grant (Closed) Addendum: Tier 4,Wholesale And Retail Trade; Repair Of Motor Vehicles And Motorcycles,15-Jan-21,LRSG_0628,Lads and Dads Clothing Ltd,238.21
Barrow Borough Council,Local Restrictions Support Grant (Closed) Addendum: 5 January onwards,Wholesale And Retail Trade; Repair Of Motor Vehicles And Motorcycles,15-Jan-21,LRSG_0629,Lads and Dads Clothing Ltd,2001.00
Barrow Borough Council,Local Restrictions Support Grant (Closed) Addendum: Tier 4,Wholesale And Retail Trade; Repair Of Motor Vehicles And Motorcycles,15-Jan-21,LRSG_0630,Weird or Wonderful Ltd,238.21
Barrow Borough Council,Local Restrictions Support Grant (Closed) Addendum: 5 January onwards,Wholesale And Retail Trade; Repair Of Motor Vehicles And Motorcycles,15-Jan-21,LRSG_0631,Weird or Wonderful Ltd,2001.00
Barrow Borough Council,Local Restrictions Support Grant (Closed) Addendum: Tier 4,Wholesale And Retail Trade; Repair Of Motor Vehicles And Motorcycles,15-Jan-21,LRSG_0632,Business Grant Recipient,238.21
Barrow Borough Council,Local Restrictions Support Grant (Closed) Addendum: 5 January onwards,Wholesale And Retail Trade; Repair Of Motor Vehicles And Motorcycles,15-Jan-21,LRSG_0633,Business Grant Recipient,2001.00
Barrow Borough Council,Local Restrictions Support Grant (Closed) Addendum: Tier 4,Wholesale And Retail Trade; Repair Of Motor Vehicles And Motorcycles,15-Jan-21,LRSG_0634,Searle Audio Ltd,238.21
Barrow Borough Council,Local Restrictions Support Grant (Closed) Addendum: 5 January onwards,Wholesale And Retail Trade; Repair Of Motor Vehicles And Motorcycles,15-Jan-21,LRSG_0635,Searle Audio Ltd,2001.00
Barrow Borough Council,Local Restrictions Support Grant (Closed) Addendum: Tier 4,Wholesale And Retail Trade; Repair Of Motor Vehicles And Motorcycles,15-Jan-21,LRSG_0636,Business Grant Recipient,238.21
Barrow Borough Council,Local Restrictions Support Grant (Closed) Addendum: 5 January onwards,Wholesale And Retail Trade; Repair Of Motor Vehicles And Motorcycles,15-Jan-21,LRSG_0637,Business Grant Recipient,2001.00
Barrow Borough Council,Local Restrictions Support Grant (Closed) Addendum: Tier 4,Wholesale And Retail Trade; Repair Of Motor Vehicles And Motorcycles,15-Jan-21,LRSG_0638,Business Grant Recipient,238.21
Barrow Borough Council,Local Restrictions Support Grant (Closed) Addendum: 5 January onwards,Wholesale And Retail Trade; Repair Of Motor Vehicles And Motorcycles,15-Jan-21,LRSG_0639,Business Grant Recipient,2001.00
Barrow Borough Council,Local Restrictions Support Grant (Closed) Addendum: Tier 4,Wholesale And Retail Trade; Repair Of Motor Vehicles And Motorcycles,15-Jan-21,LRSG_0640,Business Grant Recipient,238.21
Barrow Borough Council,Local Restrictions Support Grant (Closed) Addendum: 5 January onwards,Wholesale And Retail Trade; Repair Of Motor Vehicles And Motorcycles,15-Jan-21,LRSG_0641,Business Grant Recipient,2001.00
Barrow Borough Council,Local Restrictions Support Grant (Closed) Addendum: Tier 4,Wholesale And Retail Trade; Repair Of Motor Vehicles And Motorcycles,15-Jan-21,LRSG_0642,Business Grant Recipient,238.21
Barrow Borough Council,Local Restrictions Support Grant (Closed) Addendum: 5 January onwards,Wholesale And Retail Trade; Repair Of Motor Vehicles And Motorcycles,15-Jan-21,LRSG_0643,Business Grant Recipient,2001.00
Barrow Borough Council,Local Restrictions Support Grant (Closed) Addendum: Tier 4,Wholesale And Retail Trade; Repair Of Motor Vehicles And Motorcycles,15-Jan-21,LRSG_0644,Business Grant Recipient,238.21
Barrow Borough Council,Local Restrictions Support Grant (Closed) Addendum: 5 January onwards,Wholesale And Retail Trade; Repair Of Motor Vehicles And Motorcycles,15-Jan-21,LRSG_0645,Business Grant Recipient,2001.00
Barrow Borough Council,Local Restrictions Support Grant (Closed) Addendum: Tier 4,Wholesale And Retail Trade; Repair Of Motor Vehicles And Motorcycles,15-Jan-21,LRSG_0646,Business Grant Recipient,238.21
Barrow Borough Council,Local Restrictions Support Grant (Closed) Addendum: 5 January onwards,Wholesale And Retail Trade; Repair Of Motor Vehicles And Motorcycles,15-Jan-21,LRSG_0647,Business Grant Recipient,2001.00
Barrow Borough Council,Local Restrictions Support Grant (Closed) Addendum: Tier 4,"Arts, Entertainment And Recreation",15-Jan-21,LRSG_0648,Graves (Cumberland) Ltd,535.71
Barrow Borough Council,Local Restrictions Support Grant (Closed) Addendum: 5 January onwards,"Arts, Entertainment And Recreation",15-Jan-21,LRSG_0649,Graves (Cumberland) Ltd,4500.00
Barrow Borough Council,Local Restrictions Support Grant (Closed) Addendum: Tier 4,Wholesale And Retail Trade; Repair Of Motor Vehicles And Motorcycles,15-Jan-21,LRSG_0650,Business Grant Recipient,357.14
Barrow Borough Council,Local Restrictions Support Grant (Closed) Addendum: 5 January onwards,Wholesale And Retail Trade; Repair Of Motor Vehicles And Motorcycles,15-Jan-21,LRSG_0651,Business Grant Recipient,3000.00
Barrow Borough Council,Local Restrictions Support Grant (Closed) Addendum: Tier 4,Wholesale And Retail Trade; Repair Of Motor Vehicles And Motorcycles,15-Jan-21,LRSG_0652,J T Vehicles South Lakes Ltd,238.21
Barrow Borough Council,Local Restrictions Support Grant (Closed) Addendum: 5 January onwards,Wholesale And Retail Trade; Repair Of Motor Vehicles And Motorcycles,15-Jan-21,LRSG_0653,J T Vehicles South Lakes Ltd,2001.00
Barrow Borough Council,Local Restrictions Support Grant (Closed) Addendum: Tier 4,"Arts, Entertainment And Recreation",15-Jan-21,LRSG_0654,Lobo BJJ Ltd,238.21
Barrow Borough Council,Local Restrictions Support Grant (Closed) Addendum: 5 January onwards,"Arts, Entertainment And Recreation",15-Jan-21,LRSG_0655,Lobo BJJ Ltd,2001.00
Barrow Borough Council,Local Restrictions Support Grant (Closed) Addendum: Tier 4,Accommodation And Food Service Activities,15-Jan-21,LRSG_0656,Crooklands Casuals Football Club,238.21
Barrow Borough Council,Local Restrictions Support Grant (Closed) Addendum: 5 January onwards,Accommodation And Food Service Activities,15-Jan-21,LRSG_0657,Crooklands Casuals Football Club,2001.00
Barrow Borough Council,Local Restrictions Support Grant (Closed) Addendum: Tier 4,Wholesale And Retail Trade; Repair Of Motor Vehicles And Motorcycles,15-Jan-21,LRSG_0658,Mr Mister Ltd,238.21
Barrow Borough Council,Local Restrictions Support Grant (Closed) Addendum: 5 January onwards,Wholesale And Retail Trade; Repair Of Motor Vehicles And Motorcycles,15-Jan-21,LRSG_0659,Mr Mister Ltd,2001.00
Barrow Borough Council,Local Restrictions Support Grant (Closed) Addendum: Tier 4,Wholesale And Retail Trade; Repair Of Motor Vehicles And Motorcycles,15-Jan-21,LRSG_0660,Business Grant Recipient,238.21
Barrow Borough Council,Local Restrictions Support Grant (Closed) Addendum: 5 January onwards,Wholesale And Retail Trade; Repair Of Motor Vehicles And Motorcycles,15-Jan-21,LRSG_0661,Business Grant Recipient,2001.00
Barrow Borough Council,Local Restrictions Support Grant (Closed) Addendum: Tier 4,Wholesale And Retail Trade; Repair Of Motor Vehicles And Motorcycles,15-Jan-21,LRSG_0662,Business Grant Recipient,238.21
Barrow Borough Council,Local Restrictions Support Grant (Closed) Addendum: 5 January onwards,Wholesale And Retail Trade; Repair Of Motor Vehicles And Motorcycles,15-Jan-21,LRSG_0663,Business Grant Recipient,2001.00
Barrow Borough Council,Local Restrictions Support Grant (Closed) Addendum: Tier 4,Wholesale And Retail Trade; Repair Of Motor Vehicles And Motorcycles,15-Jan-21,LRSG_0664,Special Occasions,238.21
Barrow Borough Council,Local Restrictions Support Grant (Closed) Addendum: 5 January onwards,Wholesale And Retail Trade; Repair Of Motor Vehicles And Motorcycles,15-Jan-21,LRSG_0665, Special Occasions,2001.00
Barrow Borough Council,Local Restrictions Support Grant (Closed) Addendum: Tier 4,Wholesale And Retail Trade; Repair Of Motor Vehicles And Motorcycles,15-Jan-21,LRSG_0666, HALO ENTERPRISES LIMITED,238.21
Barrow Borough Council,Local Restrictions Support Grant (Closed) Addendum: 5 January onwards,Wholesale And Retail Trade; Repair Of Motor Vehicles And Motorcycles,15-Jan-21,LRSG_0667,HALO ENTERPRISES LIMITED,2001.00
Barrow Borough Council,Local Restrictions Support Grant (Closed) Addendum: Tier 4,Wholesale And Retail Trade; Repair Of Motor Vehicles And Motorcycles,15-Jan-21,LRSG_0668,Business Grant Recipient,238.21
Barrow Borough Council,Local Restrictions Support Grant (Closed) Addendum: 5 January onwards,Wholesale And Retail Trade; Repair Of Motor Vehicles And Motorcycles,15-Jan-21,LRSG_0669,Business Grant Recipient,2001.00
Barrow Borough Council,Local Restrictions Support Grant (Closed) Addendum: Tier 4,Wholesale And Retail Trade; Repair Of Motor Vehicles And Motorcycles,15-Jan-21,LRSG_0670,Furness Furniture,238.21
Barrow Borough Council,Local Restrictions Support Grant (Closed) Addendum: 5 January onwards,Wholesale And Retail Trade; Repair Of Motor Vehicles And Motorcycles,15-Jan-21,LRSG_0671,Furness Furniture,2001.00
Barrow Borough Council,Local Restrictions Support Grant (Closed) Addendum: Tier 4,"Professional, Scientific And Technical Activities",15-Jan-21,LRSG_0672,Business Grant Recipient,238.21
Barrow Borough Council,Local Restrictions Support Grant (Closed) Addendum: 5 January onwards,"Professional, Scientific And Technical Activities",15-Jan-21,LRSG_0673,Business Grant Recipient,2001.00
Barrow Borough Council,Local Restrictions Support Grant (Closed) Addendum: Tier 4,Wholesale And Retail Trade; Repair Of Motor Vehicles And Motorcycles,15-Jan-21,LRSG_0674,Business Grant Recipient,238.21
Barrow Borough Council,Local Restrictions Support Grant (Closed) Addendum: 5 January onwards,Wholesale And Retail Trade; Repair Of Motor Vehicles And Motorcycles,15-Jan-21,LRSG_0675,Business Grant Recipient,2001.00
Barrow Borough Council,Local Restrictions Support Grant (Closed) Addendum: Tier 4,"Arts, Entertainment And Recreation",15-Jan-21,LRSG_0676,SW Lakes District Scouts,238.21
Barrow Borough Council,Local Restrictions Support Grant (Closed) Addendum: 5 January onwards,"Arts, Entertainment And Recreation",15-Jan-21,LRSG_0677,SW Lakes District Scouts,2001.00
Barrow Borough Council,Local Restrictions Support Grant (Closed) Addendum: Tier 4,Wholesale And Retail Trade; Repair Of Motor Vehicles And Motorcycles,15-Jan-21,LRSG_0678,Business Grant Recipient,238.21
Barrow Borough Council,Local Restrictions Support Grant (Closed) Addendum: 5 January onwards,Wholesale And Retail Trade; Repair Of Motor Vehicles And Motorcycles,15-Jan-21,LRSG_0679,Business Grant Recipient,2001.00
Barrow Borough Council,Local Restrictions Support Grant (Closed) Addendum: Tier 4,Wholesale And Retail Trade; Repair Of Motor Vehicles And Motorcycles,15-Jan-21,LRSG_0680,Cumbria Embroidery & Print ,238.21
Barrow Borough Council,Local Restrictions Support Grant (Closed) Addendum: 5 January onwards,Wholesale And Retail Trade; Repair Of Motor Vehicles And Motorcycles,15-Jan-21,LRSG_0681,Cumbria Embroidery & Print ,2001.00
Barrow Borough Council,Local Restrictions Support Grant (Closed) Addendum: Tier 4,Wholesale And Retail Trade; Repair Of Motor Vehicles And Motorcycles,15-Jan-21,LRSG_0682,Cumbria Sewing & Craft Centre Limited,357.14
Barrow Borough Council,Local Restrictions Support Grant (Closed) Addendum: 5 January onwards,Wholesale And Retail Trade; Repair Of Motor Vehicles And Motorcycles,15-Jan-21,LRSG_0683,Cumbria Sewing & Craft Centre Limited,3000.00
Barrow Borough Council,Local Restrictions Support Grant (Closed) Addendum: Tier 4,Wholesale And Retail Trade; Repair Of Motor Vehicles And Motorcycles,15-Jan-21,LRSG_0684,Gold Planner Ltd,357.14
Barrow Borough Council,Local Restrictions Support Grant (Closed) Addendum: 5 January onwards,Wholesale And Retail Trade; Repair Of Motor Vehicles And Motorcycles,15-Jan-21,LRSG_0685,Gold Planner Ltd,3000.00
Barrow Borough Council,Local Restrictions Support Grant (Closed) Addendum: Tier 4,Wholesale And Retail Trade; Repair Of Motor Vehicles And Motorcycles,15-Jan-21,LRSG_0686,Business Grant Recipient,238.21
Barrow Borough Council,Local Restrictions Support Grant (Closed) Addendum: 5 January onwards,Wholesale And Retail Trade; Repair Of Motor Vehicles And Motorcycles,15-Jan-21,LRSG_0687,Business Grant Recipient,2001.00
Barrow Borough Council,Local Restrictions Support Grant (Closed)�Addendum�,Accommodation And Food Service Activities,18-Jan-21,LRSG_0688,Izgara Barrow Limited,1334.00
Barrow Borough Council,Local Restrictions Support Grant (Closed)�Addendum�,Wholesale And Retail Trade; Repair Of Motor Vehicles And Motorcycles,18-Jan-21,LRSG_0689,Business Grant Recipient,1334.00
Barrow Borough Council,Christmas Support Payment for �wet-led pubs� (CSP),Accommodation And Food Service Activities,18-Jan-21,LRSG_0690,Dalton Cricket Club,1000.00
Barrow Borough Council,Christmas Support Payment for �wet-led pubs� (CSP),"Arts, Entertainment And Recreation",18-Jan-21,LRSG_0691,Furness Golf Club,1000.00
Barrow Borough Council,Local Restrictions Support Grant (Closed)�Addendum�,Wholesale And Retail Trade; Repair Of Motor Vehicles And Motorcycles,19-Jan-21,LRSG_0692,Business Grant Recipient,1334.00
Barrow Borough Council,Local Restrictions Support Grant (Closed)�Addendum�,Wholesale And Retail Trade; Repair Of Motor Vehicles And Motorcycles,19-Jan-21,LRSG_0693,Business Grant Recipient,1334.00
Barrow Borough Council,Local Restrictions Support Grant (Closed)�Addendum�,Wholesale And Retail Trade; Repair Of Motor Vehicles And Motorcycles,19-Jan-21,LRSG_0694,maiquez Limited,2000.00
Barrow Borough Council,Local Restrictions Support Grant (Closed)�Addendum�,Wholesale And Retail Trade; Repair Of Motor Vehicles And Motorcycles,19-Jan-21,LRSG_0695,Pye Motors Ltd,2000.00
Barrow Borough Council,Local Restrictions Support Grant (Open)�,Accommodation And Food Service Activities,19-Jan-21,LRSG_0696,The Barrow Rugby Football Club Ltd,633.79
Barrow Borough Council,Local Restrictions Support Grant (Closed) Addendum: Tier 4,Wholesale And Retail Trade; Repair Of Motor Vehicles And Motorcycles,19-Jan-21,LRSG_0697,Business Grant Recipient,238.21
Barrow Borough Council,Local Restrictions Support Grant (Closed) Addendum: 5 January onwards,Wholesale And Retail Trade; Repair Of Motor Vehicles And Motorcycles,19-Jan-21,LRSG_0698,Business Grant Recipient,2001.00
Barrow Borough Council,Local Restrictions Support Grant (Closed) Addendum: Tier 4,Wholesale And Retail Trade; Repair Of Motor Vehicles And Motorcycles,19-Jan-21,LRSG_0699,All that glitters,238.21
Barrow Borough Council,Local Restrictions Support Grant (Closed) Addendum: 5 January onwards,Wholesale And Retail Trade; Repair Of Motor Vehicles And Motorcycles,19-Jan-21,LRSG_0700,All that glitters,2001.00
Barrow Borough Council,Local Restrictions Support Grant (Closed) Addendum: Tier 4,Wholesale And Retail Trade; Repair Of Motor Vehicles And Motorcycles,19-Jan-21,LRSG_0701, LA CHIC,238.21
Barrow Borough Council,Local Restrictions Support Grant (Closed) Addendum: 5 January onwards,Wholesale And Retail Trade; Repair Of Motor Vehicles And Motorcycles,19-Jan-21,LRSG_0702, LA CHIC,2001.00
Barrow Borough Council,Local Restrictions Support Grant (Closed) Addendum: Tier 4,Wholesale And Retail Trade; Repair Of Motor Vehicles And Motorcycles,19-Jan-21,LRSG_0703,Posh Flowers Ltd,238.21
Barrow Borough Council,Local Restrictions Support Grant (Closed) Addendum: 5 January onwards,Wholesale And Retail Trade; Repair Of Motor Vehicles And Motorcycles,19-Jan-21,LRSG_0704,Posh Flowers Ltd,2001.00
Barrow Borough Council,Local Restrictions Support Grant (Closed) Addendum: Tier 4,Wholesale And Retail Trade; Repair Of Motor Vehicles And Motorcycles,19-Jan-21,LRSG_0705,Business Grant Recipient,238.21
Barrow Borough Council,Local Restrictions Support Grant (Closed) Addendum: 5 January onwards,Wholesale And Retail Trade; Repair Of Motor Vehicles And Motorcycles,19-Jan-21,LRSG_0706,Business Grant Recipient,2001.00
Barrow Borough Council,Local Restrictions Support Grant (Closed) Addendum: Tier 4,"Arts, Entertainment And Recreation",19-Jan-21,LRSG_0707,Dalton United Football Club,238.21
Barrow Borough Council,Local Restrictions Support Grant (Closed) Addendum: 5 January onwards,"Arts, Entertainment And Recreation",19-Jan-21,LRSG_0708,Dalton United Football Club,2001.00
Barrow Borough Council,Local Restrictions Support Grant (Closed) Addendum: Tier 4,Wholesale And Retail Trade; Repair Of Motor Vehicles And Motorcycles,19-Jan-21,LRSG_0709,Business Grant Recipient,238.21
Barrow Borough Council,Local Restrictions Support Grant (Closed) Addendum: 5 January onwards,Wholesale And Retail Trade; Repair Of Motor Vehicles And Motorcycles,19-Jan-21,LRSG_0710,Business Grant Recipient,2001.00
Barrow Borough Council,Local Restrictions Support Grant (Closed) Addendum: Tier 4,Wholesale And Retail Trade; Repair Of Motor Vehicles And Motorcycles,19-Jan-21,LRSG_0711,Pets Paradise ,238.21
Barrow Borough Council,Local Restrictions Support Grant (Closed) Addendum: 5 January onwards,Wholesale And Retail Trade; Repair Of Motor Vehicles And Motorcycles,19-Jan-21,LRSG_0712,Pets Paradise ,2001.00
Barrow Borough Council,Local Restrictions Support Grant (Closed) Addendum: Tier 4,Wholesale And Retail Trade; Repair Of Motor Vehicles And Motorcycles,19-Jan-21,LRSG_0713,The Little Flower Company,238.21
Barrow Borough Council,Local Restrictions Support Grant (Closed) Addendum: 5 January onwards,Wholesale And Retail Trade; Repair Of Motor Vehicles And Motorcycles,19-Jan-21,LRSG_0714,The Little Flower Company,2001.00
Barrow Borough Council,Local Restrictions Support Grant (Closed) Addendum: Tier 4,Wholesale And Retail Trade; Repair Of Motor Vehicles And Motorcycles,19-Jan-21,LRSG_0715,Business Grant Recipient,238.21
Barrow Borough Council,Local Restrictions Support Grant (Closed) Addendum: 5 January onwards,Wholesale And Retail Trade; Repair Of Motor Vehicles And Motorcycles,19-Jan-21,LRSG_0716,Business Grant Recipient,2001.00
Barrow Borough Council,Local Restrictions Support Grant (Closed) Addendum: Tier 4,Accommodation And Food Service Activities,19-Jan-21,LRSG_0717,Business Grant Recipient,238.21
Barrow Borough Council,Local Restrictions Support Grant (Closed) Addendum: 5 January onwards,Accommodation And Food Service Activities,19-Jan-21,LRSG_0718,Business Grant Recipient,2001.00
Barrow Borough Council,Local Restrictions Support Grant (Closed) Addendum: Tier 4,Wholesale And Retail Trade; Repair Of Motor Vehicles And Motorcycles,19-Jan-21,LRSG_0719,Business Grant Recipient,238.21
Barrow Borough Council,Local Restrictions Support Grant (Closed) Addendum: 5 January onwards,Wholesale And Retail Trade; Repair Of Motor Vehicles And Motorcycles,19-Jan-21,LRSG_0720,Business Grant Recipient,2001.00
Barrow Borough Council,Local Restrictions Support Grant (Closed) Addendum: Tier 4,Accommodation And Food Service Activities,19-Jan-21,LRSG_0721,Business Grant Recipient,238.21
Barrow Borough Council,Local Restrictions Support Grant (Closed) Addendum: 5 January onwards,Accommodation And Food Service Activities,19-Jan-21,LRSG_0722,Business Grant Recipient,2001.00
Barrow Borough Council,Local Restrictions Support Grant (Closed) Addendum: Tier 4,Wholesale And Retail Trade; Repair Of Motor Vehicles And Motorcycles,19-Jan-21,LRSG_0723,Raggz,238.21
Barrow Borough Council,Local Restrictions Support Grant (Closed) Addendum: 5 January onwards,Wholesale And Retail Trade; Repair Of Motor Vehicles And Motorcycles,19-Jan-21,LRSG_0724, Raggz,2001.00
Barrow Borough Council,Local Restrictions Support Grant (Closed) Addendum: Tier 4,Wholesale And Retail Trade; Repair Of Motor Vehicles And Motorcycles,19-Jan-21,LRSG_0725,Got It Covered Ltd,238.21
Barrow Borough Council,Local Restrictions Support Grant (Closed) Addendum: 5 January onwards,Wholesale And Retail Trade; Repair Of Motor Vehicles And Motorcycles,19-Jan-21,LRSG_0726,Got It Covered Ltd,2001.00
Barrow Borough Council,Local Restrictions Support Grant (Closed) Addendum: Tier 4,Wholesale And Retail Trade; Repair Of Motor Vehicles And Motorcycles,19-Jan-21,LRSG_0727,Business Grant Recipient,238.21
Barrow Borough Council,Local Restrictions Support Grant (Closed) Addendum: 5 January onwards,Wholesale And Retail Trade; Repair Of Motor Vehicles And Motorcycles,19-Jan-21,LRSG_0728,Business Grant Recipient,2001.00
Barrow Borough Council,Local Restrictions Support Grant (Closed) Addendum: Tier 4,Wholesale And Retail Trade; Repair Of Motor Vehicles And Motorcycles,19-Jan-21,LRSG_0729,The Mane Man,238.21
Barrow Borough Council,Local Restrictions Support Grant (Closed) Addendum: 5 January onwards,Wholesale And Retail Trade; Repair Of Motor Vehicles And Motorcycles,19-Jan-21,LRSG_0730,The Mane Man,2001.00
Barrow Borough Council,Local Restrictions Support Grant (Closed) Addendum: Tier 4,Wholesale And Retail Trade; Repair Of Motor Vehicles And Motorcycles,19-Jan-21,LRSG_0731,Atomic Comica,238.21
Barrow Borough Council,Local Restrictions Support Grant (Closed) Addendum: 5 January onwards,Wholesale And Retail Trade; Repair Of Motor Vehicles And Motorcycles,19-Jan-21,LRSG_0732,Atomic Comica,2001.00
Barrow Borough Council,Local Restrictions Support Grant (Closed) Addendum: Tier 4,Wholesale And Retail Trade; Repair Of Motor Vehicles And Motorcycles,19-Jan-21,LRSG_0733,Business Grant Recipient,238.21
Barrow Borough Council,Local Restrictions Support Grant (Closed) Addendum: 5 January onwards,Wholesale And Retail Trade; Repair Of Motor Vehicles And Motorcycles,19-Jan-21,LRSG_0734,Business Grant Recipient,2001.00
Barrow Borough Council,Local Restrictions Support Grant (Closed) Addendum: Tier 4,Wholesale And Retail Trade; Repair Of Motor Vehicles And Motorcycles,19-Jan-21,LRSG_0735,Business Grant Recipient,238.21
Barrow Borough Council,Local Restrictions Support Grant (Closed) Addendum: 5 January onwards,Wholesale And Retail Trade; Repair Of Motor Vehicles And Motorcycles,19-Jan-21,LRSG_0736,Business Grant Recipient,2001.00
Barrow Borough Council,Local Restrictions Support Grant (Closed) Addendum: Tier 4,Wholesale And Retail Trade; Repair Of Motor Vehicles And Motorcycles,19-Jan-21,LRSG_0737,Refine Medispa limited,238.21
Barrow Borough Council,Local Restrictions Support Grant (Closed) Addendum: 5 January onwards,Wholesale And Retail Trade; Repair Of Motor Vehicles And Motorcycles,19-Jan-21,LRSG_0738,Refine Medispa limited,2001.00
Barrow Borough Council,Local Restrictions Support Grant (Closed) Addendum: Tier 4,Wholesale And Retail Trade; Repair Of Motor Vehicles And Motorcycles,19-Jan-21,LRSG_0739,Business Grant Recipient,238.21
Barrow Borough Council,Local Restrictions Support Grant (Closed) Addendum: 5 January onwards,Wholesale And Retail Trade; Repair Of Motor Vehicles And Motorcycles,19-Jan-21,LRSG_0740,Business Grant Recipient,2001.00
Barrow Borough Council,Local Restrictions Support Grant (Closed) Addendum: Tier 4,Wholesale And Retail Trade; Repair Of Motor Vehicles And Motorcycles,19-Jan-21,LRSG_0741,Business Grant Recipient,238.21
Barrow Borough Council,Local Restrictions Support Grant (Closed) Addendum: 5 January onwards,Wholesale And Retail Trade; Repair Of Motor Vehicles And Motorcycles,19-Jan-21,LRSG_0742,Business Grant Recipient,2001.00
Barrow Borough Council,Local Restrictions Support Grant (Closed) Addendum: Tier 4,Wholesale And Retail Trade; Repair Of Motor Vehicles And Motorcycles,19-Jan-21,LRSG_0743,Business Grant Recipient,238.21
Barrow Borough Council,Local Restrictions Support Grant (Closed) Addendum: 5 January onwards,Wholesale And Retail Trade; Repair Of Motor Vehicles And Motorcycles,19-Jan-21,LRSG_0744,Business Grant Recipient,2001.00
Barrow Borough Council,Local Restrictions Support Grant (Closed) Addendum: Tier 4,Wholesale And Retail Trade; Repair Of Motor Vehicles And Motorcycles,19-Jan-21,LRSG_0745,DEVRO BARBERSHOP LTD,238.21
Barrow Borough Council,Local Restrictions Support Grant (Closed) Addendum: 5 January onwards,Wholesale And Retail Trade; Repair Of Motor Vehicles And Motorcycles,19-Jan-21,LRSG_0746,DEVRO BARBERSHOP LTD,2001.00
Barrow Borough Council,Local Restrictions Support Grant (Closed) Addendum: Tier 4,Wholesale And Retail Trade; Repair Of Motor Vehicles And Motorcycles,19-Jan-21,LRSG_0747,Business Grant Recipient,238.21
Barrow Borough Council,Local Restrictions Support Grant (Closed) Addendum: 5 January onwards,Wholesale And Retail Trade; Repair Of Motor Vehicles And Motorcycles,19-Jan-21,LRSG_0748,Business Grant Recipient,2001.00
Barrow Borough Council,Local Restrictions Support Grant (Closed) Addendum: Tier 4,Wholesale And Retail Trade; Repair Of Motor Vehicles And Motorcycles,19-Jan-21,LRSG_0749,TNT Comms Ltd,357.14
Barrow Borough Council,Local Restrictions Support Grant (Closed) Addendum: 5 January onwards,Wholesale And Retail Trade; Repair Of Motor Vehicles And Motorcycles,19-Jan-21,LRSG_0750,TNT Comms Ltd,3000.00
Barrow Borough Council,Local Restrictions Support Grant (Closed) Addendum: Tier 4,"Arts, Entertainment And Recreation",19-Jan-21,LRSG_0751,Barrow Island Community & Sports Trust Facility ,238.21
Barrow Borough Council,Local Restrictions Support Grant (Closed) Addendum: 5 January onwards,"Arts, Entertainment And Recreation",19-Jan-21,LRSG_0752,Barrow Island Community & Sports Trust Facility ,2001.00
Barrow Borough Council,Local Restrictions Support Grant (Closed) Addendum: Tier 4,Wholesale And Retail Trade; Repair Of Motor Vehicles And Motorcycles,19-Jan-21,LRSG_0753,Business Grant Recipient,238.21
Barrow Borough Council,Local Restrictions Support Grant (Closed) Addendum: 5 January onwards,Wholesale And Retail Trade; Repair Of Motor Vehicles And Motorcycles,19-Jan-21,LRSG_0754,Business Grant Recipient,2001.00
Barrow Borough Council,Local Restrictions Support Grant (Closed) Addendum: Tier 4,Other Service Activities,19-Jan-21,LRSG_0755,vision tv,238.21
Barrow Borough Council,Local Restrictions Support Grant (Closed) Addendum: 5 January onwards,Other Service Activities,19-Jan-21,LRSG_0756,vision tv,2001.00
Barrow Borough Council,Local Restrictions Support Grant (Closed) Addendum: Tier 4,Wholesale And Retail Trade; Repair Of Motor Vehicles And Motorcycles,19-Jan-21,LRSG_0757,Speed of Sound LTD,238.21
Barrow Borough Council,Local Restrictions Support Grant (Closed) Addendum: 5 January onwards,Wholesale And Retail Trade; Repair Of Motor Vehicles And Motorcycles,19-Jan-21,LRSG_0758,Speed of Sound LTD,2001.00
Barrow Borough Council,Local Restrictions Support Grant (Closed) Addendum: Tier 4,Wholesale And Retail Trade; Repair Of Motor Vehicles And Motorcycles,19-Jan-21,LRSG_0759,David Atkinson Car Sales,238.21
Barrow Borough Council,Local Restrictions Support Grant (Closed) Addendum: 5 January onwards,Wholesale And Retail Trade; Repair Of Motor Vehicles And Motorcycles,19-Jan-21,LRSG_0760,David Atkinson Car Sales,2001.00
Barrow Borough Council,Local Restrictions Support Grant (Closed) Addendum: Tier 4,Wholesale And Retail Trade; Repair Of Motor Vehicles And Motorcycles,19-Jan-21,LRSG_0761,Business Grant Recipient,238.21
Barrow Borough Council,Local Restrictions Support Grant (Closed) Addendum: 5 January onwards,Wholesale And Retail Trade; Repair Of Motor Vehicles And Motorcycles,19-Jan-21,LRSG_0762,Business Grant Recipient,2001.00
Barrow Borough Council,Local Restrictions Support Grant (Closed) Addendum: Tier 4,Wholesale And Retail Trade; Repair Of Motor Vehicles And Motorcycles,19-Jan-21,LRSG_0763,North West Consumables,238.21
Barrow Borough Council,Local Restrictions Support Grant (Closed) Addendum: 5 January onwards,Wholesale And Retail Trade; Repair Of Motor Vehicles And Motorcycles,19-Jan-21,LRSG_0764,North West Consumables,2001.00
Barrow Borough Council,Local Restrictions Support Grant (Closed) Addendum: Tier 4,Wholesale And Retail Trade; Repair Of Motor Vehicles And Motorcycles,19-Jan-21,LRSG_0765,Darren Roby collectors,238.21
Barrow Borough Council,Local Restrictions Support Grant (Closed) Addendum: 5 January onwards,Wholesale And Retail Trade; Repair Of Motor Vehicles And Motorcycles,19-Jan-21,LRSG_0766,Darren Roby collectors,2001.00
Barrow Borough Council,Local Restrictions Support Grant (Closed) Addendum: Tier 4,Wholesale And Retail Trade; Repair Of Motor Vehicles And Motorcycles,19-Jan-21,LRSG_0767,Business Grant Recipient,238.21
Barrow Borough Council,Local Restrictions Support Grant (Closed) Addendum: 5 January onwards,Wholesale And Retail Trade; Repair Of Motor Vehicles And Motorcycles,19-Jan-21,LRSG_0768,Business Grant Recipient,2001.00
Barrow Borough Council,Local Restrictions Support Grant (Closed) Addendum: Tier 4,Other Service Activities,19-Jan-21,LRSG_0769,Business Grant Recipient,238.21
Barrow Borough Council,Local Restrictions Support Grant (Closed) Addendum: 5 January onwards,Other Service Activities,19-Jan-21,LRSG_0770,Business Grant Recipient,2001.00
Barrow Borough Council,Local Restrictions Support Grant (Closed) Addendum: Tier 4,Wholesale And Retail Trade; Repair Of Motor Vehicles And Motorcycles,19-Jan-21,LRSG_0771,Business Grant Recipient,357.14
Barrow Borough Council,Local Restrictions Support Grant (Closed) Addendum: 5 January onwards,Wholesale And Retail Trade; Repair Of Motor Vehicles And Motorcycles,19-Jan-21,LRSG_0772,Business Grant Recipient,3000.00
Barrow Borough Council,Local Restrictions Support Grant (Closed) Addendum: Tier 4,Wholesale And Retail Trade; Repair Of Motor Vehicles And Motorcycles,19-Jan-21,LRSG_0773,Business Grant Recipient,238.21
Barrow Borough Council,Local Restrictions Support Grant (Closed) Addendum: 5 January onwards,Wholesale And Retail Trade; Repair Of Motor Vehicles And Motorcycles,19-Jan-21,LRSG_0774,Business Grant Recipient,2001.00
Barrow Borough Council,Local Restrictions Support Grant (Closed) Addendum: Tier 4,Wholesale And Retail Trade; Repair Of Motor Vehicles And Motorcycles,19-Jan-21,LRSG_0775,Business Grant Recipient,238.21
Barrow Borough Council,Local Restrictions Support Grant (Closed) Addendum: 5 January onwards,Wholesale And Retail Trade; Repair Of Motor Vehicles And Motorcycles,19-Jan-21,LRSG_0776,Business Grant Recipient,2001.00
Barrow Borough Council,Local Restrictions Support Grant (Closed) Addendum: Tier 4,Wholesale And Retail Trade; Repair Of Motor Vehicles And Motorcycles,19-Jan-21,LRSG_0777,Business Grant Recipient,238.21
Barrow Borough Council,Local Restrictions Support Grant (Closed) Addendum: 5 January onwards,Wholesale And Retail Trade; Repair Of Motor Vehicles And Motorcycles,19-Jan-21,LRSG_0778,Business Grant Recipient,2001.00
Barrow Borough Council,Local Restrictions Support Grant (Closed) Addendum: Tier 4,"Arts, Entertainment And Recreation",19-Jan-21,LRSG_0779,ESCAPE ROOM (Barrow ltd),238.21
Barrow Borough Council,Local Restrictions Support Grant (Closed) Addendum: 5 January onwards,"Arts, Entertainment And Recreation",19-Jan-21,LRSG_0780,ESCAPE ROOM (Barrow ltd),2001.00
Barrow Borough Council,Local Restrictions Support Grant (Closed) Addendum: Tier 4,Wholesale And Retail Trade; Repair Of Motor Vehicles And Motorcycles,19-Jan-21,LRSG_0781,Business Grant Recipient,238.21
Barrow Borough Council,Local Restrictions Support Grant (Closed) Addendum: 5 January onwards,Wholesale And Retail Trade; Repair Of Motor Vehicles And Motorcycles,19-Jan-21,LRSG_0782,Business Grant Recipient,2001.00
Barrow Borough Council,Local Restrictions Support Grant (Closed) Addendum: Tier 4,Wholesale And Retail Trade; Repair Of Motor Vehicles And Motorcycles,19-Jan-21,LRSG_0783,Business Grant Recipient,238.21
Barrow Borough Council,Local Restrictions Support Grant (Closed) Addendum: 5 January onwards,Wholesale And Retail Trade; Repair Of Motor Vehicles And Motorcycles,19-Jan-21,LRSG_0784,Business Grant Recipient,2001.00
Barrow Borough Council,Local Restrictions Support Grant (Closed) Addendum: Tier 4,Wholesale And Retail Trade; Repair Of Motor Vehicles And Motorcycles,19-Jan-21,LRSG_0785,Business Grant Recipient,238.21
Barrow Borough Council,Local Restrictions Support Grant (Closed) Addendum: 5 January onwards,Wholesale And Retail Trade; Repair Of Motor Vehicles And Motorcycles,19-Jan-21,LRSG_0786,Business Grant Recipient,2001.00
Barrow Borough Council,Local Restrictions Support Grant (Closed) Addendum: Tier 4,"Arts, Entertainment And Recreation",19-Jan-21,LRSG_0787,Business Grant Recipient,238.21
Barrow Borough Council,Local Restrictions Support Grant (Closed) Addendum: 5 January onwards,"Arts, Entertainment And Recreation",19-Jan-21,LRSG_0788,Business Grant Recipient,2001.00
Barrow Borough Council,Local Restrictions Support Grant (Closed) Addendum: Tier 4,Wholesale And Retail Trade; Repair Of Motor Vehicles And Motorcycles,19-Jan-21,LRSG_0789,Marsha Lee ,238.21
Barrow Borough Council,Local Restrictions Support Grant (Closed) Addendum: 5 January onwards,Wholesale And Retail Trade; Repair Of Motor Vehicles And Motorcycles,19-Jan-21,LRSG_0790,Marsha Lee ,2001.00
Barrow Borough Council,Local Restrictions Support Grant (Closed) Addendum: Tier 4,Other Service Activities,19-Jan-21,LRSG_0791,Business Grant Recipient,238.21
Barrow Borough Council,Local Restrictions Support Grant (Closed) Addendum: 5 January onwards,Other Service Activities,19-Jan-21,LRSG_0792,Business Grant Recipient,2001.00
Barrow Borough Council,Local Restrictions Support Grant (Closed) Addendum: Tier 4,"Arts, Entertainment And Recreation",19-Jan-21,LRSG_0793,Urban Extreme Ltd,535.71
Barrow Borough Council,Local Restrictions Support Grant (Closed) Addendum: 5 January onwards,"Arts, Entertainment And Recreation",19-Jan-21,LRSG_0794,Urban Extreme Ltd,4500.00
Barrow Borough Council,Local Restrictions Support Grant (Closed) Addendum: Tier 4,Wholesale And Retail Trade; Repair Of Motor Vehicles And Motorcycles,19-Jan-21,LRSG_0795,Susan Dunn Limited,238.21
Barrow Borough Council,Local Restrictions Support Grant (Closed) Addendum: 5 January onwards,Wholesale And Retail Trade; Repair Of Motor Vehicles And Motorcycles,19-Jan-21,LRSG_0796, Susan Dunn Limited,2001.00
Barrow Borough Council,Local Restrictions Support Grant (Closed) Addendum: Tier 4,Wholesale And Retail Trade; Repair Of Motor Vehicles And Motorcycles,19-Jan-21,LRSG_0797,Guy Perry Ltd,357.14
Barrow Borough Council,Local Restrictions Support Grant (Closed) Addendum: 5 January onwards,Wholesale And Retail Trade; Repair Of Motor Vehicles And Motorcycles,19-Jan-21,LRSG_0798,Guy Perry Ltd,3000.00
Barrow Borough Council,Local Restrictions Support Grant (Closed) Addendum: Tier 4,Accommodation And Food Service Activities,19-Jan-21,LRSG_0799,Roose Pioneers ARLFC,238.21
Barrow Borough Council,Local Restrictions Support Grant (Closed) Addendum: 5 January onwards,Accommodation And Food Service Activities,19-Jan-21,LRSG_0800,Roose Pioneers ARLFC,2001.00
Barrow Borough Council,Local Restrictions Support Grant (Closed) Addendum: Tier 4,Wholesale And Retail Trade; Repair Of Motor Vehicles And Motorcycles,19-Jan-21,LRSG_0801,The Eco Shop,238.21
Barrow Borough Council,Local Restrictions Support Grant (Closed) Addendum: 5 January onwards,Wholesale And Retail Trade; Repair Of Motor Vehicles And Motorcycles,19-Jan-21,LRSG_0802,The Eco Shop,2001.00
Barrow Borough Council,Local Restrictions Support Grant (Closed) Addendum: Tier 4,Wholesale And Retail Trade; Repair Of Motor Vehicles And Motorcycles,19-Jan-21,LRSG_0803,Business Grant Recipient,238.21
Barrow Borough Council,Local Restrictions Support Grant (Closed) Addendum: 5 January onwards,Wholesale And Retail Trade; Repair Of Motor Vehicles And Motorcycles,19-Jan-21,LRSG_0804,Business Grant Recipient,2001.00
Barrow Borough Council,Local Restrictions Support Grant (Closed) Addendum: Tier 4,Wholesale And Retail Trade; Repair Of Motor Vehicles And Motorcycles,19-Jan-21,LRSG_0805,Business Grant Recipient,238.21
Barrow Borough Council,Local Restrictions Support Grant (Closed) Addendum: 5 January onwards,Wholesale And Retail Trade; Repair Of Motor Vehicles And Motorcycles,19-Jan-21,LRSG_0806,Business Grant Recipient,2001.00
Barrow Borough Council,Local Restrictions Support Grant (Closed) Addendum: Tier 4,Wholesale And Retail Trade; Repair Of Motor Vehicles And Motorcycles,19-Jan-21,LRSG_0807,Furness Watch and Jewellery Ltd,238.21
Barrow Borough Council,Local Restrictions Support Grant (Closed) Addendum: 5 January onwards,Wholesale And Retail Trade; Repair Of Motor Vehicles And Motorcycles,19-Jan-21,LRSG_0808,Furness Watch and Jewellery Ltd,2001.00
Barrow Borough Council,Local Restrictions Support Grant (Closed) Addendum: Tier 4,Other Service Activities,19-Jan-21,LRSG_0809,Business Grant Recipient,238.21
Barrow Borough Council,Local Restrictions Support Grant (Closed) Addendum: 5 January onwards,Other Service Activities,19-Jan-21,LRSG_0810,Business Grant Recipient,2001.00
Barrow Borough Council,Local Restrictions Support Grant (Closed) Addendum: Tier 4,Other Service Activities,19-Jan-21,LRSG_0811,MJ Hairdressing LTD Trading as The Hair Lounge,238.21
Barrow Borough Council,Local Restrictions Support Grant (Closed) Addendum: 5 January onwards,Other Service Activities,19-Jan-21,LRSG_0812,MJ Hairdressing LTD Trading as The Hair Lounge,2001.00
Barrow Borough Council,Local Restrictions Support Grant (Closed) Addendum: Tier 4,Accommodation And Food Service Activities,19-Jan-21,LRSG_0813,Business Grant Recipient,238.21
Barrow Borough Council,Local Restrictions Support Grant (Closed) Addendum: 5 January onwards,Accommodation And Food Service Activities,19-Jan-21,LRSG_0814,Business Grant Recipient,2001.00
Barrow Borough Council,Local Restrictions Support Grant (Closed) Addendum: Tier 4,Other Service Activities,19-Jan-21,LRSG_0815,Asylum 287 Barbershop,238.21
Barrow Borough Council,Local Restrictions Support Grant (Closed) Addendum: 5 January onwards,Other Service Activities,19-Jan-21,LRSG_0816,Asylum 287 Barbershop,2001.00
Barrow Borough Council,Local Restrictions Support Grant (Closed) Addendum: Tier 4,"Arts, Entertainment And Recreation",19-Jan-21,LRSG_0817,Transfigure Fitness Ltd,238.21
Barrow Borough Council,Local Restrictions Support Grant (Closed) Addendum: 5 January onwards,"Arts, Entertainment And Recreation",19-Jan-21,LRSG_0818,Transfigure Fitness Ltd,2001.00
Barrow Borough Council,Local Restrictions Support Grant (Closed) Addendum: Tier 4,Wholesale And Retail Trade; Repair Of Motor Vehicles And Motorcycles,19-Jan-21,LRSG_0819,Cumbria Embroidery & Print ,238.21
Barrow Borough Council,Local Restrictions Support Grant (Closed) Addendum: 5 January onwards,Wholesale And Retail Trade; Repair Of Motor Vehicles And Motorcycles,19-Jan-21,LRSG_0820,Cumbria Embroidery & Print ,2001.00
Barrow Borough Council,Local Restrictions Support Grant (Closed) Addendum: Tier 4,Wholesale And Retail Trade; Repair Of Motor Vehicles And Motorcycles,19-Jan-21,LRSG_0821,Business Grant Recipient,238.21
Barrow Borough Council,Local Restrictions Support Grant (Closed) Addendum: 5 January onwards,Wholesale And Retail Trade; Repair Of Motor Vehicles And Motorcycles,19-Jan-21,LRSG_0822,Business Grant Recipient,2001.00
Barrow Borough Council,Local Restrictions Support Grant (Closed) Addendum: Tier 4,Accommodation And Food Service Activities,19-Jan-21,LRSG_0823,Barrow Sporting Club Limited,238.21
Barrow Borough Council,Local Restrictions Support Grant (Closed) Addendum: 5 January onwards,Accommodation And Food Service Activities,19-Jan-21,LRSG_0824,Barrow Sporting Club Limited,2001.00
Barrow Borough Council,Local Restrictions Support Grant (Closed) Addendum: Tier 4,Other Service Activities,19-Jan-21,LRSG_0825,Asylum 287 Barbershop,238.21
Barrow Borough Council,Local Restrictions Support Grant (Closed) Addendum: 5 January onwards,Other Service Activities,19-Jan-21,LRSG_0826,Asylum 287 Barbershop,2001.00
Barrow Borough Council,Local Restrictions Support Grant (Closed) Addendum: Tier 4,Wholesale And Retail Trade; Repair Of Motor Vehicles And Motorcycles,19-Jan-21,LRSG_0827,The Vapour Bar,238.21
Barrow Borough Council,Local Restrictions Support Grant (Closed) Addendum: 5 January onwards,Wholesale And Retail Trade; Repair Of Motor Vehicles And Motorcycles,19-Jan-21,LRSG_0828,The Vapour Bar,2001.00
Barrow Borough Council,Local Restrictions Support Grant (Closed) Addendum: Tier 4,Wholesale And Retail Trade; Repair Of Motor Vehicles And Motorcycles,19-Jan-21,LRSG_0829,Business Grant Recipient,238.21
Barrow Borough Council,Local Restrictions Support Grant (Closed) Addendum: 5 January onwards,Wholesale And Retail Trade; Repair Of Motor Vehicles And Motorcycles,19-Jan-21,LRSG_0830,Business Grant Recipient,2001.00
Barrow Borough Council,Local Restrictions Support Grant (Closed) Addendum: Tier 4,Wholesale And Retail Trade; Repair Of Motor Vehicles And Motorcycles,19-Jan-21,LRSG_0831,Business Grant Recipient,238.21
Barrow Borough Council,Local Restrictions Support Grant (Closed) Addendum: 5 January onwards,Wholesale And Retail Trade; Repair Of Motor Vehicles And Motorcycles,19-Jan-21,LRSG_0832,Business Grant Recipient,2001.00
Barrow Borough Council,Local Restrictions Support Grant (Closed) Addendum: Tier 4,Wholesale And Retail Trade; Repair Of Motor Vehicles And Motorcycles,19-Jan-21,LRSG_0833,Business Grant Recipient,238.21
Barrow Borough Council,Local Restrictions Support Grant (Closed) Addendum: 5 January onwards,Wholesale And Retail Trade; Repair Of Motor Vehicles And Motorcycles,19-Jan-21,LRSG_0834,Business Grant Recipient,2001.00
Barrow Borough Council,Local Restrictions Support Grant (Closed) Addendum: Tier 4,Wholesale And Retail Trade; Repair Of Motor Vehicles And Motorcycles,19-Jan-21,LRSG_0835,Harts the Jewellers ,238.21
Barrow Borough Council,Local Restrictions Support Grant (Closed) Addendum: 5 January onwards,Wholesale And Retail Trade; Repair Of Motor Vehicles And Motorcycles,19-Jan-21,LRSG_0836,Harts the Jewellers ,2001.00
Barrow Borough Council,Local Restrictions Support Grant (Closed) Addendum: Tier 4,Other Service Activities,19-Jan-21,LRSG_0837,Business Grant Recipient,238.21
Barrow Borough Council,Local Restrictions Support Grant (Closed) Addendum: 5 January onwards,Other Service Activities,19-Jan-21,LRSG_0838,Business Grant Recipient,2001.00
Barrow Borough Council,Local Restrictions Support Grant (Closed) Addendum: Tier 4,Wholesale And Retail Trade; Repair Of Motor Vehicles And Motorcycles,19-Jan-21,LRSG_0839,The Bridal House,238.21
Barrow Borough Council,Local Restrictions Support Grant (Closed) Addendum: 5 January onwards,Wholesale And Retail Trade; Repair Of Motor Vehicles And Motorcycles,19-Jan-21,LRSG_0840,The Bridal House ,2001.00
Barrow Borough Council,Local Restrictions Support Grant (Closed) Addendum: Tier 4,Wholesale And Retail Trade; Repair Of Motor Vehicles And Motorcycles,19-Jan-21,LRSG_0841, Suzie B,238.21
Barrow Borough Council,Local Restrictions Support Grant (Closed) Addendum: 5 January onwards,Wholesale And Retail Trade; Repair Of Motor Vehicles And Motorcycles,19-Jan-21,LRSG_0842,Suzie B,2001.00
Barrow Borough Council,Local Restrictions Support Grant (Closed) Addendum: Tier 4,Other Service Activities,19-Jan-21,LRSG_0843,Business Grant Recipient,238.21
Barrow Borough Council,Local Restrictions Support Grant (Closed) Addendum: 5 January onwards,Other Service Activities,19-Jan-21,LRSG_0844,Business Grant Recipient,2001.00
Barrow Borough Council,Local Restrictions Support Grant (Closed) Addendum: Tier 4,"Arts, Entertainment And Recreation",19-Jan-21,LRSG_0845,Business Grant Recipient,238.21
Barrow Borough Council,Local Restrictions Support Grant (Closed) Addendum: 5 January onwards,"Arts, Entertainment And Recreation",19-Jan-21,LRSG_0846,Business Grant Recipient,2001.00
Barrow Borough Council,Local Restrictions Support Grant (Closed) Addendum: Tier 4,Wholesale And Retail Trade; Repair Of Motor Vehicles And Motorcycles,19-Jan-21,LRSG_0847,Business Grant Recipient,238.21
Barrow Borough Council,Local Restrictions Support Grant (Closed) Addendum: 5 January onwards,Wholesale And Retail Trade; Repair Of Motor Vehicles And Motorcycles,19-Jan-21,LRSG_0848,Business Grant Recipient,2001.00
Barrow Borough Council,Local Restrictions Support Grant (Closed) Addendum: Tier 4,Wholesale And Retail Trade; Repair Of Motor Vehicles And Motorcycles,19-Jan-21,LRSG_0849,Business Grant Recipient,238.21
Barrow Borough Council,Local Restrictions Support Grant (Closed) Addendum: 5 January onwards,Wholesale And Retail Trade; Repair Of Motor Vehicles And Motorcycles,19-Jan-21,LRSG_0850,Business Grant Recipient,2001.00
Barrow Borough Council,Local Restrictions Support Grant (Closed) Addendum: Tier 4,Wholesale And Retail Trade; Repair Of Motor Vehicles And Motorcycles,19-Jan-21,LRSG_0851, Paul French Salon,238.21
Barrow Borough Council,Local Restrictions Support Grant (Closed) Addendum: 5 January onwards,Wholesale And Retail Trade; Repair Of Motor Vehicles And Motorcycles,19-Jan-21,LRSG_0852, Paul French Salon,2001.00
Barrow Borough Council,Local Restrictions Support Grant (Closed) Addendum: Tier 4,Wholesale And Retail Trade; Repair Of Motor Vehicles And Motorcycles,19-Jan-21,LRSG_0853,St Mary's Hospice T/A  HOSPICE OF ST MARY OF FURNESS,238.21
Barrow Borough Council,Local Restrictions Support Grant (Closed) Addendum: 5 January onwards,Wholesale And Retail Trade; Repair Of Motor Vehicles And Motorcycles,19-Jan-21,LRSG_0854,St Mary's Hospice T/A  HOSPICE OF ST MARY OF FURNESS,2001.00
Barrow Borough Council,Local Restrictions Support Grant (Closed) Addendum: Tier 4,Wholesale And Retail Trade; Repair Of Motor Vehicles And Motorcycles,19-Jan-21,LRSG_0855,St Mary's Hospice,535.71
Barrow Borough Council,Local Restrictions Support Grant (Closed) Addendum: 5 January onwards,Wholesale And Retail Trade; Repair Of Motor Vehicles And Motorcycles,19-Jan-21,LRSG_0856,St Mary's Hospice,4500.00
Barrow Borough Council,Local Restrictions Support Grant (Closed) Addendum: Tier 4,Wholesale And Retail Trade; Repair Of Motor Vehicles And Motorcycles,19-Jan-21,LRSG_0857,Coco Cheveux Ltd,238.21
Barrow Borough Council,Local Restrictions Support Grant (Closed) Addendum: 5 January onwards,Wholesale And Retail Trade; Repair Of Motor Vehicles And Motorcycles,19-Jan-21,LRSG_0858,Coco Cheveux Ltd,2001.00
Barrow Borough Council,Local Restrictions Support Grant (Closed) Addendum: Tier 4,Accommodation And Food Service Activities,19-Jan-21,LRSG_0859,Business Grant Recipient,238.21
Barrow Borough Council,Local Restrictions Support Grant (Closed) Addendum: 5 January onwards,Accommodation And Food Service Activities,19-Jan-21,LRSG_0860,Business Grant Recipient,2001.00
Barrow Borough Council,Local Restrictions Support Grant (Closed) Addendum: Tier 4,Wholesale And Retail Trade; Repair Of Motor Vehicles And Motorcycles,19-Jan-21,LRSG_0861,South West Cumbria United Area,238.21
Barrow Borough Council,Local Restrictions Support Grant (Closed) Addendum: 5 January onwards,Wholesale And Retail Trade; Repair Of Motor Vehicles And Motorcycles,19-Jan-21,LRSG_0862,South West Cumbria United Area,2001.00
Barrow Borough Council,Local Restrictions Support Grant (Closed) Addendum: Tier 4,Other Service Activities,19-Jan-21,LRSG_0863,Beau Laser Aesthetics,238.21
Barrow Borough Council,Local Restrictions Support Grant (Closed) Addendum: 5 January onwards,Other Service Activities,19-Jan-21,LRSG_0864,  Beau Laser Aesthetics,2001.00
Barrow Borough Council,Local Restrictions Support Grant (Closed) Addendum: Tier 4,Wholesale And Retail Trade; Repair Of Motor Vehicles And Motorcycles,19-Jan-21,LRSG_0865,Elegance Hair Salon,238.21
Barrow Borough Council,Local Restrictions Support Grant (Closed) Addendum: 5 January onwards,Wholesale And Retail Trade; Repair Of Motor Vehicles And Motorcycles,19-Jan-21,LRSG_0866,Elegance Hair Salon,2001.00
Barrow Borough Council,Local Restrictions Support Grant (Closed) Addendum: Tier 4,Wholesale And Retail Trade; Repair Of Motor Vehicles And Motorcycles,19-Jan-21,LRSG_0867, A & L Crafts,238.21
Barrow Borough Council,Local Restrictions Support Grant (Closed) Addendum: 5 January onwards,Wholesale And Retail Trade; Repair Of Motor Vehicles And Motorcycles,19-Jan-21,LRSG_0868, A & L Crafts,2001.00
Barrow Borough Council,Local Restrictions Support Grant (Closed) Addendum: Tier 4,Wholesale And Retail Trade; Repair Of Motor Vehicles And Motorcycles,19-Jan-21,LRSG_0869,Business Grant Recipient,238.21
Barrow Borough Council,Local Restrictions Support Grant (Closed) Addendum: 5 January onwards,Wholesale And Retail Trade; Repair Of Motor Vehicles And Motorcycles,19-Jan-21,LRSG_0870,Business Grant Recipient,2001.00
Barrow Borough Council,Local Restrictions Support Grant (Closed) Addendum: Tier 4,Wholesale And Retail Trade; Repair Of Motor Vehicles And Motorcycles,19-Jan-21,LRSG_0871,Business Grant Recipient,238.21
Barrow Borough Council,Local Restrictions Support Grant (Closed) Addendum: 5 January onwards,Wholesale And Retail Trade; Repair Of Motor Vehicles And Motorcycles,19-Jan-21,LRSG_0872,Business Grant Recipient,2001.00
Barrow Borough Council,Local Restrictions Support Grant (Closed) Addendum: Tier 4,Other Service Activities,19-Jan-21,LRSG_0873,Business Grant Recipient,238.21
Barrow Borough Council,Local Restrictions Support Grant (Closed) Addendum: 5 January onwards,Other Service Activities,19-Jan-21,LRSG_0874,Business Grant Recipient,2001.00
Barrow Borough Council,Local Restrictions Support Grant (Closed) Addendum: Tier 4,Wholesale And Retail Trade; Repair Of Motor Vehicles And Motorcycles,19-Jan-21,LRSG_0875,A SPOT Ltd,238.21
Barrow Borough Council,Local Restrictions Support Grant (Closed) Addendum: 5 January onwards,Wholesale And Retail Trade; Repair Of Motor Vehicles And Motorcycles,19-Jan-21,LRSG_0876,A SPOT Ltd,2001.00
Barrow Borough Council,Local Restrictions Support Grant (Closed) Addendum: Tier 4,Wholesale And Retail Trade; Repair Of Motor Vehicles And Motorcycles,19-Jan-21,LRSG_0877,TNT Records,238.21
Barrow Borough Council,Local Restrictions Support Grant (Closed) Addendum: 5 January onwards,Wholesale And Retail Trade; Repair Of Motor Vehicles And Motorcycles,19-Jan-21,LRSG_0878,TNT Records,2001.00
Barrow Borough Council,Local Restrictions Support Grant (Closed) Addendum: Tier 4,Wholesale And Retail Trade; Repair Of Motor Vehicles And Motorcycles,19-Jan-21,LRSG_0879,The Bobby Pin,238.21
Barrow Borough Council,Local Restrictions Support Grant (Closed) Addendum: 5 January onwards,Wholesale And Retail Trade; Repair Of Motor Vehicles And Motorcycles,19-Jan-21,LRSG_0880,The Bobby Pin,2001.00
Barrow Borough Council,Local Restrictions Support Grant (Closed) Addendum: Tier 4,Accommodation And Food Service Activities,19-Jan-21,LRSG_0881,Business Grant Recipient,238.21
Barrow Borough Council,Local Restrictions Support Grant (Closed) Addendum: 5 January onwards,Accommodation And Food Service Activities,19-Jan-21,LRSG_0882,Business Grant Recipient,2001.00
Barrow Borough Council,Local Restrictions Support Grant (Closed) Addendum: Tier 4,Wholesale And Retail Trade; Repair Of Motor Vehicles And Motorcycles,19-Jan-21,LRSG_0883,Business Grant Recipient,238.21
Barrow Borough Council,Local Restrictions Support Grant (Closed) Addendum: 5 January onwards,Wholesale And Retail Trade; Repair Of Motor Vehicles And Motorcycles,19-Jan-21,LRSG_0884,Business Grant Recipient,2001.00
Barrow Borough Council,Local Restrictions Support Grant (Closed) Addendum: Tier 4,Wholesale And Retail Trade; Repair Of Motor Vehicles And Motorcycles,19-Jan-21,LRSG_0885,Business Grant Recipient,238.21
Barrow Borough Council,Local Restrictions Support Grant (Closed) Addendum: 5 January onwards,Wholesale And Retail Trade; Repair Of Motor Vehicles And Motorcycles,19-Jan-21,LRSG_0886,Business Grant Recipient,2001.00
Barrow Borough Council,Local Restrictions Support Grant (Closed) Addendum: Tier 4,Wholesale And Retail Trade; Repair Of Motor Vehicles And Motorcycles,19-Jan-21,LRSG_0887,Business Grant Recipient,238.21
Barrow Borough Council,Local Restrictions Support Grant (Closed) Addendum: 5 January onwards,Wholesale And Retail Trade; Repair Of Motor Vehicles And Motorcycles,19-Jan-21,LRSG_0888,Business Grant Recipient,2001.00
Barrow Borough Council,Local Restrictions Support Grant (Closed) Addendum: Tier 4,Accommodation And Food Service Activities,19-Jan-21,LRSG_0889,Lucidity Group/Townhouse,357.14
Barrow Borough Council,Local Restrictions Support Grant (Closed) Addendum: 5 January onwards,Accommodation And Food Service Activities,19-Jan-21,LRSG_0890,Lucidity Group/Townhouse,3000.00
Barrow Borough Council,Local Restrictions Support Grant (Closed) Addendum: Tier 4,Accommodation And Food Service Activities,19-Jan-21,LRSG_0891,Masonic Hall,238.21
Barrow Borough Council,Local Restrictions Support Grant (Closed) Addendum: 5 January onwards,Accommodation And Food Service Activities,19-Jan-21,LRSG_0892,Masonic Hall,2001.00
Barrow Borough Council,Local Restrictions Support Grant (Closed) Addendum: Tier 4,Wholesale And Retail Trade; Repair Of Motor Vehicles And Motorcycles,19-Jan-21,LRSG_0893,Abbey Blinds,238.21
Barrow Borough Council,Local Restrictions Support Grant (Closed) Addendum: 5 January onwards,Wholesale And Retail Trade; Repair Of Motor Vehicles And Motorcycles,19-Jan-21,LRSG_0894,Abbey Blinds ,2001.00
Barrow Borough Council,Local Restrictions Support Grant (Closed) Addendum: Tier 4,"Arts, Entertainment And Recreation",19-Jan-21,LRSG_0895,Abbots Vale Community Centre,238.21
Barrow Borough Council,Local Restrictions Support Grant (Closed) Addendum: 5 January onwards,"Arts, Entertainment And Recreation",19-Jan-21,LRSG_0896,Abbots Vale Community Centre,2001.00
Barrow Borough Council,Local Restrictions Support Grant (Closed) Addendum: Tier 4,Wholesale And Retail Trade; Repair Of Motor Vehicles And Motorcycles,19-Jan-21,LRSG_0897,Dandy's Ltd,357.14
Barrow Borough Council,Local Restrictions Support Grant (Closed) Addendum: 5 January onwards,Wholesale And Retail Trade; Repair Of Motor Vehicles And Motorcycles,19-Jan-21,LRSG_0898,Dandy's Ltd,3000.00
Barrow Borough Council,Local Restrictions Support Grant (Closed) Addendum: Tier 4,Wholesale And Retail Trade; Repair Of Motor Vehicles And Motorcycles,19-Jan-21,LRSG_0899,Expressions of Lancaster Ltd,238.21
Barrow Borough Council,Local Restrictions Support Grant (Closed) Addendum: 5 January onwards,Wholesale And Retail Trade; Repair Of Motor Vehicles And Motorcycles,19-Jan-21,LRSG_0900,Expressions of Lancaster Ltd,2001.00
Barrow Borough Council,Local Restrictions Support Grant (Closed) Addendum: Tier 4,Wholesale And Retail Trade; Repair Of Motor Vehicles And Motorcycles,19-Jan-21,LRSG_0901,Pozo Barber,238.21
Barrow Borough Council,Local Restrictions Support Grant (Closed) Addendum: 5 January onwards,Wholesale And Retail Trade; Repair Of Motor Vehicles And Motorcycles,19-Jan-21,LRSG_0902,Pozo Barber,2001.00
Barrow Borough Council,Local Restrictions Support Grant (Closed) Addendum: Tier 4,Wholesale And Retail Trade; Repair Of Motor Vehicles And Motorcycles,19-Jan-21,LRSG_0903,Business Grant Recipient,238.21
Barrow Borough Council,Local Restrictions Support Grant (Closed) Addendum: 5 January onwards,Wholesale And Retail Trade; Repair Of Motor Vehicles And Motorcycles,19-Jan-21,LRSG_0904,Business Grant Recipient,2001.00
Barrow Borough Council,Local Restrictions Support Grant (Closed) Addendum: Tier 4,Wholesale And Retail Trade; Repair Of Motor Vehicles And Motorcycles,19-Jan-21,LRSG_0905, Angel nails ,238.21
Barrow Borough Council,Local Restrictions Support Grant (Closed) Addendum: 5 January onwards,Wholesale And Retail Trade; Repair Of Motor Vehicles And Motorcycles,19-Jan-21,LRSG_0906, Angel nails ,2001.00
Barrow Borough Council,Local Restrictions Support Grant (Closed) Addendum: Tier 4,Wholesale And Retail Trade; Repair Of Motor Vehicles And Motorcycles,19-Jan-21,LRSG_0907,House of Hair,238.21
Barrow Borough Council,Local Restrictions Support Grant (Closed) Addendum: 5 January onwards,Wholesale And Retail Trade; Repair Of Motor Vehicles And Motorcycles,19-Jan-21,LRSG_0908, House of Hair,2001.00
Barrow Borough Council,Local Restrictions Support Grant (Closed) Addendum: Tier 4,Wholesale And Retail Trade; Repair Of Motor Vehicles And Motorcycles,19-Jan-21,LRSG_0909,Business Grant Recipient,238.21
Barrow Borough Council,Local Restrictions Support Grant (Closed) Addendum: 5 January onwards,Wholesale And Retail Trade; Repair Of Motor Vehicles And Motorcycles,19-Jan-21,LRSG_0910,Business Grant Recipient,2001.00
Barrow Borough Council,Local Restrictions Support Grant (Closed) Addendum: Tier 4,Other Service Activities,19-Jan-21,LRSG_0911,Tony Hand Car Wash Ltd,238.21
Barrow Borough Council,Local Restrictions Support Grant (Closed) Addendum: 5 January onwards,Other Service Activities,19-Jan-21,LRSG_0912,Tony Hand Car Wash Ltd,2001.00
Barrow Borough Council,Local Restrictions Support Grant (Closed) Addendum: Tier 4,Wholesale And Retail Trade; Repair Of Motor Vehicles And Motorcycles,19-Jan-21,LRSG_0913,South Lakes Interiors Ltd,238.21
Barrow Borough Council,Local Restrictions Support Grant (Closed) Addendum: 5 January onwards,Wholesale And Retail Trade; Repair Of Motor Vehicles And Motorcycles,19-Jan-21,LRSG_0914,South Lakes Interiors Ltd,2001.00
Barrow Borough Council,Local Restrictions Support Grant (Closed) Addendum: Tier 4,Other Service Activities,19-Jan-21,LRSG_0915,Business Grant Recipient,238.21
Barrow Borough Council,Local Restrictions Support Grant (Closed) Addendum: 5 January onwards,Other Service Activities,19-Jan-21,LRSG_0916,Business Grant Recipient,2001.00
Barrow Borough Council,Local Restrictions Support Grant (Closed) Addendum: Tier 4,"Arts, Entertainment And Recreation",19-Jan-21,LRSG_0917,Business Grant Recipient,238.21
Barrow Borough Council,Local Restrictions Support Grant (Closed) Addendum: 5 January onwards,"Arts, Entertainment And Recreation",19-Jan-21,LRSG_0918,Business Grant Recipient,2001.00
Barrow Borough Council,Local Restrictions Support Grant (Closed) Addendum: Tier 4,Wholesale And Retail Trade; Repair Of Motor Vehicles And Motorcycles,19-Jan-21,LRSG_0919,Business Grant Recipient,238.21
Barrow Borough Council,Local Restrictions Support Grant (Closed) Addendum: 5 January onwards,Wholesale And Retail Trade; Repair Of Motor Vehicles And Motorcycles,19-Jan-21,LRSG_0920,Business Grant Recipient,2001.00
Barrow Borough Council,Local Restrictions Support Grant (Closed) Addendum: Tier 4,Wholesale And Retail Trade; Repair Of Motor Vehicles And Motorcycles,19-Jan-21,LRSG_0921,Business Grant Recipient,238.21
Barrow Borough Council,Local Restrictions Support Grant (Closed) Addendum: 5 January onwards,Wholesale And Retail Trade; Repair Of Motor Vehicles And Motorcycles,19-Jan-21,LRSG_0922,Business Grant Recipient,2001.00
Barrow Borough Council,Local Restrictions Support Grant (Closed) Addendum: Tier 4,Wholesale And Retail Trade; Repair Of Motor Vehicles And Motorcycles,19-Jan-21,LRSG_0923,SB Wallpaper,238.21
Barrow Borough Council,Local Restrictions Support Grant (Closed) Addendum: 5 January onwards,Wholesale And Retail Trade; Repair Of Motor Vehicles And Motorcycles,19-Jan-21,LRSG_0924,SB Wallpaper,2001.00
Barrow Borough Council,Local Restrictions Support Grant (Closed) Addendum: Tier 4,Wholesale And Retail Trade; Repair Of Motor Vehicles And Motorcycles,19-Jan-21,LRSG_0925,Ian Ford Books Limited ,238.21
Barrow Borough Council,Local Restrictions Support Grant (Closed) Addendum: 5 January onwards,Wholesale And Retail Trade; Repair Of Motor Vehicles And Motorcycles,19-Jan-21,LRSG_0926,Ian Ford Books Limited ,2001.00
Barrow Borough Council,Local Restrictions Support Grant (Closed)�Addendum�,Wholesale And Retail Trade; Repair Of Motor Vehicles And Motorcycles,20-Jan-21,LRSG_0927,Business Grant Recipient,1334.00
Barrow Borough Council,Local Restrictions Support Grant (Closed)�Addendum�,"Arts, Entertainment And Recreation",20-Jan-21,LRSG_0928,Cumbria Zoo Co Ltd,3000.00
Barrow Borough Council,Local Restrictions Support Grant (Closed) Addendum: Tier 4,Wholesale And Retail Trade; Repair Of Motor Vehicles And Motorcycles,20-Jan-21,LRSG_0929,All Style Tattoos Ltd,238.21
Barrow Borough Council,Local Restrictions Support Grant (Closed) Addendum: 5 January onwards,Wholesale And Retail Trade; Repair Of Motor Vehicles And Motorcycles,20-Jan-21,LRSG_0930,All Style Tattoos Ltd,2001.00
Barrow Borough Council,Local Restrictions Support Grant (Closed) Addendum: Tier 4,Wholesale And Retail Trade; Repair Of Motor Vehicles And Motorcycles,20-Jan-21,LRSG_0931,Istanbul Barber,238.21
Barrow Borough Council,Local Restrictions Support Grant (Closed) Addendum: 5 January onwards,Wholesale And Retail Trade; Repair Of Motor Vehicles And Motorcycles,20-Jan-21,LRSG_0932,Istanbul Barber,2001.00
Barrow Borough Council,Local Restrictions Support Grant (Closed) Addendum: Tier 4,Wholesale And Retail Trade; Repair Of Motor Vehicles And Motorcycles,20-Jan-21,LRSG_0933,Business Grant Recipient,238.21
Barrow Borough Council,Local Restrictions Support Grant (Closed) Addendum: 5 January onwards,Wholesale And Retail Trade; Repair Of Motor Vehicles And Motorcycles,20-Jan-21,LRSG_0934,Business Grant Recipient,2001.00
Barrow Borough Council,Local Restrictions Support Grant (Closed) Addendum: Tier 4,Wholesale And Retail Trade; Repair Of Motor Vehicles And Motorcycles,20-Jan-21,LRSG_0935,Mind In Furness,238.21
Barrow Borough Council,Local Restrictions Support Grant (Closed) Addendum: 5 January onwards,Wholesale And Retail Trade; Repair Of Motor Vehicles And Motorcycles,20-Jan-21,LRSG_0936,Mind In Furness,2001.00
Barrow Borough Council,Local Restrictions Support Grant (Closed) Addendum: Tier 4,Wholesale And Retail Trade; Repair Of Motor Vehicles And Motorcycles,20-Jan-21,LRSG_0937,Busy Kids Creche,238.21
Barrow Borough Council,Local Restrictions Support Grant (Closed) Addendum: 5 January onwards,Wholesale And Retail Trade; Repair Of Motor Vehicles And Motorcycles,20-Jan-21,LRSG_0938,Busy Kids Creche,2001.00
Barrow Borough Council,Local Restrictions Support Grant (Closed) Addendum: Tier 4,Wholesale And Retail Trade; Repair Of Motor Vehicles And Motorcycles,20-Jan-21,LRSG_0939,Business Grant Recipient,238.21
Barrow Borough Council,Local Restrictions Support Grant (Closed) Addendum: 5 January onwards,Wholesale And Retail Trade; Repair Of Motor Vehicles And Motorcycles,20-Jan-21,LRSG_0940,Business Grant Recipient,2001.00
Barrow Borough Council,Local Restrictions Support Grant (Closed) Addendum: Tier 4,Wholesale And Retail Trade; Repair Of Motor Vehicles And Motorcycles,20-Jan-21,LRSG_0941,Business Grant Recipient,238.21
Barrow Borough Council,Local Restrictions Support Grant (Closed) Addendum: 5 January onwards,Wholesale And Retail Trade; Repair Of Motor Vehicles And Motorcycles,20-Jan-21,LRSG_0942,Business Grant Recipient,2001.00
Barrow Borough Council,Local Restrictions Support Grant (Closed) Addendum: Tier 4,Wholesale And Retail Trade; Repair Of Motor Vehicles And Motorcycles,20-Jan-21,LRSG_0943,Business Grant Recipient,238.21
Barrow Borough Council,Local Restrictions Support Grant (Closed) Addendum: 5 January onwards,Wholesale And Retail Trade; Repair Of Motor Vehicles And Motorcycles,20-Jan-21,LRSG_0944,Business Grant Recipient,2001.00
Barrow Borough Council,Local Restrictions Support Grant (Closed) Addendum: Tier 4,Wholesale And Retail Trade; Repair Of Motor Vehicles And Motorcycles,20-Jan-21,LRSG_0945,The Owl Sanctuary,238.21
Barrow Borough Council,Local Restrictions Support Grant (Closed) Addendum: 5 January onwards,Wholesale And Retail Trade; Repair Of Motor Vehicles And Motorcycles,20-Jan-21,LRSG_0946,The Owl Sanctuary,2001.00
Barrow Borough Council,Local Restrictions Support Grant (Closed) Addendum: Tier 4,Other Service Activities,20-Jan-21,LRSG_0947,SA Salon ,238.21
Barrow Borough Council,Local Restrictions Support Grant (Closed) Addendum: 5 January onwards,Other Service Activities,20-Jan-21,LRSG_0948,SA Salon ,2001.00
Barrow Borough Council,Local Restrictions Support Grant (Closed) Addendum: Tier 4,Wholesale And Retail Trade; Repair Of Motor Vehicles And Motorcycles,20-Jan-21,LRSG_0949,Business Grant Recipient,238.21
Barrow Borough Council,Local Restrictions Support Grant (Closed) Addendum: 5 January onwards,Wholesale And Retail Trade; Repair Of Motor Vehicles And Motorcycles,20-Jan-21,LRSG_0950,Business Grant Recipient,2001.00
Barrow Borough Council,Local Restrictions Support Grant (Closed) Addendum: Tier 4,"Arts, Entertainment And Recreation",20-Jan-21,LRSG_0951,Holker Old Boys Football Club,238.21
Barrow Borough Council,Local Restrictions Support Grant (Closed) Addendum: 5 January onwards,"Arts, Entertainment And Recreation",20-Jan-21,LRSG_0952,Holker Old Boys Football Club,2001.00
Barrow Borough Council,Local Restrictions Support Grant (Closed) Addendum: Tier 4,"Arts, Entertainment And Recreation",20-Jan-21,LRSG_0953,Free Spirit Academy of Dance and Acrobatics Ltd,238.21
Barrow Borough Council,Local Restrictions Support Grant (Closed) Addendum: 5 January onwards,"Arts, Entertainment And Recreation",20-Jan-21,LRSG_0954,Free Spirit Academy of Dance and Acrobatics Ltd,2001.00
Barrow Borough Council,Local Restrictions Support Grant (Closed) Addendum: Tier 4,Wholesale And Retail Trade; Repair Of Motor Vehicles And Motorcycles,20-Jan-21,LRSG_0955,South Lakes Cars,238.21
Barrow Borough Council,Local Restrictions Support Grant (Closed) Addendum: 5 January onwards,Wholesale And Retail Trade; Repair Of Motor Vehicles And Motorcycles,20-Jan-21,LRSG_0956,South Lakes Cars,2001.00
Barrow Borough Council,Local Restrictions Support Grant (Closed) Addendum: Tier 4,"Arts, Entertainment And Recreation",20-Jan-21,LRSG_0957,Reaching Wellness Ltd,238.21
Barrow Borough Council,Local Restrictions Support Grant (Closed) Addendum: 5 January onwards,"Arts, Entertainment And Recreation",20-Jan-21,LRSG_0958,Reaching Wellness Ltd,2001.00
Barrow Borough Council,Local Restrictions Support Grant (Closed) Addendum: Tier 4,Wholesale And Retail Trade; Repair Of Motor Vehicles And Motorcycles,20-Jan-21,LRSG_0959,The Body Shop International,357.14
Barrow Borough Council,Local Restrictions Support Grant (Closed) Addendum: 5 January onwards,Wholesale And Retail Trade; Repair Of Motor Vehicles And Motorcycles,20-Jan-21,LRSG_0960,The Body Shop International,3000.00
Barrow Borough Council,Local Restrictions Support Grant (Closed) Addendum: Tier 4,Wholesale And Retail Trade; Repair Of Motor Vehicles And Motorcycles,20-Jan-21,LRSG_0961,Business Grant Recipient,238.21
Barrow Borough Council,Local Restrictions Support Grant (Closed) Addendum: 5 January onwards,Wholesale And Retail Trade; Repair Of Motor Vehicles And Motorcycles,20-Jan-21,LRSG_0962,Business Grant Recipient,2001.00
Barrow Borough Council,Local Restrictions Support Grant (Closed) Addendum: Tier 4,Wholesale And Retail Trade; Repair Of Motor Vehicles And Motorcycles,20-Jan-21,LRSG_0963,Business Grant Recipient,238.21
Barrow Borough Council,Local Restrictions Support Grant (Closed) Addendum: 5 January onwards,Wholesale And Retail Trade; Repair Of Motor Vehicles And Motorcycles,20-Jan-21,LRSG_0964,Business Grant Recipient,2001.00
Barrow Borough Council,Local Restrictions Support Grant (Closed) Addendum: Tier 4,Wholesale And Retail Trade; Repair Of Motor Vehicles And Motorcycles,20-Jan-21,LRSG_0965,Business Grant Recipient,238.21
Barrow Borough Council,Local Restrictions Support Grant (Closed) Addendum: 5 January onwards,Wholesale And Retail Trade; Repair Of Motor Vehicles And Motorcycles,20-Jan-21,LRSG_0966,Business Grant Recipient,2001.00
Barrow Borough Council,Local Restrictions Support Grant (Closed) Addendum: Tier 4,Wholesale And Retail Trade; Repair Of Motor Vehicles And Motorcycles,20-Jan-21,LRSG_0967,Business Grant Recipient,238.21
Barrow Borough Council,Local Restrictions Support Grant (Closed) Addendum: 5 January onwards,Wholesale And Retail Trade; Repair Of Motor Vehicles And Motorcycles,20-Jan-21,LRSG_0968,Business Grant Recipient,2001.00
Barrow Borough Council,Local Restrictions Support Grant (Closed) Addendum: Tier 4,Accommodation And Food Service Activities,20-Jan-21,LRSG_0969,Business Grant Recipient,238.21
Barrow Borough Council,Local Restrictions Support Grant (Closed) Addendum: 5 January onwards,Accommodation And Food Service Activities,20-Jan-21,LRSG_0970,Business Grant Recipient,2001.00
Barrow Borough Council,Local Restrictions Support Grant (Closed) Addendum: Tier 4,Wholesale And Retail Trade; Repair Of Motor Vehicles And Motorcycles,20-Jan-21,LRSG_0971,Fat Bobs CDs Ltd,238.21
Barrow Borough Council,Local Restrictions Support Grant (Closed) Addendum: 5 January onwards,Wholesale And Retail Trade; Repair Of Motor Vehicles And Motorcycles,20-Jan-21,LRSG_0972,Fat Bobs CDs Ltd,2001.00
Barrow Borough Council,Local Restrictions Support Grant (Closed) Addendum: Tier 4,Wholesale And Retail Trade; Repair Of Motor Vehicles And Motorcycles,20-Jan-21,LRSG_0973,Business Grant Recipient,357.14
Barrow Borough Council,Local Restrictions Support Grant (Closed) Addendum: 5 January onwards,Wholesale And Retail Trade; Repair Of Motor Vehicles And Motorcycles,20-Jan-21,LRSG_0974,Business Grant Recipient,3000.00
Barrow Borough Council,Local Restrictions Support Grant (Closed) Addendum: Tier 4,Wholesale And Retail Trade; Repair Of Motor Vehicles And Motorcycles,20-Jan-21,LRSG_0975,Animal Welfare (Furness),238.21
Barrow Borough Council,Local Restrictions Support Grant (Closed) Addendum: 5 January onwards,Wholesale And Retail Trade; Repair Of Motor Vehicles And Motorcycles,20-Jan-21,LRSG_0976,Animal Welfare (Furness),2001.00
Barrow Borough Council,Local Restrictions Support Grant (Closed) Addendum: Tier 4,Wholesale And Retail Trade; Repair Of Motor Vehicles And Motorcycles,20-Jan-21,LRSG_0977,Animal Welfare (Furness),238.21
Barrow Borough Council,Local Restrictions Support Grant (Closed) Addendum: 5 January onwards,Wholesale And Retail Trade; Repair Of Motor Vehicles And Motorcycles,20-Jan-21,LRSG_0978,Animal Welfare (Furness),2001.00
Barrow Borough Council,Local Restrictions Support Grant (Closed) Addendum: Tier 4,Wholesale And Retail Trade; Repair Of Motor Vehicles And Motorcycles,20-Jan-21,LRSG_0979,Business Grant Recipient,238.21
Barrow Borough Council,Local Restrictions Support Grant (Closed) Addendum: 5 January onwards,Wholesale And Retail Trade; Repair Of Motor Vehicles And Motorcycles,20-Jan-21,LRSG_0980,Business Grant Recipient,2001.00
Barrow Borough Council,Local Restrictions Support Grant (Closed)�Addendum�,Wholesale And Retail Trade; Repair Of Motor Vehicles And Motorcycles,21-Jan-21,LRSG_0981,Business Grant Recipient,1334.00
Barrow Borough Council,Local Restrictions Support Grant (Closed)�Addendum�,"Arts, Entertainment And Recreation",21-Jan-21,LRSG_0982,Furness Pistol/Rifle Club,1334.00
Barrow Borough Council,Local Restrictions Support Grant (Open)�,Accommodation And Food Service Activities,21-Jan-21,LRSG_0983,Furness Cricket Club,633.79
Barrow Borough Council,Local Restrictions Support Grant (Closed)�Addendum�,Accommodation And Food Service Activities,22-Jan-21,LRSG_0984,Beluto Properties ,2000.00
Barrow Borough Council,Local Restrictions Support Grant (Closed)�Addendum�,Wholesale And Retail Trade; Repair Of Motor Vehicles And Motorcycles,22-Jan-21,LRSG_0985,hair Flair Ltd,1334.00
Barrow Borough Council,Local Restrictions Support Grant (Closed)�Addendum�,Wholesale And Retail Trade; Repair Of Motor Vehicles And Motorcycles,22-Jan-21,LRSG_0986,Stollers Furniture World Limited,3000.00
Barrow Borough Council,Local Restrictions Support Grant (Closed)�Addendum�,"Arts, Entertainment And Recreation",22-Jan-21,LRSG_0987,Walney Community Trust,1334.00
Barrow Borough Council,Local Restrictions Support Grant (Closed)�Addendum�,Wholesale And Retail Trade; Repair Of Motor Vehicles And Motorcycles,22-Jan-21,LRSG_0988,The Salon,1334.00
Barrow Borough Council,Local Restrictions Support Grant (Closed)�Addendum�,Wholesale And Retail Trade; Repair Of Motor Vehicles And Motorcycles,22-Jan-21,LRSG_0989,Business Grant Recipient,1334.00
Barrow Borough Council,Local Restrictions Support Grant (Closed)�Addendum�,Wholesale And Retail Trade; Repair Of Motor Vehicles And Motorcycles,22-Jan-21,LRSG_0990,Window Worx Ltd T/A The Wet Room,1334.00
Barrow Borough Council,Local Restrictions Support Grant (Closed)�Addendum�,Wholesale And Retail Trade; Repair Of Motor Vehicles And Motorcycles,22-Jan-21,LRSG_0991,Done Brothers Ltd,1334.00
Barrow Borough Council,Local Restrictions Support Grant (Closed)�Addendum�,"Arts, Entertainment And Recreation",22-Jan-21,LRSG_0992,Vue Entertainment Ltd,3000.00
Barrow Borough Council,Local Restrictions Support Grant (Closed)�Addendum�,Wholesale And Retail Trade; Repair Of Motor Vehicles And Motorcycles,22-Jan-21,LRSG_0993,Business Grant Recipient,1334.00
Barrow Borough Council,Local Restrictions Support Grant (Open)�,Accommodation And Food Service Activities,22-Jan-21,LRSG_0994,Beluto Properties ,950.00
Barrow Borough Council,Local Restrictions Support Grant (Open)�,Accommodation And Food Service Activities,22-Jan-21,LRSG_0995,Business Grant Recipient,633.79
Barrow Borough Council,Christmas Support Payment for �wet-led pubs� (CSP),"Arts, Entertainment And Recreation",22-Jan-21,LRSG_0996,Furness Rugby Union Football Club,1000.00
Barrow Borough Council,Christmas Support Payment for �wet-led pubs� (CSP),Accommodation And Food Service Activities,22-Jan-21,LRSG_0997,Furness Cricket Club,1000.00
Barrow Borough Council,Christmas Support Payment for �wet-led pubs� (CSP),Accommodation And Food Service Activities,22-Jan-21,LRSG_0998,Business Grant Recipient,1000.00
Barrow Borough Council,Local Restrictions Support Grant (Closed) Addendum: Tier 4,Accommodation And Food Service Activities,22-Jan-21,LRSG_0999,Business Grant Recipient,238.21
Barrow Borough Council,Local Restrictions Support Grant (Closed) Addendum: 5 January onwards,Accommodation And Food Service Activities,22-Jan-21,LRSG_1000,Business Grant Recipient,2001.00
Barrow Borough Council,Local Restrictions Support Grant (Open)�,Accommodation And Food Service Activities,22-Jan-21,LRSG_1001,Business Grant Recipient,967.36
Barrow Borough Council,Local Restrictions Support Grant (Closed) Addendum: Tier 4,Accommodation And Food Service Activities,22-Jan-21,LRSG_1002,Business Grant Recipient,238.21
Barrow Borough Council,Local Restrictions Support Grant (Closed) Addendum: 5 January onwards,Accommodation And Food Service Activities,22-Jan-21,LRSG_1003,Business Grant Recipient,2001.00
Barrow Borough Council,Local Restrictions Support Grant (Open)�,Accommodation And Food Service Activities,22-Jan-21,LRSG_1004,Business Grant Recipient,967.36
Barrow Borough Council,Local Restrictions Support Grant (Closed) Addendum: Tier 4,Accommodation And Food Service Activities,22-Jan-21,LRSG_1005,Barrow Arms ,357.14
Barrow Borough Council,Local Restrictions Support Grant (Closed) Addendum: 5 January onwards,Accommodation And Food Service Activities,22-Jan-21,LRSG_1006,Barrow Arms ,3000.00
Barrow Borough Council,Local Restrictions Support Grant (Open)�,Accommodation And Food Service Activities,22-Jan-21,LRSG_1007,Barrow Arms ,1450.00
Barrow Borough Council,Local Restrictions Support Grant (Closed) Addendum: Tier 4,Accommodation And Food Service Activities,22-Jan-21,LRSG_1008,Roa Island Boating Club Ltd,238.21
Barrow Borough Council,Local Restrictions Support Grant (Closed) Addendum: 5 January onwards,Accommodation And Food Service Activities,22-Jan-21,LRSG_1009,Roa Island Boating Club Ltd,2001.00
Barrow Borough Council,Local Restrictions Support Grant (Open)�,Accommodation And Food Service Activities,22-Jan-21,LRSG_1010,Roa Island Boating Club Ltd,967.36
Barrow Borough Council,Local Restrictions Support Grant (Closed) Addendum: Tier 4,"Arts, Entertainment And Recreation",22-Jan-21,LRSG_1011,Duddon Sports & Social Club,238.21
Barrow Borough Council,Local Restrictions Support Grant (Closed) Addendum: 5 January onwards,"Arts, Entertainment And Recreation",22-Jan-21,LRSG_1012,Duddon Sports & Social Club,2001.00
Barrow Borough Council,Local Restrictions Support Grant (Open)�,"Arts, Entertainment And Recreation",22-Jan-21,LRSG_1013,Duddon Sports & Social Club,967.36
Barrow Borough Council,Local Restrictions Support Grant (Closed) Addendum: Tier 4,Wholesale And Retail Trade; Repair Of Motor Vehicles And Motorcycles,22-Jan-21,LRSG_1014,maiquez Limited,357.14
Barrow Borough Council,Local Restrictions Support Grant (Closed) Addendum: 5 January onwards,Wholesale And Retail Trade; Repair Of Motor Vehicles And Motorcycles,22-Jan-21,LRSG_1015,maiquez Limited,3000.00
Barrow Borough Council,Local Restrictions Support Grant (Open)�,Wholesale And Retail Trade; Repair Of Motor Vehicles And Motorcycles,22-Jan-21,LRSG_1016,maiquez Limited,1450.00
Barrow Borough Council,Local Restrictions Support Grant (Closed) Addendum: Tier 4,Accommodation And Food Service Activities,22-Jan-21,LRSG_1017,Diamond (Barrow) Ltd,238.21
Barrow Borough Council,Local Restrictions Support Grant (Closed) Addendum: 5 January onwards,Accommodation And Food Service Activities,22-Jan-21,LRSG_1018,Diamond (Barrow) Ltd,2001.00
Barrow Borough Council,Local Restrictions Support Grant (Open)�,Accommodation And Food Service Activities,22-Jan-21,LRSG_1019,Diamond (Barrow) Ltd,967.36
Barrow Borough Council,Local Restrictions Support Grant (Closed) Addendum: Tier 4,Accommodation And Food Service Activities,22-Jan-21,LRSG_1020, Barrow Fiesta ,357.14
Barrow Borough Council,Local Restrictions Support Grant (Closed) Addendum: 5 January onwards,Accommodation And Food Service Activities,22-Jan-21,LRSG_1021, Barrow Fiesta ,3000.00
Barrow Borough Council,Local Restrictions Support Grant (Open)�,Accommodation And Food Service Activities,22-Jan-21,LRSG_1022, Barrow Fiesta ,1450.00
Barrow Borough Council,Local Restrictions Support Grant (Closed) Addendum: Tier 4,"Arts, Entertainment And Recreation",22-Jan-21,LRSG_1023,Business Grant Recipient,238.21
Barrow Borough Council,Local Restrictions Support Grant (Closed) Addendum: 5 January onwards,"Arts, Entertainment And Recreation",22-Jan-21,LRSG_1024,Business Grant Recipient,2001.00
Barrow Borough Council,Local Restrictions Support Grant (Open)�,"Arts, Entertainment And Recreation",22-Jan-21,LRSG_1025,Business Grant Recipient,967.36
Barrow Borough Council,Local Restrictions Support Grant (Closed) Addendum: Tier 4,Accommodation And Food Service Activities,22-Jan-21,LRSG_1026,Business Grant Recipient,238.21
Barrow Borough Council,Local Restrictions Support Grant (Closed) Addendum: 5 January onwards,Accommodation And Food Service Activities,22-Jan-21,LRSG_1027,Business Grant Recipient,2001.00
Barrow Borough Council,Local Restrictions Support Grant (Open)�,Accommodation And Food Service Activities,22-Jan-21,LRSG_1028,Business Grant Recipient,967.36
Barrow Borough Council,Local Restrictions Support Grant (Open)�,"Arts, Entertainment And Recreation",22-Jan-21,LRSG_1029,Business Grant Recipient,967.36
Barrow Borough Council,Local Restrictions Support Grant (Closed) Addendum: Tier 4,Accommodation And Food Service Activities,22-Jan-21,LRSG_1030,Business Grant Recipient,357.14
Barrow Borough Council,Local Restrictions Support Grant (Closed) Addendum: 5 January onwards,Accommodation And Food Service Activities,22-Jan-21,LRSG_1031,Business Grant Recipient,3000.00
Barrow Borough Council,Local Restrictions Support Grant (Open)�,Accommodation And Food Service Activities,22-Jan-21,LRSG_1032,Business Grant Recipient,1450.00
Barrow Borough Council,Local Restrictions Support Grant (Closed) Addendum: Tier 4,"Arts, Entertainment And Recreation",22-Jan-21,LRSG_1033,Business Grant Recipient,238.21
Barrow Borough Council,Local Restrictions Support Grant (Closed) Addendum: 5 January onwards,"Arts, Entertainment And Recreation",22-Jan-21,LRSG_1034,Business Grant Recipient,2001.00
Barrow Borough Council,Local Restrictions Support Grant (Open)�,"Arts, Entertainment And Recreation",22-Jan-21,LRSG_1035,Business Grant Recipient,967.36
Barrow Borough Council,Local Restrictions Support Grant (Closed) Addendum: Tier 4,Accommodation And Food Service Activities,22-Jan-21,LRSG_1036,Lara Gibbons Ltd,238.21
Barrow Borough Council,Local Restrictions Support Grant (Closed) Addendum: 5 January onwards,Accommodation And Food Service Activities,22-Jan-21,LRSG_1037,Lara Gibbons Ltd,2001.00
Barrow Borough Council,Local Restrictions Support Grant (Open)�,Accommodation And Food Service Activities,22-Jan-21,LRSG_1038,Lara Gibbons Ltd,967.36
Barrow Borough Council,Local Restrictions Support Grant (Closed) Addendum: Tier 4,Accommodation And Food Service Activities,22-Jan-21,LRSG_1039,Abbey Mill Coffee Shop,238.21
Barrow Borough Council,Local Restrictions Support Grant (Closed) Addendum: 5 January onwards,Accommodation And Food Service Activities,22-Jan-21,LRSG_1040,Abbey Mill Coffee Shop,2001.00
Barrow Borough Council,Local Restrictions Support Grant (Open)�,Accommodation And Food Service Activities,22-Jan-21,LRSG_1041,Abbey Mill Coffee Shop,967.36
Barrow Borough Council,Local Restrictions Support Grant (Closed) Addendum: Tier 4,Accommodation And Food Service Activities,22-Jan-21,LRSG_1042,Business Grant Recipient,238.21
Barrow Borough Council,Local Restrictions Support Grant (Closed) Addendum: 5 January onwards,Accommodation And Food Service Activities,22-Jan-21,LRSG_1043,Business Grant Recipient,2001.00
Barrow Borough Council,Local Restrictions Support Grant (Open)�,Accommodation And Food Service Activities,22-Jan-21,LRSG_1044,Business Grant Recipient,967.36
Barrow Borough Council,Local Restrictions Support Grant (Closed) Addendum: Tier 4,"Arts, Entertainment And Recreation",22-Jan-21,LRSG_1045,Furness Golf Club,357.14
Barrow Borough Council,Local Restrictions Support Grant (Closed) Addendum: 5 January onwards,"Arts, Entertainment And Recreation",22-Jan-21,LRSG_1046,Furness Golf Club,3000.00
Barrow Borough Council,Local Restrictions Support Grant (Open)�,"Arts, Entertainment And Recreation",22-Jan-21,LRSG_1047,Furness Golf Club,1450.00
Barrow Borough Council,Local Restrictions Support Grant (Closed) Addendum: Tier 4,"Arts, Entertainment And Recreation",22-Jan-21,LRSG_1048,The Dunnerholme Golf Club,238.21
Barrow Borough Council,Local Restrictions Support Grant (Closed) Addendum: 5 January onwards,"Arts, Entertainment And Recreation",22-Jan-21,LRSG_1049,The Dunnerholme Golf Club,2001.00
Barrow Borough Council,Local Restrictions Support Grant (Open)�,"Arts, Entertainment And Recreation",22-Jan-21,LRSG_1050,The Dunnerholme Golf Club,967.36
Barrow Borough Council,Local Restrictions Support Grant (Closed) Addendum: Tier 4,"Arts, Entertainment And Recreation",22-Jan-21,LRSG_1051,Coop sports and social Club,238.21
Barrow Borough Council,Local Restrictions Support Grant (Closed) Addendum: 5 January onwards,"Arts, Entertainment And Recreation",22-Jan-21,LRSG_1052,Coop sports and social Club,2001.00
Barrow Borough Council,Local Restrictions Support Grant (Open)�,"Arts, Entertainment And Recreation",22-Jan-21,LRSG_1053,Coop sports and social Club,967.36
Barrow Borough Council,Local Restrictions Support Grant (Closed) Addendum: Tier 4,Accommodation And Food Service Activities,22-Jan-21,LRSG_1054,Business Grant Recipient,238.21
Barrow Borough Council,Local Restrictions Support Grant (Closed) Addendum: 5 January onwards,Accommodation And Food Service Activities,22-Jan-21,LRSG_1055,Business Grant Recipient,2001.00
Barrow Borough Council,Local Restrictions Support Grant (Open)�,Accommodation And Food Service Activities,22-Jan-21,LRSG_1056,Business Grant Recipient,967.36
Barrow Borough Council,Local Restrictions Support Grant (Closed) Addendum: Tier 4,"Arts, Entertainment And Recreation",22-Jan-21,LRSG_1057,Furness Rugby Union Football Club,238.21
Barrow Borough Council,Local Restrictions Support Grant (Closed) Addendum: 5 January onwards,"Arts, Entertainment And Recreation",22-Jan-21,LRSG_1058,Furness Rugby Union Football Club,2001.00
Barrow Borough Council,Local Restrictions Support Grant (Open)�,"Arts, Entertainment And Recreation",22-Jan-21,LRSG_1059,Furness Rugby Union Football Club,967.36
Barrow Borough Council,Local Restrictions Support Grant (Closed) Addendum: Tier 4,Accommodation And Food Service Activities,22-Jan-21,LRSG_1060,Business Grant Recipient,357.14
Barrow Borough Council,Local Restrictions Support Grant (Closed) Addendum: 5 January onwards,Accommodation And Food Service Activities,22-Jan-21,LRSG_1061,Business Grant Recipient,3000.00
Barrow Borough Council,Local Restrictions Support Grant (Open)�,Accommodation And Food Service Activities,22-Jan-21,LRSG_1062,Business Grant Recipient,1450.00
Barrow Borough Council,Local Restrictions Support Grant (Closed) Addendum: Tier 4,"Arts, Entertainment And Recreation",22-Jan-21,LRSG_1063,LQ (Cumbria) Ltd,357.14
Barrow Borough Council,Local Restrictions Support Grant (Closed) Addendum: 5 January onwards,"Arts, Entertainment And Recreation",22-Jan-21,LRSG_1064,LQ (Cumbria) Ltd,3000.00
Barrow Borough Council,Local Restrictions Support Grant (Open)�,"Arts, Entertainment And Recreation",22-Jan-21,LRSG_1065,LQ (Cumbria) Ltd,1450.00
Barrow Borough Council,Local Restrictions Support Grant (Closed) Addendum: Tier 4,Accommodation And Food Service Activities,22-Jan-21,LRSG_1066,Baam Siam Barrow Limited,238.21
Barrow Borough Council,Local Restrictions Support Grant (Closed) Addendum: 5 January onwards,Accommodation And Food Service Activities,22-Jan-21,LRSG_1067,Baam Siam Barrow Limited,2001.00
Barrow Borough Council,Local Restrictions Support Grant (Open)�,Accommodation And Food Service Activities,22-Jan-21,LRSG_1068,Baam Siam Barrow Limited,967.36
Barrow Borough Council,Local Restrictions Support Grant (Closed) Addendum: Tier 4,Accommodation And Food Service Activities,22-Jan-21,LRSG_1069,Abbey House Hotel (Cumbria) Ltd,535.71
Barrow Borough Council,Local Restrictions Support Grant (Closed) Addendum: 5 January onwards,Accommodation And Food Service Activities,22-Jan-21,LRSG_1070,Abbey House Hotel (Cumbria) Ltd,4500.00
Barrow Borough Council,Local Restrictions Support Grant (Open)�,Accommodation And Food Service Activities,22-Jan-21,LRSG_1071,Abbey House Hotel (Cumbria) Ltd,2175.00
Barrow Borough Council,Local Restrictions Support Grant (Closed) Addendum: Tier 4,Accommodation And Food Service Activities,22-Jan-21,LRSG_1072,Business Grant Recipient,238.21
Barrow Borough Council,Local Restrictions Support Grant (Closed) Addendum: 5 January onwards,Accommodation And Food Service Activities,22-Jan-21,LRSG_1073,Business Grant Recipient,2001.00
Barrow Borough Council,Local Restrictions Support Grant (Open)�,Accommodation And Food Service Activities,22-Jan-21,LRSG_1074,Business Grant Recipient,967.36
Barrow Borough Council,Local Restrictions Support Grant (Closed) Addendum: Tier 4,Accommodation And Food Service Activities,22-Jan-21,LRSG_1075,Hoperiver Limited,357.14
Barrow Borough Council,Local Restrictions Support Grant (Closed) Addendum: 5 January onwards,Accommodation And Food Service Activities,22-Jan-21,LRSG_1076,Hoperiver Limited,3000.00
Barrow Borough Council,Local Restrictions Support Grant (Open)�,Accommodation And Food Service Activities,22-Jan-21,LRSG_1077,Hoperiver Limited,1450.00
Barrow Borough Council,Local Restrictions Support Grant (Closed) Addendum: Tier 4,Accommodation And Food Service Activities,22-Jan-21,LRSG_1078,Business Grant Recipient,238.21
Barrow Borough Council,Local Restrictions Support Grant (Closed) Addendum: 5 January onwards,Accommodation And Food Service Activities,22-Jan-21,LRSG_1079,Business Grant Recipient,2001.00
Barrow Borough Council,Local Restrictions Support Grant (Open)�,Accommodation And Food Service Activities,22-Jan-21,LRSG_1080,Business Grant Recipient,967.36
Barrow Borough Council,Local Restrictions Support Grant (Closed) Addendum: Tier 4,Accommodation And Food Service Activities,22-Jan-21,LRSG_1081,Business Grant Recipient,238.21
Barrow Borough Council,Local Restrictions Support Grant (Closed) Addendum: 5 January onwards,Accommodation And Food Service Activities,22-Jan-21,LRSG_1082,Business Grant Recipient,2001.00
Barrow Borough Council,Local Restrictions Support Grant (Open)�,Accommodation And Food Service Activities,22-Jan-21,LRSG_1083,Business Grant Recipient,967.36
Barrow Borough Council,Local Restrictions Support Grant (Closed) Addendum: Tier 4,Accommodation And Food Service Activities,22-Jan-21,LRSG_1084,Business Grant Recipient,357.14
Barrow Borough Council,Local Restrictions Support Grant (Closed) Addendum: 5 January onwards,Accommodation And Food Service Activities,22-Jan-21,LRSG_1085,Business Grant Recipient,3000.00
Barrow Borough Council,Local Restrictions Support Grant (Open)�,Accommodation And Food Service Activities,22-Jan-21,LRSG_1086,Business Grant Recipient,1450.00
Barrow Borough Council,Local Restrictions Support Grant (Closed) Addendum: Tier 4,Accommodation And Food Service Activities,22-Jan-21,LRSG_1087,Business Grant Recipient,238.21
Barrow Borough Council,Local Restrictions Support Grant (Closed) Addendum: 5 January onwards,Accommodation And Food Service Activities,22-Jan-21,LRSG_1088,Business Grant Recipient,2001.00
Barrow Borough Council,Local Restrictions Support Grant (Open)�,Accommodation And Food Service Activities,22-Jan-21,LRSG_1089,Business Grant Recipient,967.36
Barrow Borough Council,Local Restrictions Support Grant (Closed) Addendum: Tier 4,"Arts, Entertainment And Recreation",22-Jan-21,LRSG_1090,West Shore Bowling Club,238.21
Barrow Borough Council,Local Restrictions Support Grant (Closed) Addendum: 5 January onwards,"Arts, Entertainment And Recreation",22-Jan-21,LRSG_1091,West Shore Bowling Club,2001.00
Barrow Borough Council,Local Restrictions Support Grant (Open)�,"Arts, Entertainment And Recreation",22-Jan-21,LRSG_1092,West Shore Bowling Club,967.36
Barrow Borough Council,Local Restrictions Support Grant (Closed) Addendum: Tier 4,"Arts, Entertainment And Recreation",22-Jan-21,LRSG_1093,Askam United Football Club,238.21
Barrow Borough Council,Local Restrictions Support Grant (Closed) Addendum: 5 January onwards,"Arts, Entertainment And Recreation",22-Jan-21,LRSG_1094,Askam United Football Club,2001.00
Barrow Borough Council,Local Restrictions Support Grant (Open)�,"Arts, Entertainment And Recreation",22-Jan-21,LRSG_1095,Askam United Football Club,967.36
Barrow Borough Council,Local Restrictions Support Grant (Closed) Addendum: Tier 4,"Arts, Entertainment And Recreation",22-Jan-21,LRSG_1096,Furness Gymnastics Club,357.14
Barrow Borough Council,Local Restrictions Support Grant (Closed) Addendum: 5 January onwards,"Arts, Entertainment And Recreation",22-Jan-21,LRSG_1097,Furness Gymnastics Club,3000.00
Barrow Borough Council,Local Restrictions Support Grant (Open)�,"Arts, Entertainment And Recreation",22-Jan-21,LRSG_1098,Furness Gymnastics Club,1450.00
Barrow Borough Council,Local Restrictions Support Grant (Closed) Addendum: Tier 4,"Arts, Entertainment And Recreation",22-Jan-21,LRSG_1099,Little Subs Barrow Ltd,357.14
Barrow Borough Council,Local Restrictions Support Grant (Closed) Addendum: 5 January onwards,"Arts, Entertainment And Recreation",22-Jan-21,LRSG_1100,Little Subs Barrow Ltd,3000.00
Barrow Borough Council,Local Restrictions Support Grant (Open)�,"Arts, Entertainment And Recreation",22-Jan-21,LRSG_1101,Little Subs Barrow Ltd,1450.00
Barrow Borough Council,Local Restrictions Support Grant (Closed) Addendum: Tier 4,Accommodation And Food Service Activities,22-Jan-21,LRSG_1102,Dalton Cricket Club,238.21
Barrow Borough Council,Local Restrictions Support Grant (Closed) Addendum: 5 January onwards,Accommodation And Food Service Activities,22-Jan-21,LRSG_1103,Dalton Cricket Club,2001.00
Barrow Borough Council,Local Restrictions Support Grant (Open)�,Accommodation And Food Service Activities,22-Jan-21,LRSG_1104,Dalton Cricket Club,967.36
Barrow Borough Council,Local Restrictions Support Grant (Closed) Addendum: Tier 4,"Arts, Entertainment And Recreation",22-Jan-21,LRSG_1105,Barrow Cricket Club ,238.21
Barrow Borough Council,Local Restrictions Support Grant (Closed) Addendum: 5 January onwards,"Arts, Entertainment And Recreation",22-Jan-21,LRSG_1106,Barrow Cricket Club ,2001.00
Barrow Borough Council,Local Restrictions Support Grant (Open)�,"Arts, Entertainment And Recreation",22-Jan-21,LRSG_1107,Barrow Cricket Club ,967.36
Barrow Borough Council,Local Restrictions Support Grant (Closed) Addendum: Tier 4,Accommodation And Food Service Activities,22-Jan-21,LRSG_1108,Business Grant Recipient,535.71
Barrow Borough Council,Local Restrictions Support Grant (Closed) Addendum: 5 January onwards,Accommodation And Food Service Activities,22-Jan-21,LRSG_1109,Business Grant Recipient,4500.00
Barrow Borough Council,Local Restrictions Support Grant (Open)�,Accommodation And Food Service Activities,22-Jan-21,LRSG_1110,Business Grant Recipient,2175.00
Barrow Borough Council,Local Restrictions Support Grant (Closed) Addendum: Tier 4,Accommodation And Food Service Activities,22-Jan-21,LRSG_1111,Maisonette at the Brown Cow,238.21
Barrow Borough Council,Local Restrictions Support Grant (Closed) Addendum: 5 January onwards,Accommodation And Food Service Activities,22-Jan-21,LRSG_1112,Maisonette at the Brown Cow,2001.00
Barrow Borough Council,Local Restrictions Support Grant (Open)�,Accommodation And Food Service Activities,22-Jan-21,LRSG_1113,Maisonette at the Brown Cow,967.36
Barrow Borough Council,Local Restrictions Support Grant (Closed) Addendum: Tier 4,Accommodation And Food Service Activities,22-Jan-21,LRSG_1114,Business Grant Recipient,238.21
Barrow Borough Council,Local Restrictions Support Grant (Closed) Addendum: 5 January onwards,Accommodation And Food Service Activities,22-Jan-21,LRSG_1115,Business Grant Recipient,2001.00
Barrow Borough Council,Local Restrictions Support Grant (Open)�,Accommodation And Food Service Activities,22-Jan-21,LRSG_1116,Business Grant Recipient,967.36
Barrow Borough Council,Local Restrictions Support Grant (Closed) Addendum: Tier 4,Accommodation And Food Service Activities,22-Jan-21,LRSG_1117,Business Grant Recipient,238.21
Barrow Borough Council,Local Restrictions Support Grant (Closed) Addendum: 5 January onwards,Accommodation And Food Service Activities,22-Jan-21,LRSG_1118,Business Grant Recipient,2001.00
Barrow Borough Council,Local Restrictions Support Grant (Open)�,Accommodation And Food Service Activities,22-Jan-21,LRSG_1119,Business Grant Recipient,967.36
Barrow Borough Council,Local Restrictions Support Grant (Closed) Addendum: Tier 4,Accommodation And Food Service Activities,22-Jan-21,LRSG_1120,Business Grant Recipient,238.21
Barrow Borough Council,Local Restrictions Support Grant (Closed) Addendum: 5 January onwards,Accommodation And Food Service Activities,22-Jan-21,LRSG_1121,Business Grant Recipient,2001.00
Barrow Borough Council,Local Restrictions Support Grant (Open)�,Accommodation And Food Service Activities,22-Jan-21,LRSG_1122,Business Grant Recipient,967.36
Barrow Borough Council,Local Restrictions Support Grant (Closed) Addendum: Tier 4,Accommodation And Food Service Activities,22-Jan-21,LRSG_1123,Business Grant Recipient,238.21
Barrow Borough Council,Local Restrictions Support Grant (Closed) Addendum: 5 January onwards,Accommodation And Food Service Activities,22-Jan-21,LRSG_1124,Business Grant Recipient,2001.00
Barrow Borough Council,Local Restrictions Support Grant (Open)�,Accommodation And Food Service Activities,22-Jan-21,LRSG_1125,Business Grant Recipient,967.36
Barrow Borough Council,Local Restrictions Support Grant (Closed) Addendum: Tier 4,,22-Jan-21,LRSG_1126,Royal Naval Association Club,238.21
Barrow Borough Council,Local Restrictions Support Grant (Closed) Addendum: 5 January onwards,,22-Jan-21,LRSG_1127,Royal Naval Association Club,2001.00
Barrow Borough Council,Local Restrictions Support Grant (Open)�,,22-Jan-21,LRSG_1128,Royal Naval Association Club,967.36
Barrow Borough Council,Local Restrictions Support Grant (Closed) Addendum: 5 January onwards,Accommodation And Food Service Activities,22-Jan-21,LRSG_1129,Business Grant Recipient,3000.00
Barrow Borough Council,Local Restrictions Support Grant (Open)�,Accommodation And Food Service Activities,22-Jan-21,LRSG_1130,Business Grant Recipient,1450.00
Barrow Borough Council,Local Restrictions Support Grant (Closed) Addendum: Tier 4,Accommodation And Food Service Activities,22-Jan-21,LRSG_1131,Business Grant Recipient,357.14
Barrow Borough Council,Local Restrictions Support Grant (Closed) Addendum: Tier 4,Accommodation And Food Service Activities,22-Jan-21,LRSG_1132,Vickerstown cricket and tennis club ,238.21
Barrow Borough Council,Local Restrictions Support Grant (Closed) Addendum: 5 January onwards,Accommodation And Food Service Activities,22-Jan-21,LRSG_1133,Vickerstown cricket and tennis club ,2001.00
Barrow Borough Council,Local Restrictions Support Grant (Open)�,Accommodation And Food Service Activities,22-Jan-21,LRSG_1134,Vickerstown cricket and tennis club ,967.36
Barrow Borough Council,Local Restrictions Support Grant (Closed) Addendum: Tier 4,"Arts, Entertainment And Recreation",22-Jan-21,LRSG_1135,Dalton Leisure Services Ltd,535.71
Barrow Borough Council,Local Restrictions Support Grant (Closed) Addendum: 5 January onwards,"Arts, Entertainment And Recreation",22-Jan-21,LRSG_1136,Dalton Leisure Services Ltd,4500.00
Barrow Borough Council,Local Restrictions Support Grant (Open)�,"Arts, Entertainment And Recreation",22-Jan-21,LRSG_1137,Dalton Leisure Services Ltd,2175.00
Barrow Borough Council,Local Restrictions Support Grant (Closed) Addendum: Tier 4,Accommodation And Food Service Activities,22-Jan-21,LRSG_1138,Business Grant Recipient,238.21
Barrow Borough Council,Local Restrictions Support Grant (Closed) Addendum: 5 January onwards,Accommodation And Food Service Activities,22-Jan-21,LRSG_1139,Business Grant Recipient,2001.00
Barrow Borough Council,Local Restrictions Support Grant (Open)�,Accommodation And Food Service Activities,22-Jan-21,LRSG_1140,Business Grant Recipient,967.36
Barrow Borough Council,Local Restrictions Support Grant (Closed) Addendum: 5 January onwards,Accommodation And Food Service Activities,22-Jan-21,LRSG_1141,David Clark Properties ,3000.00
Barrow Borough Council,Local Restrictions Support Grant (Open)�,Accommodation And Food Service Activities,22-Jan-21,LRSG_1142,David Clark Properties ,1450.00
Barrow Borough Council,Local Restrictions Support Grant (Closed) Addendum: Tier 4,Accommodation And Food Service Activities,22-Jan-21,LRSG_1143,David Clark Properties ,357.14
Barrow Borough Council,Local Restrictions Support Grant (Closed) Addendum: Tier 4,Accommodation And Food Service Activities,22-Jan-21,LRSG_1144,Kill One Club,238.21
Barrow Borough Council,Local Restrictions Support Grant (Closed) Addendum: 5 January onwards,Accommodation And Food Service Activities,22-Jan-21,LRSG_1145,Kill One Club,2001.00
Barrow Borough Council,Local Restrictions Support Grant (Open)�,Accommodation And Food Service Activities,22-Jan-21,LRSG_1146,Kill One Club,967.36
Barrow Borough Council,Local Restrictions Support Grant (Closed) Addendum: Tier 4,"Arts, Entertainment And Recreation",22-Jan-21,LRSG_1147,Cumbria Pole Art Ltd,238.21
Barrow Borough Council,Local Restrictions Support Grant (Closed) Addendum: 5 January onwards,"Arts, Entertainment And Recreation",22-Jan-21,LRSG_1148,Cumbria Pole Art Ltd,2001.00
Barrow Borough Council,Local Restrictions Support Grant (Open)�,"Arts, Entertainment And Recreation",22-Jan-21,LRSG_1149,Cumbria Pole Art Ltd,967.36
Barrow Borough Council,Local Restrictions Support Grant (Closed) Addendum: 5 January onwards,"Arts, Entertainment And Recreation",22-Jan-21,LRSG_1150,Hoops Basketball Centre,3000.00
Barrow Borough Council,Local Restrictions Support Grant (Open)�,"Arts, Entertainment And Recreation",22-Jan-21,LRSG_1151,Hoops Basketball Centre,1450.00
Barrow Borough Council,Local Restrictions Support Grant (Closed) Addendum: Tier 4,"Arts, Entertainment And Recreation",22-Jan-21,LRSG_1152,Hoops Basketball Centre,357.14
Barrow Borough Council,Local Restrictions Support Grant (Closed) Addendum: Tier 4,"Arts, Entertainment And Recreation",22-Jan-21,LRSG_1153,Infinity Gymnastics,238.21
Barrow Borough Council,Local Restrictions Support Grant (Closed) Addendum: 5 January onwards,"Arts, Entertainment And Recreation",22-Jan-21,LRSG_1154,Infinity Gymnastics,2001.00
Barrow Borough Council,Local Restrictions Support Grant (Open)�,"Arts, Entertainment And Recreation",22-Jan-21,LRSG_1155,Infinity Gymnastics,967.36
Barrow Borough Council,Local Restrictions Support Grant (Closed) Addendum: 5 January onwards,Accommodation And Food Service Activities,22-Jan-21,LRSG_1156,Ambrose Hotel,3000.00
Barrow Borough Council,Local Restrictions Support Grant (Open)�,Accommodation And Food Service Activities,22-Jan-21,LRSG_1157,Ambrose Hotel,1450.00
Barrow Borough Council,Local Restrictions Support Grant (Closed) Addendum: Tier 4,Accommodation And Food Service Activities,22-Jan-21,LRSG_1158,Ambrose Hotel,357.14
Barrow Borough Council,Local Restrictions Support Grant (Open)�,Accommodation And Food Service Activities,22-Jan-21,LRSG_1159,Business Grant Recipient,967.36
Barrow Borough Council,Local Restrictions Support Grant (Closed) Addendum: Tier 4,"Arts, Entertainment And Recreation",22-Jan-21,LRSG_1160,Business Grant Recipient,238.21
Barrow Borough Council,Local Restrictions Support Grant (Closed) Addendum: 5 January onwards,"Arts, Entertainment And Recreation",22-Jan-21,LRSG_1161,Business Grant Recipient,2001.00
Barrow Borough Council,Local Restrictions Support Grant (Open)�,"Arts, Entertainment And Recreation",22-Jan-21,LRSG_1162,Business Grant Recipient,967.36
Barrow Borough Council,Local Restrictions Support Grant (Closed) Addendum: Tier 4,Accommodation And Food Service Activities,22-Jan-21,LRSG_1163,Business Grant Recipient,238.21
Barrow Borough Council,Local Restrictions Support Grant (Closed) Addendum: 5 January onwards,Accommodation And Food Service Activities,22-Jan-21,LRSG_1164,Business Grant Recipient,2001.00
Barrow Borough Council,Local Restrictions Support Grant (Open)�,Accommodation And Food Service Activities,22-Jan-21,LRSG_1165,Business Grant Recipient,967.36
Barrow Borough Council,Local Restrictions Support Grant (Closed) Addendum: Tier 4,Accommodation And Food Service Activities,22-Jan-21,LRSG_1166,Business Grant Recipient,238.21
Barrow Borough Council,Local Restrictions Support Grant (Closed) Addendum: 5 January onwards,Accommodation And Food Service Activities,22-Jan-21,LRSG_1167,Business Grant Recipient,2001.00
Barrow Borough Council,Local Restrictions Support Grant (Open)�,Accommodation And Food Service Activities,22-Jan-21,LRSG_1168,Business Grant Recipient,967.36
Barrow Borough Council,Local Restrictions Support Grant (Closed) Addendum: Tier 4,Accommodation And Food Service Activities,22-Jan-21,LRSG_1169,GPW Leisure,238.21
Barrow Borough Council,Local Restrictions Support Grant (Closed) Addendum: 5 January onwards,Accommodation And Food Service Activities,22-Jan-21,LRSG_1170,GPW Leisure,2001.00
Barrow Borough Council,Local Restrictions Support Grant (Open)�,Accommodation And Food Service Activities,22-Jan-21,LRSG_1171,GPW Leisure,967.36
Barrow Borough Council,Local Restrictions Support Grant (Closed)�,Accommodation And Food Service Activities,22-Jan-21,LRSG_1172,Business Grant Recipient,1381.64
Barrow Borough Council,Local Restrictions Support Grant (Closed) Addendum: Tier 4,Accommodation And Food Service Activities,22-Jan-21,LRSG_1173,Business Grant Recipient,238.21
Barrow Borough Council,Local Restrictions Support Grant (Closed) Addendum: 5 January onwards,Accommodation And Food Service Activities,22-Jan-21,LRSG_1174,Business Grant Recipient,2001.00
Barrow Borough Council,Local Restrictions Support Grant (Closed)�,Accommodation And Food Service Activities,22-Jan-21,LRSG_1175,Business Grant Recipient,1381.64
Barrow Borough Council,Local Restrictions Support Grant (Closed) Addendum: Tier 4,Accommodation And Food Service Activities,22-Jan-21,LRSG_1176,Business Grant Recipient,238.21
Barrow Borough Council,Local Restrictions Support Grant (Closed) Addendum: 5 January onwards,Accommodation And Food Service Activities,22-Jan-21,LRSG_1177,Business Grant Recipient,2001.00
Barrow Borough Council,Local Restrictions Support Grant (Closed)�,Accommodation And Food Service Activities,22-Jan-21,LRSG_1178, The Rams Head Pub,1381.64
Barrow Borough Council,Local Restrictions Support Grant (Closed) Addendum: Tier 4,Accommodation And Food Service Activities,22-Jan-21,LRSG_1179, The Rams Head Pub,238.21
Barrow Borough Council,Local Restrictions Support Grant (Closed) Addendum: 5 January onwards,Accommodation And Food Service Activities,22-Jan-21,LRSG_1180, The Rams Head Pub,2001.00
Barrow Borough Council,Local Restrictions Support Grant (Closed)�,Accommodation And Food Service Activities,22-Jan-21,LRSG_1181,Britannia Inn (Church Street) Ltd ,1381.64
Barrow Borough Council,Local Restrictions Support Grant (Closed) Addendum: Tier 4,Accommodation And Food Service Activities,22-Jan-21,LRSG_1182,Britannia Inn (Church Street) Ltd ,238.21
Barrow Borough Council,Local Restrictions Support Grant (Closed) Addendum: 5 January onwards,Accommodation And Food Service Activities,22-Jan-21,LRSG_1183,Britannia Inn (Church Street) Ltd ,2001.00
Barrow Borough Council,Local Restrictions Support Grant (Closed)�,Accommodation And Food Service Activities,22-Jan-21,LRSG_1184,The Harbour Inn Barrow Ltd,2071.43
Barrow Borough Council,Local Restrictions Support Grant (Closed) Addendum: Tier 4,Accommodation And Food Service Activities,22-Jan-21,LRSG_1185,The Harbour Inn Barrow Ltd,357.14
Barrow Borough Council,Local Restrictions Support Grant (Closed) Addendum: 5 January onwards,Accommodation And Food Service Activities,22-Jan-21,LRSG_1186,The Harbour Inn Barrow Ltd,3000.00
Barrow Borough Council,Local Restrictions Support Grant (Closed)�,Accommodation And Food Service Activities,22-Jan-21,LRSG_1187,Business Grant Recipient,1381.64
Barrow Borough Council,Local Restrictions Support Grant (Closed) Addendum: Tier 4,Accommodation And Food Service Activities,22-Jan-21,LRSG_1188,Business Grant Recipient,238.21
Barrow Borough Council,Local Restrictions Support Grant (Closed) Addendum: 5 January onwards,Accommodation And Food Service Activities,22-Jan-21,LRSG_1189,Business Grant Recipient,2001.00
Barrow Borough Council,Local Restrictions Support Grant (Closed)�,Accommodation And Food Service Activities,22-Jan-21,LRSG_1190,"Nautical Club,",1381.64
Barrow Borough Council,Local Restrictions Support Grant (Closed) Addendum: Tier 4,Accommodation And Food Service Activities,22-Jan-21,LRSG_1191,"Nautical Club,",238.21
Barrow Borough Council,Local Restrictions Support Grant (Closed) Addendum: 5 January onwards,Accommodation And Food Service Activities,22-Jan-21,LRSG_1192,"Nautical Club,",2001.00
Barrow Borough Council,Local Restrictions Support Grant (Closed)�,Accommodation And Food Service Activities,22-Jan-21,LRSG_1193,Harrbains Ltd,2071.43
Barrow Borough Council,Local Restrictions Support Grant (Closed) Addendum: Tier 4,Accommodation And Food Service Activities,22-Jan-21,LRSG_1194,Harrbains Ltd,357.14
Barrow Borough Council,Local Restrictions Support Grant (Closed) Addendum: 5 January onwards,Accommodation And Food Service Activities,22-Jan-21,LRSG_1195,Harrbains Ltd,3000.00
Barrow Borough Council,Local Restrictions Support Grant (Closed)�,Accommodation And Food Service Activities,22-Jan-21,LRSG_1196,The Lounge Group Limited,2071.43
Barrow Borough Council,Local Restrictions Support Grant (Closed) Addendum: Tier 4,Accommodation And Food Service Activities,22-Jan-21,LRSG_1197,The Lounge Group Limited,357.14
Barrow Borough Council,Local Restrictions Support Grant (Closed) Addendum: 5 January onwards,Accommodation And Food Service Activities,22-Jan-21,LRSG_1198,The Lounge Group Limited,3000.00
Barrow Borough Council,Local Restrictions Support Grant (Closed)�,Accommodation And Food Service Activities,22-Jan-21,LRSG_1199,Mk'S Liverpool Ltd,1381.64
Barrow Borough Council,Local Restrictions Support Grant (Closed) Addendum: Tier 4,Accommodation And Food Service Activities,22-Jan-21,LRSG_1200,Mk'S Liverpool Ltd,238.21
Barrow Borough Council,Local Restrictions Support Grant (Closed) Addendum: 5 January onwards,Accommodation And Food Service Activities,22-Jan-21,LRSG_1201,Mk'S Liverpool Ltd,2001.00
Barrow Borough Council,Local Restrictions Support Grant (Closed)�,Accommodation And Food Service Activities,22-Jan-21,LRSG_1202,"Greengate Workingmen'S,",1381.64
Barrow Borough Council,Local Restrictions Support Grant (Closed) Addendum: Tier 4,Accommodation And Food Service Activities,22-Jan-21,LRSG_1203,"Greengate Workingmen'S,",238.21
Barrow Borough Council,Local Restrictions Support Grant (Closed) Addendum: 5 January onwards,Accommodation And Food Service Activities,22-Jan-21,LRSG_1204,"Greengate Workingmen'S,",2001.00
Barrow Borough Council,Local Restrictions Support Grant (Closed)�,Accommodation And Food Service Activities,22-Jan-21,LRSG_1205,Central Preston st working mens club,1381.64
Barrow Borough Council,Local Restrictions Support Grant (Closed) Addendum: Tier 4,Accommodation And Food Service Activities,22-Jan-21,LRSG_1206,Central Preston st working mens club,238.21
Barrow Borough Council,Local Restrictions Support Grant (Closed) Addendum: 5 January onwards,Accommodation And Food Service Activities,22-Jan-21,LRSG_1207,Central Preston st working mens club,2001.00
Barrow Borough Council,Local Restrictions Support Grant (Closed)�,Accommodation And Food Service Activities,22-Jan-21,LRSG_1208,Business Grant Recipient,1381.64
Barrow Borough Council,Local Restrictions Support Grant (Closed) Addendum: Tier 4,Accommodation And Food Service Activities,22-Jan-21,LRSG_1209,Business Grant Recipient,238.21
Barrow Borough Council,Local Restrictions Support Grant (Closed) Addendum: 5 January onwards,Accommodation And Food Service Activities,22-Jan-21,LRSG_1210,Business Grant Recipient,2001.00
Barrow Borough Council,Local Restrictions Support Grant (Closed)�,Accommodation And Food Service Activities,22-Jan-21,LRSG_1211,Business Grant Recipient,1381.64
Barrow Borough Council,Local Restrictions Support Grant (Closed) Addendum: Tier 4,Accommodation And Food Service Activities,22-Jan-21,LRSG_1212,Business Grant Recipient,238.21
Barrow Borough Council,Local Restrictions Support Grant (Closed) Addendum: 5 January onwards,Accommodation And Food Service Activities,22-Jan-21,LRSG_1213,Business Grant Recipient,2001.00
Barrow Borough Council,Local Restrictions Support Grant (Closed)�,Accommodation And Food Service Activities,22-Jan-21,LRSG_1214,Hawthorn Leisure Honey Ltd,2071.43
Barrow Borough Council,Local Restrictions Support Grant (Closed) Addendum: Tier 4,Accommodation And Food Service Activities,22-Jan-21,LRSG_1215,Hawthorn Leisure Honey Ltd,357.14
Barrow Borough Council,Local Restrictions Support Grant (Closed) Addendum: 5 January onwards,Accommodation And Food Service Activities,22-Jan-21,LRSG_1216,Hawthorn Leisure Honey Ltd,3000.00
Barrow Borough Council,Local Restrictions Support Grant (Closed)�,Accommodation And Food Service Activities,22-Jan-21,LRSG_1217,Barrow Labour Club,1381.64
Barrow Borough Council,Local Restrictions Support Grant (Closed) Addendum: Tier 4,Accommodation And Food Service Activities,22-Jan-21,LRSG_1218,Barrow Labour Club,238.21
Barrow Borough Council,Local Restrictions Support Grant (Closed) Addendum: 5 January onwards,Accommodation And Food Service Activities,22-Jan-21,LRSG_1219,Barrow Labour Club,2001.00
Barrow Borough Council,Local Restrictions Support Grant (Closed)�,Accommodation And Food Service Activities,22-Jan-21,LRSG_1220,"British Legion Club,",1381.64
Barrow Borough Council,Local Restrictions Support Grant (Closed) Addendum: Tier 4,Accommodation And Food Service Activities,22-Jan-21,LRSG_1221,"British Legion Club,",238.21
Barrow Borough Council,Local Restrictions Support Grant (Closed) Addendum: 5 January onwards,Accommodation And Food Service Activities,22-Jan-21,LRSG_1222,"British Legion Club,",2001.00
Barrow Borough Council,Local Restrictions Support Grant (Closed)�,Accommodation And Food Service Activities,22-Jan-21,LRSG_1223,Abbey House Hotel (Cumbria) Ltd,1381.64
Barrow Borough Council,Local Restrictions Support Grant (Closed) Addendum: Tier 4,Accommodation And Food Service Activities,22-Jan-21,LRSG_1224,Abbey House Hotel (Cumbria) Ltd,238.21
Barrow Borough Council,Local Restrictions Support Grant (Closed) Addendum: 5 January onwards,Accommodation And Food Service Activities,22-Jan-21,LRSG_1225,Abbey House Hotel (Cumbria) Ltd,2001.00
Barrow Borough Council,Local Restrictions Support Grant (Closed)�,Accommodation And Food Service Activities,22-Jan-21,LRSG_1226,Business Grant Recipient,2071.43
Barrow Borough Council,Local Restrictions Support Grant (Closed) Addendum: Tier 4,Accommodation And Food Service Activities,22-Jan-21,LRSG_1227,Business Grant Recipient,357.14
Barrow Borough Council,Local Restrictions Support Grant (Closed) Addendum: 5 January onwards,Accommodation And Food Service Activities,22-Jan-21,LRSG_1228,Business Grant Recipient,3000.00
Barrow Borough Council,Local Restrictions Support Grant (Closed)�,Accommodation And Food Service Activities,22-Jan-21,LRSG_1229,Business Grant Recipient,1381.64
Barrow Borough Council,Local Restrictions Support Grant (Closed) Addendum: Tier 4,Accommodation And Food Service Activities,22-Jan-21,LRSG_1230,Business Grant Recipient,238.21
Barrow Borough Council,Local Restrictions Support Grant (Closed) Addendum: 5 January onwards,Accommodation And Food Service Activities,22-Jan-21,LRSG_1231,Business Grant Recipient,2001.00
Barrow Borough Council,Local Restrictions Support Grant (Closed) Addendum: Tier 4,Wholesale And Retail Trade; Repair Of Motor Vehicles And Motorcycles,22-Jan-21,LRSG_1232,Pye Motors Ltd,357.14
Barrow Borough Council,Local Restrictions Support Grant (Closed) Addendum: 5 January onwards,Wholesale And Retail Trade; Repair Of Motor Vehicles And Motorcycles,22-Jan-21,LRSG_1233,Pye Motors Ltd,3000.00
Barrow Borough Council,Local Restrictions Support Grant (Closed) Addendum: Tier 4,Wholesale And Retail Trade; Repair Of Motor Vehicles And Motorcycles,22-Jan-21,LRSG_1234,Business Grant Recipient,238.21
Barrow Borough Council,Local Restrictions Support Grant (Closed) Addendum: 5 January onwards,Wholesale And Retail Trade; Repair Of Motor Vehicles And Motorcycles,22-Jan-21,LRSG_1235,Business Grant Recipient,2001.00
Barrow Borough Council,Local Restrictions Support Grant (Closed) Addendum: Tier 4,Accommodation And Food Service Activities,22-Jan-21,LRSG_1236,Furness Cricket Club,238.21
Barrow Borough Council,Local Restrictions Support Grant (Closed) Addendum: 5 January onwards,Accommodation And Food Service Activities,22-Jan-21,LRSG_1237,Furness Cricket Club,2001.00
Barrow Borough Council,Local Restrictions Support Grant (Closed) Addendum: 5 January onwards,"Arts, Entertainment And Recreation",22-Jan-21,LRSG_1238,Cumbria Zoo Co Ltd,4500.00
Barrow Borough Council,Local Restrictions Support Grant (Closed) Addendum: Tier 4,Wholesale And Retail Trade; Repair Of Motor Vehicles And Motorcycles,22-Jan-21,LRSG_1239,Mobility Solutions Barrow Ltd,238.21
Barrow Borough Council,Local Restrictions Support Grant (Closed) Addendum: 5 January onwards,Wholesale And Retail Trade; Repair Of Motor Vehicles And Motorcycles,22-Jan-21,LRSG_1240,Mobility Solutions Barrow Ltd,2001.00
Barrow Borough Council,Local Restrictions Support Grant (Closed)�Addendum�,Wholesale And Retail Trade; Repair Of Motor Vehicles And Motorcycles,25-Jan-21,LRSG_1241,Premier Tiles Barrow-in-Furness Ltd,2000.00
Barrow Borough Council,Local Restrictions Support Grant (Closed)�Addendum�,Wholesale And Retail Trade; Repair Of Motor Vehicles And Motorcycles,25-Jan-21,LRSG_1242,Waklin Ltd T/A Cash Generator,2000.00
Barrow Borough Council,Local Restrictions Support Grant (Closed)�Addendum�,Wholesale And Retail Trade; Repair Of Motor Vehicles And Motorcycles,25-Jan-21,LRSG_1243,Business Grant Recipient,1334.00
Barrow Borough Council,Local Restrictions Support Grant (Closed)�Addendum�,Wholesale And Retail Trade; Repair Of Motor Vehicles And Motorcycles,25-Jan-21,LRSG_1244,Business Grant Recipient,1334.00
Barrow Borough Council,Local Restrictions Support Grant (Closed)�Addendum�,"Arts, Entertainment And Recreation",25-Jan-21,LRSG_1245,Business Grant Recipient,1334.00
Barrow Borough Council,Local Restrictions Support Grant (Open)�,Accommodation And Food Service Activities,25-Jan-21,LRSG_1246,Lucidty Group Ltd,1425.00
Barrow Borough Council,Local Restrictions Support Grant (Open)�,Accommodation And Food Service Activities,25-Jan-21,LRSG_1247,Lucidity Group/Townhouse,950.00
Barrow Borough Council,Local Restrictions Support Grant (Open)�,Accommodation And Food Service Activities,25-Jan-21,LRSG_1248,Business Grant Recipient,967.36
Barrow Borough Council,Local Restrictions Support Grant (Closed) Addendum: Tier 4,Accommodation And Food Service Activities,25-Jan-21,LRSG_1249,Business Grant Recipient,238.21
Barrow Borough Council,Local Restrictions Support Grant (Closed) Addendum: 5 January onwards,Accommodation And Food Service Activities,25-Jan-21,LRSG_1250,Business Grant Recipient,2001.00
Barrow Borough Council,Local Restrictions Support Grant (Open)�,Accommodation And Food Service Activities,25-Jan-21,LRSG_1251,CHAD in Askam Limited,967.36
Barrow Borough Council,Local Restrictions Support Grant (Closed) Addendum: Tier 4,Accommodation And Food Service Activities,25-Jan-21,LRSG_1252,CHAD in Askam Limited,238.21
Barrow Borough Council,Local Restrictions Support Grant (Closed) Addendum: 5 January onwards,Accommodation And Food Service Activities,25-Jan-21,LRSG_1253,CHAD in Askam Limited,2001.00
Barrow Borough Council,Local Restrictions Support Grant (Open)�,"Arts, Entertainment And Recreation",25-Jan-21,LRSG_1254,Barrow Underground Music Society,967.36
Barrow Borough Council,Local Restrictions Support Grant (Closed) Addendum: Tier 4,"Arts, Entertainment And Recreation",25-Jan-21,LRSG_1255,Barrow Underground Music Society,238.21
Barrow Borough Council,Local Restrictions Support Grant (Closed) Addendum: 5 January onwards,"Arts, Entertainment And Recreation",25-Jan-21,LRSG_1256,Barrow Underground Music Society,2001.00
Barrow Borough Council,Local Restrictions Support Grant (Open)�,Accommodation And Food Service Activities,25-Jan-21,LRSG_1257,Walney Island South End Caravan Site ,2175.00
Barrow Borough Council,Local Restrictions Support Grant (Closed) Addendum: Tier 4,Accommodation And Food Service Activities,25-Jan-21,LRSG_1258,Walney Island South End Caravan Site ,535.71
Barrow Borough Council,Local Restrictions Support Grant (Closed) Addendum: 5 January onwards,Accommodation And Food Service Activities,25-Jan-21,LRSG_1259,Walney Island South End Caravan Site ,4500.00
Barrow Borough Council,Local Restrictions Support Grant (Open)�,Accommodation And Food Service Activities,25-Jan-21,LRSG_1260,Business Grant Recipient,967.36
Barrow Borough Council,Local Restrictions Support Grant (Closed) Addendum: Tier 4,Accommodation And Food Service Activities,25-Jan-21,LRSG_1261,Business Grant Recipient,238.21
Barrow Borough Council,Local Restrictions Support Grant (Closed) Addendum: 5 January onwards,Accommodation And Food Service Activities,25-Jan-21,LRSG_1262,Business Grant Recipient,2001.00
Barrow Borough Council,Local Restrictions Support Grant (Open)�,Accommodation And Food Service Activities,25-Jan-21,LRSG_1263,Business Grant Recipient,1450.00
Barrow Borough Council,Local Restrictions Support Grant (Closed) Addendum: Tier 4,Accommodation And Food Service Activities,25-Jan-21,LRSG_1264,Business Grant Recipient,357.14
Barrow Borough Council,Local Restrictions Support Grant (Closed) Addendum: 5 January onwards,Accommodation And Food Service Activities,25-Jan-21,LRSG_1265,Business Grant Recipient,3000.00
Barrow Borough Council,Local Restrictions Support Grant (Open)�,Wholesale And Retail Trade; Repair Of Motor Vehicles And Motorcycles,25-Jan-21,LRSG_1266,Gold Planner Ltd,1450.00
Barrow Borough Council,Local Restrictions Support Grant (Open)�,Accommodation And Food Service Activities,25-Jan-21,LRSG_1267,Business Grant Recipient,2175.00
Barrow Borough Council,Local Restrictions Support Grant (Closed) Addendum: Tier 4,Accommodation And Food Service Activities,25-Jan-21,LRSG_1268,Business Grant Recipient,535.71
Barrow Borough Council,Local Restrictions Support Grant (Closed) Addendum: 5 January onwards,Accommodation And Food Service Activities,25-Jan-21,LRSG_1269,Business Grant Recipient,4500.00
Barrow Borough Council,Local Restrictions Support Grant (Open)�,Accommodation And Food Service Activities,25-Jan-21,LRSG_1270,Hawcoat Park Ltd,1450.00
Barrow Borough Council,Local Restrictions Support Grant (Closed) Addendum: Tier 4,Accommodation And Food Service Activities,25-Jan-21,LRSG_1271,Hawcoat Park Ltd,357.14
Barrow Borough Council,Local Restrictions Support Grant (Closed) Addendum: 5 January onwards,Accommodation And Food Service Activities,25-Jan-21,LRSG_1272,Hawcoat Park Ltd,3000.00
Barrow Borough Council,Local Restrictions Support Grant (Open)�,Accommodation And Food Service Activities,25-Jan-21,LRSG_1273,Business Grant Recipient,967.36
Barrow Borough Council,Local Restrictions Support Grant (Closed) Addendum: Tier 4,Accommodation And Food Service Activities,25-Jan-21,LRSG_1274,Business Grant Recipient,238.21
Barrow Borough Council,Local Restrictions Support Grant (Closed) Addendum: 5 January onwards,Accommodation And Food Service Activities,25-Jan-21,LRSG_1275,Business Grant Recipient,2001.00
Barrow Borough Council,Local Restrictions Support Grant (Open)�,Accommodation And Food Service Activities,25-Jan-21,LRSG_1276,Business Grant Recipient,967.36
Barrow Borough Council,Local Restrictions Support Grant (Closed) Addendum: Tier 4,Accommodation And Food Service Activities,25-Jan-21,LRSG_1277,Business Grant Recipient,238.21
Barrow Borough Council,Local Restrictions Support Grant (Closed) Addendum: 5 January onwards,Accommodation And Food Service Activities,25-Jan-21,LRSG_1278,Business Grant Recipient,2001.00
Barrow Borough Council,Local Restrictions Support Grant (Open)�,Accommodation And Food Service Activities,25-Jan-21,LRSG_1279,Lucidity Group/Townhouse,1450.00
Barrow Borough Council,Local Restrictions Support Grant (Open)�,Accommodation And Food Service Activities,25-Jan-21,LRSG_1280,Business Grant Recipient,967.36
Barrow Borough Council,Local Restrictions Support Grant (Open)�,Accommodation And Food Service Activities,25-Jan-21,LRSG_1281,Sweet Pepper Caf� Ltd,967.36
Barrow Borough Council,Local Restrictions Support Grant (Closed) Addendum: Tier 4,Accommodation And Food Service Activities,25-Jan-21,LRSG_1282,Sweet Pepper Caf� Ltd,238.21
Barrow Borough Council,Local Restrictions Support Grant (Closed) Addendum: 5 January onwards,Accommodation And Food Service Activities,25-Jan-21,LRSG_1283,Sweet Pepper Caf� Ltd,2001.00
Barrow Borough Council,Local Restrictions Support Grant (Open)�,Accommodation And Food Service Activities,25-Jan-21,LRSG_1284,Business Grant Recipient,967.36
Barrow Borough Council,Local Restrictions Support Grant (Closed) Addendum: Tier 4,Accommodation And Food Service Activities,25-Jan-21,LRSG_1285,Business Grant Recipient,238.21
Barrow Borough Council,Local Restrictions Support Grant (Closed) Addendum: 5 January onwards,Accommodation And Food Service Activities,25-Jan-21,LRSG_1286,Business Grant Recipient,2001.00
Barrow Borough Council,Local Restrictions Support Grant (Open)�,Accommodation And Food Service Activities,25-Jan-21,LRSG_1287,Eden Retreat Ltd,967.36
Barrow Borough Council,Local Restrictions Support Grant (Closed) Addendum: Tier 4,Accommodation And Food Service Activities,25-Jan-21,LRSG_1288,Eden Retreat Ltd,238.21
Barrow Borough Council,Local Restrictions Support Grant (Closed) Addendum: 5 January onwards,Accommodation And Food Service Activities,25-Jan-21,LRSG_1289,Eden Retreat Ltd,2001.00
Barrow Borough Council,Local Restrictions Support Grant (Open)�,Accommodation And Food Service Activities,25-Jan-21,LRSG_1290,Business Grant Recipient,967.36
Barrow Borough Council,Local Restrictions Support Grant (Closed) Addendum: Tier 4,Accommodation And Food Service Activities,25-Jan-21,LRSG_1291,Business Grant Recipient,238.21
Barrow Borough Council,Local Restrictions Support Grant (Closed) Addendum: 5 January onwards,Accommodation And Food Service Activities,25-Jan-21,LRSG_1292,Business Grant Recipient,2001.00
Barrow Borough Council,Local Restrictions Support Grant (Open)�,Accommodation And Food Service Activities,25-Jan-21,LRSG_1293,Diggles Ltd,1450.00
Barrow Borough Council,Local Restrictions Support Grant (Closed) Addendum: Tier 4,Accommodation And Food Service Activities,25-Jan-21,LRSG_1294,Diggles Ltd,357.14
Barrow Borough Council,Local Restrictions Support Grant (Closed) Addendum: 5 January onwards,Accommodation And Food Service Activities,25-Jan-21,LRSG_1295,Diggles Ltd,3000.00
Barrow Borough Council,Local Restrictions Support Grant (Open)�,Accommodation And Food Service Activities,25-Jan-21,LRSG_1296,RHBB Ltd T/A The Royal Hotel ,1450.00
Barrow Borough Council,Local Restrictions Support Grant (Closed) Addendum: Tier 4,Accommodation And Food Service Activities,25-Jan-21,LRSG_1297,RHBB Ltd T/A The Royal Hotel ,357.14
Barrow Borough Council,Local Restrictions Support Grant (Closed) Addendum: 5 January onwards,Accommodation And Food Service Activities,25-Jan-21,LRSG_1298,RHBB Ltd T/A The Royal Hotel ,3000.00
Barrow Borough Council,Local Restrictions Support Grant (Open)�,Accommodation And Food Service Activities,25-Jan-21,LRSG_1299,Business Grant Recipient,967.36
Barrow Borough Council,Local Restrictions Support Grant (Closed) Addendum: Tier 4,Accommodation And Food Service Activities,25-Jan-21,LRSG_1300,Business Grant Recipient,238.21
Barrow Borough Council,Local Restrictions Support Grant (Closed) Addendum: 5 January onwards,Accommodation And Food Service Activities,25-Jan-21,LRSG_1301,Business Grant Recipient,2001.00
Barrow Borough Council,Local Restrictions Support Grant (Open)�,Accommodation And Food Service Activities,25-Jan-21,LRSG_1302,Marilyns (Barrow) Limited,1450.00
Barrow Borough Council,Local Restrictions Support Grant (Closed) Addendum: Tier 4,Accommodation And Food Service Activities,25-Jan-21,LRSG_1303,Marilyns (Barrow) Limited,357.14
Barrow Borough Council,Local Restrictions Support Grant (Closed) Addendum: 5 January onwards,Accommodation And Food Service Activities,25-Jan-21,LRSG_1304,Marilyns (Barrow) Limited,3000.00
Barrow Borough Council,Local Restrictions Support Grant (Open)�,"Arts, Entertainment And Recreation",25-Jan-21,LRSG_1305,Elite Dance & Fitness Ltd,967.36
Barrow Borough Council,Local Restrictions Support Grant (Closed) Addendum: Tier 4,"Arts, Entertainment And Recreation",25-Jan-21,LRSG_1306,Elite Dance & Fitness Ltd,238.21
Barrow Borough Council,Local Restrictions Support Grant (Closed) Addendum: 5 January onwards,"Arts, Entertainment And Recreation",25-Jan-21,LRSG_1307,Elite Dance & Fitness Ltd,2001.00
Barrow Borough Council,Local Restrictions Support Grant (Open)�,Accommodation And Food Service Activities,25-Jan-21,LRSG_1308,Business Grant Recipient,967.36
Barrow Borough Council,Local Restrictions Support Grant (Closed) Addendum: Tier 4,Accommodation And Food Service Activities,25-Jan-21,LRSG_1309,Business Grant Recipient,238.21
Barrow Borough Council,Local Restrictions Support Grant (Closed) Addendum: 5 January onwards,Accommodation And Food Service Activities,25-Jan-21,LRSG_1310,Business Grant Recipient,2001.00
Barrow Borough Council,Local Restrictions Support Grant (Open)�,Accommodation And Food Service Activities,25-Jan-21,LRSG_1311,Bar 20 Dalton Limited,967.36
Barrow Borough Council,Local Restrictions Support Grant (Closed) Addendum: Tier 4,Accommodation And Food Service Activities,25-Jan-21,LRSG_1312,Bar 20 Dalton Limited,238.21
Barrow Borough Council,Local Restrictions Support Grant (Closed) Addendum: 5 January onwards,Accommodation And Food Service Activities,25-Jan-21,LRSG_1313,Bar 20 Dalton Limited,2001.00
Barrow Borough Council,Local Restrictions Support Grant (Open)�,Accommodation And Food Service Activities,25-Jan-21,LRSG_1314,Izgara Barrow Limited,967.36
Barrow Borough Council,Local Restrictions Support Grant (Closed) Addendum: Tier 4,Accommodation And Food Service Activities,25-Jan-21,LRSG_1315,Izgara Barrow Limited,238.21
Barrow Borough Council,Local Restrictions Support Grant (Closed) Addendum: 5 January onwards,Accommodation And Food Service Activities,25-Jan-21,LRSG_1316,Izgara Barrow Limited,2001.00
Barrow Borough Council,Local Restrictions Support Grant (Open)�,"Arts, Entertainment And Recreation",25-Jan-21,LRSG_1317,Crossfit Barrow,967.36
Barrow Borough Council,Local Restrictions Support Grant (Closed) Addendum: Tier 4,"Arts, Entertainment And Recreation",25-Jan-21,LRSG_1318,Crossfit Barrow,238.21
Barrow Borough Council,Local Restrictions Support Grant (Closed) Addendum: 5 January onwards,"Arts, Entertainment And Recreation",25-Jan-21,LRSG_1319,Crossfit Barrow,2001.00
Barrow Borough Council,Local Restrictions Support Grant (Open)�,Accommodation And Food Service Activities,25-Jan-21,LRSG_1320,Business Grant Recipient,967.36
Barrow Borough Council,Local Restrictions Support Grant (Closed) Addendum: Tier 4,Accommodation And Food Service Activities,25-Jan-21,LRSG_1321,Business Grant Recipient,238.21
Barrow Borough Council,Local Restrictions Support Grant (Closed) Addendum: 5 January onwards,Accommodation And Food Service Activities,25-Jan-21,LRSG_1322,Business Grant Recipient,2001.00
Barrow Borough Council,Local Restrictions Support Grant (Open)�,Accommodation And Food Service Activities,25-Jan-21,LRSG_1323,BLUEBIRD HOTELS LIMITED,1450.00
Barrow Borough Council,Local Restrictions Support Grant (Closed) Addendum: Tier 4,Accommodation And Food Service Activities,25-Jan-21,LRSG_1324,BLUEBIRD HOTELS LIMITED,357.14
Barrow Borough Council,Local Restrictions Support Grant (Closed) Addendum: 5 January onwards,Accommodation And Food Service Activities,25-Jan-21,LRSG_1325,BLUEBIRD HOTELS LIMITED,3000.00
Barrow Borough Council,Local Restrictions Support Grant (Open)�,Accommodation And Food Service Activities,25-Jan-21,LRSG_1326,Business Grant Recipient,967.36
Barrow Borough Council,Local Restrictions Support Grant (Closed) Addendum: Tier 4,Accommodation And Food Service Activities,25-Jan-21,LRSG_1327,Business Grant Recipient,238.21
Barrow Borough Council,Local Restrictions Support Grant (Closed) Addendum: 5 January onwards,Accommodation And Food Service Activities,25-Jan-21,LRSG_1328,Business Grant Recipient,2001.00
Barrow Borough Council,Local Restrictions Support Grant (Open)�,Accommodation And Food Service Activities,25-Jan-21,LRSG_1329,Beluto Properties,1450.00
Barrow Borough Council,Local Restrictions Support Grant (Closed) Addendum: Tier 4,Accommodation And Food Service Activities,25-Jan-21,LRSG_1330,Beluto Properties,357.14
Barrow Borough Council,Local Restrictions Support Grant (Closed) Addendum: 5 January onwards,Accommodation And Food Service Activities,25-Jan-21,LRSG_1331,Beluto Properties,3000.00
Barrow Borough Council,Local Restrictions Support Grant (Open)�,Accommodation And Food Service Activities,25-Jan-21,LRSG_1332,Beluto Properties,967.36
Barrow Borough Council,Local Restrictions Support Grant (Closed) Addendum: Tier 4,Accommodation And Food Service Activities,25-Jan-21,LRSG_1333,Beluto Properties,238.21
Barrow Borough Council,Local Restrictions Support Grant (Closed) Addendum: 5 January onwards,Accommodation And Food Service Activities,25-Jan-21,LRSG_1334,Beluto Properties,2001.00
Barrow Borough Council,Local Restrictions Support Grant (Open)�,Accommodation And Food Service Activities,25-Jan-21,LRSG_1335,Beluto Properties,1450.00
Barrow Borough Council,Local Restrictions Support Grant (Closed) Addendum: Tier 4,Accommodation And Food Service Activities,25-Jan-21,LRSG_1336,Beluto Properties,357.14
Barrow Borough Council,Local Restrictions Support Grant (Closed) Addendum: 5 January onwards,Accommodation And Food Service Activities,25-Jan-21,LRSG_1337,Beluto Properties,3000.00
Barrow Borough Council,Local Restrictions Support Grant (Open)�,Accommodation And Food Service Activities,25-Jan-21,LRSG_1338,Trident Hotels (South Lakes) 1 Limited T/A Holiday Inn Express Barrow,2175.00
Barrow Borough Council,Local Restrictions Support Grant (Closed) Addendum: Tier 4,Accommodation And Food Service Activities,25-Jan-21,LRSG_1339,Trident Hotels (South Lakes) 1 Limited T/A Holiday Inn Express Barrow,535.71
Barrow Borough Council,Local Restrictions Support Grant (Closed) Addendum: 5 January onwards,Accommodation And Food Service Activities,25-Jan-21,LRSG_1340,Trident Hotels (South Lakes) 1 Limited T/A Holiday Inn Express Barrow,4500.00
Barrow Borough Council,Local Restrictions Support Grant (Closed)�,Accommodation And Food Service Activities,25-Jan-21,LRSG_1341,Amber Taverns Limited,2071.43
Barrow Borough Council,Local Restrictions Support Grant (Closed) Addendum: Tier 4,Accommodation And Food Service Activities,25-Jan-21,LRSG_1342,Amber Taverns Limited,357.14
Barrow Borough Council,Local Restrictions Support Grant (Closed) Addendum: 5 January onwards,Accommodation And Food Service Activities,25-Jan-21,LRSG_1343,Amber Taverns Limited,3000.00
Barrow Borough Council,Local Restrictions Support Grant (Closed)�,Accommodation And Food Service Activities,25-Jan-21,LRSG_1344,Manhattans Barrow Limited,2071.43
Barrow Borough Council,Local Restrictions Support Grant (Closed) Addendum: Tier 4,Accommodation And Food Service Activities,25-Jan-21,LRSG_1345,Manhattans Barrow Limited,357.14
Barrow Borough Council,Local Restrictions Support Grant (Closed) Addendum: 5 January onwards,Accommodation And Food Service Activities,25-Jan-21,LRSG_1346,Manhattans Barrow Limited,3000.00
Barrow Borough Council,Local Restrictions Support Grant (Closed) Addendum: Tier 4,Wholesale And Retail Trade; Repair Of Motor Vehicles And Motorcycles,25-Jan-21,LRSG_1347,Business Grant Recipient,238.21
Barrow Borough Council,Local Restrictions Support Grant (Closed) Addendum: 5 January onwards,Wholesale And Retail Trade; Repair Of Motor Vehicles And Motorcycles,25-Jan-21,LRSG_1348,Business Grant Recipient,2001.00
Barrow Borough Council,Local Restrictions Support Grant (Closed) Addendum: Tier 4,Wholesale And Retail Trade; Repair Of Motor Vehicles And Motorcycles,25-Jan-21,LRSG_1349,CJS Car Sales,238.21
Barrow Borough Council,Local Restrictions Support Grant (Closed) Addendum: 5 January onwards,Wholesale And Retail Trade; Repair Of Motor Vehicles And Motorcycles,25-Jan-21,LRSG_1350,CJS Car Sales,2001.00
Barrow Borough Council,Local Restrictions Support Grant (Closed) Addendum: Tier 4,Wholesale And Retail Trade; Repair Of Motor Vehicles And Motorcycles,25-Jan-21,LRSG_1351,Business Grant Recipient,238.21
Barrow Borough Council,Local Restrictions Support Grant (Closed) Addendum: 5 January onwards,Wholesale And Retail Trade; Repair Of Motor Vehicles And Motorcycles,25-Jan-21,LRSG_1352,Business Grant Recipient,2001.00
Barrow Borough Council,Local Restrictions Support Grant (Closed) Addendum: Tier 4,Other Service Activities,25-Jan-21,LRSG_1353,Business Grant Recipient,238.21
Barrow Borough Council,Local Restrictions Support Grant (Closed) Addendum: 5 January onwards,Other Service Activities,25-Jan-21,LRSG_1354,Business Grant Recipient,2001.00
Barrow Borough Council,Local Restrictions Support Grant (Closed) Addendum: Tier 4,"Arts, Entertainment And Recreation",25-Jan-21,LRSG_1355,Vue Entertainment Ltd ,535.71
Barrow Borough Council,Local Restrictions Support Grant (Closed) Addendum: 5 January onwards,"Arts, Entertainment And Recreation",25-Jan-21,LRSG_1356,Vue Entertainment Ltd ,4500.00
Barrow Borough Council,Local Restrictions Support Grant (Open)�,Accommodation And Food Service Activities,26-Jan-21,LRSG_1357,Business Grant Recipient,967.36
Barrow Borough Council,Local Restrictions Support Grant (Closed) Addendum: Tier 4,Accommodation And Food Service Activities,26-Jan-21,LRSG_1358,Business Grant Recipient,238.21
Barrow Borough Council,Local Restrictions Support Grant (Closed) Addendum: 5 January onwards,Accommodation And Food Service Activities,26-Jan-21,LRSG_1359,Business Grant Recipient,2001.00
Barrow Borough Council,Local Restrictions Support Grant (Closed)�,Accommodation And Food Service Activities,26-Jan-21,LRSG_1360,Business Grant Recipient,1381.64
Barrow Borough Council,Local Restrictions Support Grant (Closed) Addendum: Tier 4,Accommodation And Food Service Activities,26-Jan-21,LRSG_1361,Business Grant Recipient,238.21
Barrow Borough Council,Local Restrictions Support Grant (Closed) Addendum: 5 January onwards,Accommodation And Food Service Activities,26-Jan-21,LRSG_1362,Business Grant Recipient,2001.00
Barrow Borough Council,Local Restrictions Support Grant (Closed)�,Accommodation And Food Service Activities,26-Jan-21,LRSG_1363,Lemmy Barrow Ltd,2071.43
Barrow Borough Council,Local Restrictions Support Grant (Closed) Addendum: Tier 4,Accommodation And Food Service Activities,26-Jan-21,LRSG_1364,Lemmy Barrow Ltd,357.14
Barrow Borough Council,Local Restrictions Support Grant (Closed) Addendum: 5 January onwards,Accommodation And Food Service Activities,26-Jan-21,LRSG_1365,Lemmy Barrow Ltd,3000.00
Barrow Borough Council,Local Restrictions Support Grant (Closed) Addendum: Tier 4,Wholesale And Retail Trade; Repair Of Motor Vehicles And Motorcycles,26-Jan-21,LRSG_1366,Window Worx Ltd T/A The Wet Room,238.21
Barrow Borough Council,Local Restrictions Support Grant (Closed) Addendum: 5 January onwards,Wholesale And Retail Trade; Repair Of Motor Vehicles And Motorcycles,26-Jan-21,LRSG_1367,Window Worx Ltd T/A The Wet Room,2001.00
Barrow Borough Council,Local Restrictions Support Grant (Closed) Addendum: Tier 4,Wholesale And Retail Trade; Repair Of Motor Vehicles And Motorcycles,26-Jan-21,LRSG_1368,Business Grant Recipient,238.21
Barrow Borough Council,Local Restrictions Support Grant (Closed) Addendum: 5 January onwards,Wholesale And Retail Trade; Repair Of Motor Vehicles And Motorcycles,26-Jan-21,LRSG_1369,Business Grant Recipient,2001.00
Barrow Borough Council,Local Restrictions Support Grant (Closed) Addendum: Tier 4,Wholesale And Retail Trade; Repair Of Motor Vehicles And Motorcycles,26-Jan-21,LRSG_1370, hair Flair Ltd,238.21
Barrow Borough Council,Local Restrictions Support Grant (Closed) Addendum: 5 January onwards,Wholesale And Retail Trade; Repair Of Motor Vehicles And Motorcycles,26-Jan-21,LRSG_1371, hair Flair Ltd,2001.00
Barrow Borough Council,Local Restrictions Support Grant (Closed) Addendum: Tier 4,Wholesale And Retail Trade; Repair Of Motor Vehicles And Motorcycles,26-Jan-21,LRSG_1372,Waklin Ltd T/A Cash Generator,357.14
Barrow Borough Council,Local Restrictions Support Grant (Closed) Addendum: 5 January onwards,Wholesale And Retail Trade; Repair Of Motor Vehicles And Motorcycles,26-Jan-21,LRSG_1373,Waklin Ltd T/A Cash Generator,3000.00
Barrow Borough Council,Local Restrictions Support Grant (Closed) Addendum: Tier 4,Wholesale And Retail Trade; Repair Of Motor Vehicles And Motorcycles,26-Jan-21,LRSG_1374,Stollers Furniture World Limited,535.71
Barrow Borough Council,Local Restrictions Support Grant (Closed) Addendum: 5 January onwards,Wholesale And Retail Trade; Repair Of Motor Vehicles And Motorcycles,26-Jan-21,LRSG_1375,Stollers Furniture World Limited,4500.00
Barrow Borough Council,Local Restrictions Support Grant (Closed) Addendum: Tier 4,Wholesale And Retail Trade; Repair Of Motor Vehicles And Motorcycles,26-Jan-21,LRSG_1376,Business Grant Recipient,238.21
Barrow Borough Council,Local Restrictions Support Grant (Closed) Addendum: 5 January onwards,Wholesale And Retail Trade; Repair Of Motor Vehicles And Motorcycles,26-Jan-21,LRSG_1377,Business Grant Recipient,2001.00
Barrow Borough Council,Local Restrictions Support Grant (Closed) Addendum: Tier 4,Wholesale And Retail Trade; Repair Of Motor Vehicles And Motorcycles,26-Jan-21,LRSG_1378,Definitions /Light,238.21
Barrow Borough Council,Local Restrictions Support Grant (Closed) Addendum: 5 January onwards,Wholesale And Retail Trade; Repair Of Motor Vehicles And Motorcycles,26-Jan-21,LRSG_1379,Definitions /Light,2001.00
Barrow Borough Council,Christmas Support Payment for �wet-led pubs� (CSP),Accommodation And Food Service Activities,26-Jan-21,LRSG_1380,The Black Dog Inn,1000.00
Barrow Borough Council,Local Restrictions Support Grant (Closed)�Addendum�,Accommodation And Food Service Activities,26-Jan-21,LRSG_1381,Lucidty Group Ltd,3000.00
Barrow Borough Council,Local Restrictions Support Grant (Closed)�Addendum�,Wholesale And Retail Trade; Repair Of Motor Vehicles And Motorcycles,26-Jan-21,LRSG_1382,Barrow Rugby League Auxilary Association,1334.00
Barrow Borough Council,Local Restrictions Support Grant (Closed)�Addendum�,Wholesale And Retail Trade; Repair Of Motor Vehicles And Motorcycles,26-Jan-21,LRSG_1383,Liontrek Ltd,2000.00
Barrow Borough Council,Local Restrictions Support Grant (Closed)�Addendum�,Wholesale And Retail Trade; Repair Of Motor Vehicles And Motorcycles,26-Jan-21,LRSG_1384,The Sofa Group TSG Cumbria,2000.00
Barrow Borough Council,Local Restrictions Support Grant (Open)�,Accommodation And Food Service Activities,26-Jan-21,LRSG_1385,Business Grant Recipient,633.79
Barrow Borough Council,Local Restrictions Support Grant (Closed)�Addendum�,"Arts, Entertainment And Recreation",27-Jan-21,LRSG_1386,Barrow Island Bowling Club,1334.00
Barrow Borough Council,Local Restrictions Support Grant (Closed)�Addendum�,Accommodation And Food Service Activities,27-Jan-21,LRSG_1387,Business Grant Recipient,1334.00
Barrow Borough Council,Local Restrictions Support Grant (Closed) Addendum: Tier 4,Wholesale And Retail Trade; Repair Of Motor Vehicles And Motorcycles,27-Jan-21,LRSG_1388,Business Grant Recipient,238.21
Barrow Borough Council,Local Restrictions Support Grant (Closed) Addendum: 5 January onwards,Wholesale And Retail Trade; Repair Of Motor Vehicles And Motorcycles,27-Jan-21,LRSG_1389,Business Grant Recipient,2001.00
Barrow Borough Council,Local Restrictions Support Grant (Closed) Addendum: Tier 4,Accommodation And Food Service Activities,27-Jan-21,LRSG_1390,Business Grant Recipient,238.21
Barrow Borough Council,Local Restrictions Support Grant (Closed) Addendum: 5 January onwards,Accommodation And Food Service Activities,27-Jan-21,LRSG_1391,Business Grant Recipient,2001.00
Barrow Borough Council,Local Restrictions Support Grant (Closed) Addendum: Tier 4,Accommodation And Food Service Activities,27-Jan-21,LRSG_1392,Business Grant Recipient,238.21
Barrow Borough Council,Local Restrictions Support Grant (Closed) Addendum: 5 January onwards,Accommodation And Food Service Activities,27-Jan-21,LRSG_1393,Business Grant Recipient,2001.00
Barrow Borough Council,Local Restrictions Support Grant (Closed)�Addendum�,Wholesale And Retail Trade; Repair Of Motor Vehicles And Motorcycles,28-Jan-21,LRSG_1394,Whitley Hall LTD T/A Cex,1334.00
Barrow Borough Council,Local Restrictions Support Grant (Open)�,Accommodation And Food Service Activities,28-Jan-21,LRSG_1395,Red and Racz Ltd,950.00
Barrow Borough Council,Local Restrictions Support Grant (Closed)�,Accommodation And Food Service Activities,28-Jan-21,LRSG_1396,Business Grant Recipient,1381.64
Barrow Borough Council,Local Restrictions Support Grant (Closed) Addendum: Tier 4,Accommodation And Food Service Activities,28-Jan-21,LRSG_1397,Business Grant Recipient,238.21
Barrow Borough Council,Local Restrictions Support Grant (Closed) Addendum: 5 January onwards,Accommodation And Food Service Activities,28-Jan-21,LRSG_1398,Business Grant Recipient,2001.00
Barrow Borough Council,Local Restrictions Support Grant (Closed) Addendum: Tier 4,Wholesale And Retail Trade; Repair Of Motor Vehicles And Motorcycles,28-Jan-21,LRSG_1399,Business Grant Recipient,238.21
Barrow Borough Council,Local Restrictions Support Grant (Closed) Addendum: 5 January onwards,Wholesale And Retail Trade; Repair Of Motor Vehicles And Motorcycles,28-Jan-21,LRSG_1400,Business Grant Recipient,2001.00
Barrow Borough Council,Local Restrictions Support Grant (Closed) Addendum: Tier 4,Wholesale And Retail Trade; Repair Of Motor Vehicles And Motorcycles,28-Jan-21,LRSG_1401,Premier Tiles Barrow-in-Furness Ltd,357.14
Barrow Borough Council,Local Restrictions Support Grant (Closed) Addendum: 5 January onwards,Wholesale And Retail Trade; Repair Of Motor Vehicles And Motorcycles,28-Jan-21,LRSG_1402,Premier Tiles Barrow-in-Furness Ltd,3000.00
Barrow Borough Council,Local Restrictions Support Grant (Closed) Addendum: Tier 4,Accommodation And Food Service Activities,28-Jan-21,LRSG_1403,Business Grant Recipient,238.21
Barrow Borough Council,Local Restrictions Support Grant (Closed) Addendum: 5 January onwards,Accommodation And Food Service Activities,28-Jan-21,LRSG_1404,Business Grant Recipient,2001.00
Barrow Borough Council,Local Restrictions Support Grant (Closed) Addendum: Tier 4,Accommodation And Food Service Activities,28-Jan-21,LRSG_1405,"Barrow Afc Supporters Club,",238.21
Barrow Borough Council,Local Restrictions Support Grant (Closed) Addendum: 5 January onwards,Accommodation And Food Service Activities,28-Jan-21,LRSG_1406,"Barrow Afc Supporters Club,",2001.00
Barrow Borough Council,Local Restrictions Support Grant (Closed) Addendum: Tier 4,Wholesale And Retail Trade; Repair Of Motor Vehicles And Motorcycles,28-Jan-21,LRSG_1407,Business Grant Recipient,238.21
Barrow Borough Council,Local Restrictions Support Grant (Closed) Addendum: 5 January onwards,Wholesale And Retail Trade; Repair Of Motor Vehicles And Motorcycles,28-Jan-21,LRSG_1408,Business Grant Recipient,2001.00
Barrow Borough Council,Local Restrictions Support Grant (Closed) Addendum: Tier 4,"Arts, Entertainment And Recreation",28-Jan-21,LRSG_1409,South Lakes Rock School,238.21
Barrow Borough Council,Local Restrictions Support Grant (Closed) Addendum: 5 January onwards,"Arts, Entertainment And Recreation",28-Jan-21,LRSG_1410, South Lakes Rock School,2001.00
Barrow Borough Council,Local Restrictions Support Grant (Closed) Addendum: Tier 4,Wholesale And Retail Trade; Repair Of Motor Vehicles And Motorcycles,28-Jan-21,LRSG_1411,Lakeland Leisure,238.21
Barrow Borough Council,Local Restrictions Support Grant (Closed) Addendum: 5 January onwards,Wholesale And Retail Trade; Repair Of Motor Vehicles And Motorcycles,28-Jan-21,LRSG_1412,Lakeland Leisure,2001.00
Barrow Borough Council,Local Restrictions Support Grant (Closed) Addendum: Tier 4,Other Service Activities,28-Jan-21,LRSG_1413,Business Grant Recipient,238.21
Barrow Borough Council,Local Restrictions Support Grant (Closed) Addendum: 5 January onwards,Other Service Activities,28-Jan-21,LRSG_1414,Business Grant Recipient,2001.00
Barrow Borough Council,Local Restrictions Support Grant (Closed) Addendum: Tier 4,Other Service Activities,28-Jan-21,LRSG_1415,Bank hair and beauty ,238.21
Barrow Borough Council,Local Restrictions Support Grant (Closed) Addendum: 5 January onwards,Other Service Activities,28-Jan-21,LRSG_1416,Bank hair and beauty ,2001.00
Barrow Borough Council,Local Restrictions Support Grant (Open)�,Accommodation And Food Service Activities,29-Jan-21,LRSG_1417,Business Grant Recipient,967.36
Barrow Borough Council,Local Restrictions Support Grant (Closed) Addendum: Tier 4,"Arts, Entertainment And Recreation",29-Jan-21,LRSG_1418,Barrow Island Bowling Club,238.21
Barrow Borough Council,Local Restrictions Support Grant (Closed) Addendum: 5 January onwards,"Arts, Entertainment And Recreation",29-Jan-21,LRSG_1419,Barrow Island Bowling Club,2001.00
Barrow Borough Council,Local Restrictions Support Grant (Closed)�Addendum�,"Arts, Entertainment And Recreation",29-Jan-21,LRSG_1420,Dazzle for Children & Young People,1334.00
Barrow Borough Council,Local Restrictions Support Grant (Closed)�Addendum�,"Arts, Entertainment And Recreation",29-Jan-21,LRSG_1421,King Alfred Bowling Club,1334.00
Barrow Borough Council,Local Restrictions Support Grant (Closed)�Addendum�,"Arts, Entertainment And Recreation",29-Jan-21,LRSG_1422,Roose Bowling Club,1334.00
Barrow Borough Council,Christmas Support Payment for �wet-led pubs� (CSP),Accommodation And Food Service Activities,29-Jan-21,LRSG_1423,GPW Leisure,1000.00
